TRANS.No,Service Area Categorisation,Service Division Categorisation,Responsible Unit,Unit Code,Expenses Type,Expenses Sub Type,Expense Code,Narrative,Amount,Invoice Date,Cap/rev,SupplierName
3451,Central Services,SupS Customer Services and Dev,Data protection,A01016,Supplies & Services           ,Services                      ,DF03,Consultants                             ,"1,186.50",14/05/2014,REV,REDACTED
3244,Central Services,SupS Chief Execs,Local Involvement Network,A01039,Third Party Payments          ,Private Contractors           ,EH10,Contract Payments                       ,"10,423.75",01/05/2014,REV,MERTON VOLUNTARY SERV COUNCIL 
477,Cultural Env Reg&Plan Services,Comm Safety (Crime Reduction),CCTV,A01200,Supplies & Services           ,Comms and Computing           ,DG15,Network Maintenance                     ,782.14,02/05/2014,REV,BT REDCARE                    
1891,Cultural Env Reg&Plan Services,Comm Safety (Crime Reduction),CCTV,A01200,Supplies & Services           ,Equip Furniture/Materials     ,DA01,Equipment - R & M                       ,"1,906.72",25/05/2014,REV,EUROVIA INFRASTRUCTURE LTD    
81,Central Services,SupS Chief Execs,NON-STATUTORY MARKETING & COMM,A02019,Supplies & Services           ,Prntng Stnry Gen Off Exp      ,DE22,Marketing                               ,680,18/06/2014,REV,AGRIPA SOLUTIONS LIMITED      
346,Central Services,SupS Chief Execs,NON-STATUTORY MARKETING & COMM,A02019,Supplies & Services           ,Services                      ,DF35,Graphic Design                          ,"3,825.00",11/06/2014,REV,THE BIG IDEA 
1925,Central Services,SupS Chief Execs,NON-STATUTORY MARKETING & COMM,A02019,Supplies & Services           ,Grants and Subscriptions      ,DJ04,Subscriptions                           ,600,30/05/2014,REV,FLAME LIMITED                 
2471,Central Services,SupS Chief Execs,NON-STATUTORY MARKETING & COMM,A02019,Supplies & Services           ,Services                      ,DF02,Misc Advertising/Publicity              ,662.5,22/05/2014,REV,JCDECAUX UNITED KINGDOM       
3261,Central Services,SupS Chief Execs,NON-STATUTORY MARKETING & COMM,A02019,Supplies & Services           ,Services                      ,DF02,Misc Advertising/Publicity              ,600,30/05/2014,REV,NEWSQUEST (LONDON)LTD         
4295,Central Services,SupS Chief Execs,NON-STATUTORY MARKETING & COMM,A02019,Supplies & Services           ,Services                      ,DF02,Misc Advertising/Publicity              ,515,01/06/2014,REV,TIME & LEISURE                
4539,Central Services,SupS Chief Execs,NON-STATUTORY MARKETING & COMM,A02019,Supplies & Services           ,Services                      ,DF02,Misc Advertising/Publicity              ,"3,800.00",17/03/2014,REV,WE ARE FAMILY MAGAZINE        
3503,Central Services,SupS Chief Execs,Democratic Services,A02023,Supplies & Services           ,Expenses                      ,DH79,INCOMING MAYOR (MAY-MARCH)              ,650,12/06/2014,REV,GOSTO FINO PORTUGAL PATISSERIE
4303,Central Services,SupS Chief Execs,Press and Public Relations.,A02026,Supplies & Services           ,Comms and Computing           ,DG09,Computer Purchases - Misc               ,"1,539.00",06/06/2014,REV,TOTAL COMPUTER NETWORKS       
1867,CS -Oth Operating Inc & Expend,T/A Corporate Services,Prtng Jobs - Ext Agncy,A03041,Supplies & Services           ,Prntng Stnry Gen Off Exp      ,DE01,External Printing                       ,550,21/05/2014,REV,ENNISFIELD                    
3343,CS -Oth Operating Inc & Expend,T/A Corporate Services,PrintUnit-HighVolPhtcopying,A03042,Third Party Payments          ,Private Contractors           ,EH02,Miscellaneous Hired Services            ,"3,131.18",30/05/2014,REV,OCE (UK) LTD                  
3344,CS -Oth Operating Inc & Expend,T/A Corporate Services,PrintUnit-HighVolPhtcopying,A03042,Third Party Payments          ,Private Contractors           ,EH02,Miscellaneous Hired Services            ,"3,739.48",02/06/2014,REV,OCE (UK) LTD                  
3544,CS -Oth Operating Inc & Expend,T/A Corporate Services,PrintUnit-HighVolPhtcopying,A03042,Supplies & Services           ,Equip Furniture/Materials     ,DA51,Films                                   ,"3,301.00",12/06/2014,REV,PSW PAPER & PRINT LTD         
4300,CS -Oth Operating Inc & Expend,T/A Corporate Services,PrintUnit-HighVolPhtcopying,A03042,Supplies & Services           ,Prntng Stnry Gen Off Exp      ,DE03,Stationery                              ,603.94,16/06/2014,REV,TOMPLA UK LTD                 
4301,CS -Oth Operating Inc & Expend,T/A Corporate Services,PrintUnit-HighVolPhtcopying,A03042,Supplies & Services           ,Prntng Stnry Gen Off Exp      ,DE03,Stationery                              ,922.68,16/06/2014,REV,TOMPLA UK LTD                 
4302,CS -Oth Operating Inc & Expend,T/A Corporate Services,PrintUnit-HighVolPhtcopying,A03042,Supplies & Services           ,Prntng Stnry Gen Off Exp      ,DE03,Stationery                              ,545.22,16/05/2014,REV,TOMPLA UK LTD                 
3441,Central Services,SupS Comm and Member Services,COMMUNITY ENGAGAMENT,A04057,Supplies & Services           ,Services                      ,DF32,Customer Survey                         ,"4,850.00",16/06/2014,REV,PEOPLE MATTERS NETWORK        
1617,CS -Oth Operating Inc & Expend,T/A Corporate Services,Translation Services,A04060,Supplies & Services           ,Services                      ,DF45,Payment of Sessional Workers            ,682,09/06/2014,REV,COSMIC EUROPE LIMTED          
3434,Central Services,SupS Comm and Member Services,PROGRAMME OFFICE,A04068,Employees                     ,Direct Employee Expenses      ,AA17,AGENCY STAFF & CASUAL PAYMTS            ,"9,600.00",30/05/2014,REV,REDACTED
3435,Central Services,SupS Comm and Member Services,PROGRAMME OFFICE,A04068,Employees                     ,Direct Employee Expenses      ,AA17,AGENCY STAFF & CASUAL PAYMTS            ,"8,400.00",30/04/2014,REV,REDACTED
2423,Central Services,SupS Best Value,Merton Link,A04070,Supplies & Services           ,Comms and Computing           ,DG09,Computer Purchases - Misc               ,540,03/06/2014,REV,INCOM TELECOMMUNICATIONS      
3464,Central Services,SupS Best Value,Merton Link,A04070,Supplies & Services           ,Prntng Stnry Gen Off Exp      ,DE30,General Office Expense                  ,"1,216.80",18/06/2014,REV,PHS GROUP PLC                 
3245,Central Services,Grants - Voluntary Groups,VOLUNTARY SECTOR COORDINATION,A04082,Supplies & Services           ,Grants and Subscriptions      ,DJ01,Grants                                  ,"12,000.00",03/06/2014,REV,MERTON VOLUNTARY SERV COUNCIL 
2238,Central Services,SupS Comm and Member Services,COMMERICIAL SERVICES,A04085,Employees                     ,Direct Employee Expenses      ,AA17,Agency Staff & Casual Paymts            ,"2,712.00",14/05/2014,REV,REDACTED
2240,Central Services,SupS Comm and Member Services,COMMERICIAL SERVICES,A04085,Employees                     ,Direct Employee Expenses      ,AA17,Agency Staff & Casual Paymts            ,"2,712.00",29/05/2014,REV,HAYS RECRUITING EXPERTS       
2241,Central Services,SupS Comm and Member Services,COMMERICIAL SERVICES,A04085,Employees                     ,Direct Employee Expenses      ,AA17,Agency Staff & Casual Paymts            ,"2,712.00",23/04/2014,REV,HAYS RECRUITING EXPERTS       
2242,Central Services,SupS Comm and Member Services,COMMERICIAL SERVICES,A04085,Employees                     ,Direct Employee Expenses      ,AA17,Agency Staff & Casual Paymts            ,"3,390.00",22/05/2014,REV,HAYS RECRUITING EXPERTS       
2243,Central Services,SupS Comm and Member Services,COMMERICIAL SERVICES,A04085,Employees                     ,Direct Employee Expenses      ,AA17,Agency Staff & Casual Paymts            ,"1,356.00",05/06/2014,REV,HAYS RECRUITING EXPERTS       
2244,Central Services,SupS Comm and Member Services,COMMERICIAL SERVICES,A04085,Employees                     ,Direct Employee Expenses      ,AA17,Agency Staff & Casual Paymts            ,"2,712.00",30/04/2014,REV,HAYS RECRUITING EXPERTS       
4481,Central Services,SupS Comm and Member Services,COMMERICIAL SERVICES,A04085,Employees                     ,Direct Employee Expenses      ,AA17,Agency Staff & Casual Paymts            ,"14,507.22",04/06/2014,REV,REDACTED
55,Highways & Transport Services,On-street parking,Blue Badge Service,A04088,Supplies & Services           ,Services                      ,DF14,Doctors and Other Fees                  ,600,09/06/2014,REV,ACCESS INDEPENDENT            
3285,Highways & Transport Services,On-street parking,Blue Badge Service,A04088,Supplies & Services           ,Comms and Computing           ,DG15,Network Maintenance                     ,915.6,02/06/2014,REV,NORTHGATE INFORMATION SOLUTION
83,Central Services,Emergency Planning (Cent Serv),Emergency Planning,B06138,Supplies & Services           ,Comms and Computing           ,DG05,Telephones - Gen-Creditors              ,"3,944.43",16/05/2014,REV,AIRWAVE SOLUTIONS LTD         
373,Central Services,SupS Health & Safety,Learning and Development,B06146,Employees                     ,Indirect Employee Expenses    ,AB57,EXTERNAL TRAINING COSTS                 ,550,30/05/2014,REV,BOURNEMOUTH UNIVERSITY        
1188,Central Services,SupS Health & Safety,Learning and Development,B06146,Employees                     ,Indirect Employee Expenses    ,AB57,EXTERNAL TRAINING COSTS                 ,"1,244.00",14/01/2014,REV,CHILD POVERTY ACTION GROUP    
1370,Central Services,SupS Health & Safety,Learning and Development,B06146,Employees                     ,Indirect Employee Expenses    ,AB57,EXTERNAL TRAINING COSTS                 ,"2,200.00",08/04/2014,REV,CIPFA BUSINESS LTD            
2417,Central Services,SupS Health & Safety,Learning and Development,B06146,Employees                     ,Indirect Employee Expenses    ,AB57,EXTERNAL TRAINING COSTS                 ,"1,875.00",30/05/2014,REV,HYDRO-X WATER TREATMENT LTD   
2679,Central Services,SupS Health & Safety,Learning and Development,B06146,Employees                     ,Indirect Employee Expenses    ,AB56,Internal Training Costs                 ,550,10/05/2014,REV,KW TRAINING SERVICES          
2701,Central Services,SupS Health & Safety,Learning and Development,B06146,Employees                     ,Indirect Employee Expenses    ,AB57,EXTERNAL TRAINING COSTS                 ,845,04/04/2014,REV,LANDOR LINKS                  
3047,Central Services,SupS Health & Safety,Learning and Development,B06146,Employees                     ,Indirect Employee Expenses    ,AB57,EXTERNAL TRAINING COSTS                 ,605,29/05/2014,REV,LONDON SCHOOL OF FIRST AID    
3153,Central Services,SupS Health & Safety,Learning and Development,B06146,Employees                     ,Indirect Employee Expenses    ,AB57,EXTERNAL TRAINING COSTS                 ,975,01/06/2014,REV,MEDI AID(UK) LTD              
3363,Central Services,SupS Health & Safety,Learning and Development,B06146,Employees                     ,Indirect Employee Expenses    ,AB57,EXTERNAL TRAINING COSTS                 ,"1,448.00",21/05/2014,REV,OPP UNLOCKING POTENTIAL       
3497,Central Services,SupS Health & Safety,Learning and Development,B06146,Employees                     ,Indirect Employee Expenses    ,AB57,EXTERNAL TRAINING COSTS                 ,660,14/10/2013,REV,PLANET TRAINING               
3776,Central Services,SupS Health & Safety,Learning and Development,B06146,Employees                     ,Indirect Employee Expenses    ,AB56,Internal Training Costs                 ,560,23/05/2014,REV,SAC INTERNATIONAL             
4308,Central Services,SupS Health & Safety,Learning and Development,B06146,Employees                     ,Indirect Employee Expenses    ,AB57,EXTERNAL TRAINING COSTS                 ,"1,200.00",29/05/2014,REV,TRANSITIONAL SPACE LTD        
1436,,,Merton Dementia Hub                     ,CC021AA,New Construction Conversion and Renovation,,B4,Contractor - Site works                 ,"1,696.03",30/05/2014,CAP,DATA TECHNIQUES               
1680,,,Merton Dementia Hub                     ,CC021AA,New Construction Conversion and Renovation,,B4,Contractor - Site works                 ,"2,143.49",01/04/2014,CAP,CROWN SECURITY SYSTEMS LTD    
46,,,Disabled Facilities Grant DCLG          ,CE004RA,Other Capital Expenditure,,E1,Grants                                  ,621.41,03/06/2014,CAP,ABLE 2 OCCUP.THERAPY SERV.LTD 
145,,,Disabled Facilities Grant DCLG          ,CE004RA,Other Capital Expenditure,,E1,Grants                                  ,"2,540.00",25/06/2014,CAP,ASCENDIT LIFTS LTD            
469,,,Disabled Facilities Grant DCLG          ,CE004RA,Other Capital Expenditure,,E1,Grants                                  ,"8,099.00",10/06/2014,CAP,MICHAEL BROWN BUILDERS LTD    
1126,,,Disabled Facilities Grant DCLG          ,CE004RA,Other Capital Expenditure,,E1,Grants                                  ,"1,551.44",11/06/2014,CAP,CBS ADAPTATION                
1821,,,Disabled Facilities Grant DCLG          ,CE004RA,Other Capital Expenditure,,E1,Grants                                  ,"8,097.35",05/06/2014,CAP,DREW PARTNERSHIP LTD.         
1893,,,Disabled Facilities Grant DCLG          ,CE004RA,Other Capital Expenditure,,E1,Grants                                  ,"4,708.00",11/06/2014,CAP,W C EVANS LTD                 
1901,,,Disabled Facilities Grant DCLG          ,CE004RA,Other Capital Expenditure,,E1,Grants                                  ,"10,285.00",05/06/2014,CAP,EXCEL INTERIOR REFURBISHMENT  
2403,,,Disabled Facilities Grant DCLG          ,CE004RA,Other Capital Expenditure,,E1,Grants                                  ,"14,665.00",03/06/2014,CAP,REDACTED
4006,,,Disabled Facilities Grant DCLG          ,CE004RA,Other Capital Expenditure,,E1,Grants                                  ,"2,584.84",26/06/2014,CAP,STAYING FIRST                 
4007,,,Disabled Facilities Grant DCLG          ,CE004RA,Other Capital Expenditure,,E1,Grants                                  ,"1,057.84",05/06/2014,CAP,STAYING FIRST                 
4008,,,Disabled Facilities Grant DCLG          ,CE004RA,Other Capital Expenditure,,E1,Grants                                  ,946.89,05/06/2014,CAP,STAYING FIRST                 
4253,,,Disabled Facilities Grant DCLG          ,CE004RA,Other Capital Expenditure,,E1,Grants                                  ,"4,652.00",05/06/2014,CAP,TBS ADAPTATIONS LTD           
2059,,,Colliers Wd- Regeneration Fund          ,CE006FB,Other Capital Expenditure,,E4,TFL Other                               ,"3,625.00",27/05/2014,CAP,GORT SCOTT LTD                
2716,,,Colliers Wd- Regeneration Fund          ,CE006FB,New Construction Conversion and Renovation,,B3,Other Expenses D&S Structure            ,550,29/04/2014,CAP,LASER SURVEYS                 
3516,,,Colliers Wd- Regeneration Fund          ,CE006FB,New Construction Conversion and Renovation,,B3,Other Expenses D&S Structure            ,"7,728.00",03/06/2014,CAP,PRESTIGE SIGNS                
1372,,,B674a-d Phase 1 Lambton rd              ,CE007CC,New Construction Conversion and Renovation,,B4,Contractor - Site works                 ,"20,000.00",20/06/2014,CAP,FM CONWAY LTD                 
4401,,,B674a-d Phase 1 Lambton rd              ,CE007CC,New Construction Conversion and Renovation,,B6,Other Costs - Site works                ,526,03/06/2014,CAP,UK POWER NETWORKS (OPERATIONS)
1373,,,B673a-c Phase 2 Lambton rd              ,CE007CD,New Construction Conversion and Renovation,,B4,Contractor - Site works                 ,"18,000.00",20/06/2014,CAP,FM CONWAY LTD                 
1450,,,Parks Investment                        ,CE013SA,New Construction Conversion and Renovation,,B4,Contractor - Site works                 ,"5,450.00",03/06/2014,CAP,TAYLOR BUILDING COMPANY LTD   
1374,,,Surface Water Drainage                  ,CE024FA,New Construction Conversion and Renovation,,B4,Contractor - Site works                 ,"8,451.05",03/06/2014,CAP,FM CONWAY LTD                 
1375,,,Surface Water Drainage                  ,CE024FA,New Construction Conversion and Renovation,,B4,Contractor - Site works                 ,"4,018.72",20/06/2014,CAP,FM CONWAY LTD                 
1376,,,Borough Roads Maintenance               ,CE026FA,New Construction Conversion and Renovation,,B4,Contractor - Site works                 ,"46,300.00",03/06/2014,CAP,FM CONWAY LTD                 
1377,,,TFL Projected Slippage                  ,CE026SA,New Construction Conversion and Renovation,,B4,Contractor - Site works                 ,"10,000.00",13/06/2014,CAP,FM CONWAY LTD                 
1378,,,TFL Projected Slippage                  ,CE026SA,New Construction Conversion and Renovation,,B4,Contractor - Site works                 ,766.79,06/06/2014,CAP,FM CONWAY LTD                 
1379,,,TFL Projected Slippage                  ,CE026SA,New Construction Conversion and Renovation,,B4,Contractor - Site works                 ,"13,200.00",06/06/2014,CAP,FM CONWAY LTD                 
1380,,,TFL Projected Slippage                  ,CE026SA,New Construction Conversion and Renovation,,B4,Contractor - Site works                 ,"4,758.41",13/06/2014,CAP,FM CONWAY LTD                 
1381,,,TFL Projected Slippage                  ,CE026SA,New Construction Conversion and Renovation,,B4,Contractor - Site works                 ,"21,969.85",20/06/2014,CAP,FM CONWAY LTD                 
1382,,,TFL Projected Slippage                  ,CE026SA,New Construction Conversion and Renovation,,B4,Contractor - Site works                 ,"5,810.00",13/06/2014,CAP,FM CONWAY LTD                 
1383,,,TFL Projected Slippage                  ,CE026SA,New Construction Conversion and Renovation,,B4,Contractor - Site works                 ,"30,000.00",13/06/2014,CAP,FM CONWAY LTD                 
1384,,,Repairs to Footways                     ,CE029FA,New Construction Conversion and Renovation,,B4,Contractor - Site works                 ,"30,000.00",03/06/2014,CAP,FM CONWAY LTD                 
1385,,,Repairs to Footways                     ,CE029FA,New Construction Conversion and Renovation,,B4,Contractor - Site works                 ,"15,269.29",06/06/2014,CAP,FM CONWAY LTD                 
1442,,,B660 West Barnes Lane Footway           ,CE029FF,New Construction Conversion and Renovation,,B4,Contractor - Site works                 ,"2,443.62",18/06/2014,CAP,MAY GURNEY LTD T/A CARTLEDGE  
1431,,,Leisure Centre Plant & Machine          ,CE038MA,New Construction Conversion and Renovation,,B4,Contractor - Site works                 ,"2,196.00",04/06/2014,CAP,JUST METAL UK LTD             
3117,,,Multi Use Games Area at Canons          ,CE055CA,New Construction Conversion and Renovation,,B1,Consultants Fees D&S Structure          ,"4,001.00",06/06/2014,CAP,MATERIALS SCIENCE CONS. LTD   
1473,,,St Marks Academy Flood Lights           ,CE056CA,New Construction Conversion and Renovation,,B4,Contractor - Site works                 ,"7,846.05",31/05/2014,CAP,ETC SPORTS SURFACES LTD       
3118,,,St Marks Academy Flood Lights           ,CE056CA,New Construction Conversion and Renovation,,B1,Consultants Fees D&S Structure          ,"2,650.00",06/06/2014,CAP,MATERIALS SCIENCE CONS. LTD   
4402,,,Improve markings & road signs           ,CE066EA,New Construction Conversion and Renovation,,B6,Other Costs - Site works                ,526,13/06/2014,CAP,UK POWER NETWORKS (OPERATIONS)
236,,,Street Tree Programme                   ,CE067FA,New Construction Conversion and Renovation,,B5,Suppliers - Site works                  ,"4,896.90",26/02/2014,CAP,BARCHAM TREES P.L.C.          
237,,,Street Tree Programme                   ,CE067FA,New Construction Conversion and Renovation,,B5,Suppliers - Site works                  ,974.7,15/04/2014,CAP,BARCHAM TREES P.L.C.          
1386,,,Street Tree Programme                   ,CE067FA,New Construction Conversion and Renovation,,B4,Contractor - Site works                 ,"5,286.70",06/06/2014,CAP,FM CONWAY LTD                 
4403,,,Street Lighting Replacement Pr          ,CE068FA,New Construction Conversion and Renovation,,B6,Other Costs - Site works                ,694,03/06/2014,CAP,UK POWER NETWORKS (OPERATIONS)
4404,,,Street Lighting Replacement Pr          ,CE068FA,New Construction Conversion and Renovation,,B6,Other Costs - Site works                ,642,03/06/2014,CAP,UK POWER NETWORKS (OPERATIONS)
1549,,,Replacement of Fleet Vehicles           ,CE082EA,Vehicles Plant Equipment and Machinery,,D1,Vehicles                                ,"23,384.40",06/05/2014,CAP,COMMERCIAL SERV'S TRADING LTD 
2005,,,Alley Gating Scheme - Fly Tip           ,CE087FA,Other Capital Expenditure,,E1,Grants                                  ,"1,230.00",27/06/2014,CAP,A&T GATES                     
4257,,,Re-use/recycling Site Maintena          ,CE090SA,Vehicles Plant Equipment and Machinery,,D3,Equipment                               ,"16,935.00",25/03/2014,CAP,TERBERG MATEC UK LTD          
4258,,,Re-use/recycling Site Maintena          ,CE090SA,Vehicles Plant Equipment and Machinery,,D3,Equipment                               ,"6,345.00",25/03/2014,CAP,TERBERG MATEC UK LTD          
1387,,,Accesibility Programme                  ,CE104FD,New Construction Conversion and Renovation,,B4,Contractor - Site works                 ,"2,331.40",13/06/2014,CAP,FM CONWAY LTD                 
1388,,,Accesibility Programme                  ,CE104FD,New Construction Conversion and Renovation,,B4,Contractor - Site works                 ,"6,000.00",13/06/2014,CAP,FM CONWAY LTD                 
4540,,,Accesibility Programme                  ,CE104FD,New Construction Conversion and Renovation,,B2,Site Surveys D&S Structure              ,"1,900.00",25/06/2014,CAP,REDACTED
1389,,,Casualty Reduction & Schools            ,CE104RA,New Construction Conversion and Renovation,,B4,Contractor - Site works                 ,"20,093.63",13/06/2014,CAP,FM CONWAY LTD                 
1390,,,Casualty Reduction & Schools            ,CE104RA,New Construction Conversion and Renovation,,B4,Contractor - Site works                 ,"6,007.76",13/06/2014,CAP,FM CONWAY LTD                 
4305,,,Casualty Reduction & Schools            ,CE104RA,New Construction Conversion and Renovation,,B2,Site Surveys D&S Structure              ,"1,600.00",03/06/2014,CAP,TRAFFICWATCH (UK) LTD.        
4541,,,Cycle Improvements                      ,CE104RM,New Construction Conversion and Renovation,,B2,Site Surveys D&S Structure              ,"1,900.00",20/06/2014,CAP,REDACTED
4478,,,Tamworth Paddling Pool                  ,CE110CL,New Construction Conversion and Renovation,,B4,Contractor - Site works                 ,"32,878.80",30/05/2014,CAP,USTIGATE LTD                  
1391,,,Improved parking- shop parades          ,CE132FA,New Construction Conversion and Renovation,,B4,Contractor - Site works                 ,"4,000.00",25/06/2014,CAP,FM CONWAY LTD                 
4259,,,Kitchen waste container replce          ,CE133EA,Vehicles Plant Equipment and Machinery,,D3,Equipment                               ,"1,713.00",25/03/2014,CAP,TERBERG MATEC UK LTD          
3361,,,B639a Fair Green                        ,CE137FD,New Construction Conversion and Renovation,,B4,Contractor - Site works                 ,"9,772.10",30/05/2014,CAP,BT OPENREACH                  
1392,,,B671   Victoria Road                    ,CE137FE,New Construction Conversion and Renovation,,B4,Contractor - Site works                 ,"12,909.58",13/06/2014,CAP,FM CONWAY LTD                 
1457,,,Civic Centre refurbishment              ,CF001AB,Vehicles Plant Equipment and Machinery,,D5,Software                                ,518.38,23/05/2014,CAP,EUROPA NATIONWIDE TECH.SER.LTD
1455,,,Civic Centre Windows                    ,CF001AK,New Construction Conversion and Renovation,,B4,Contractor - Site works                 ,"28,574.40",09/06/2014,CAP,HAZLEMERE WINDOW CO LIMITED   
1917,,,Civic Centre Windows                    ,CF001AK,New Construction Conversion and Renovation,,B4,Contractor - Site works                 ,"2,020.00",31/03/2014,CAP,FIRST CHOICE FACILITIES PLC   
3094,,,St Mary's expansion                     ,CS008RA,New Construction Conversion and Renovation,,B4,Contractor - Site works                 ,"133,836.00",23/06/2014,CAP,MANSELL CONSTRUCTION SERVICES 
3287,,,St Mary's expansion                     ,CS008RA,New Construction Conversion and Renovation,,B1,Consultants Fees D&S Structure          ,"4,152.00",29/05/2014,CAP,NPS PROPERTY CONSULTANTS LTD  
1435,,,Cranmer expansion                       ,CS010AA,New Construction Conversion and Renovation,,B1,Consultants Fees D&S Structure          ,"18,850.57",19/05/2014,CAP,ATKINS LTD                    
1456,,,Cranmer expansion                       ,CS010AA,New Construction Conversion and Renovation,,B4,Contractor - Site works                 ,"558,054.00",06/06/2014,CAP,WILLMOTT DIXON CONSTRUCT'N LTD
1125,,,Joseph Hood Permanent Expansn           ,CS012AA,New Construction Conversion and Renovation,,B1,Consultants Fees D&S Structure          ,950,30/05/2014,CAP,CBG CONSULTANTS LTD           
1434,,,Joseph Hood Permanent Expansn           ,CS012AA,New Construction Conversion and Renovation,,B4,Contractor - Site works                 ,"13,300.00",03/06/2014,CAP,GEE CONSTRUCTION LTD          
3095,,,Joseph Hood Permanent Expansn           ,CS012AA,New Construction Conversion and Renovation,,B4,Contractor - Site works                 ,"7,714.14",07/05/2014,CAP,MANSELL CONSTRUCTION SERVICES 
1441,,,Garden PCP                              ,CS013AA,New Construction Conversion and Renovation,,B4,Contractor - Site works                 ,"32,303.56",03/06/2014,CAP,R DURTNELL & SONS LTD         
3096,,,Hillcross School Expansion              ,CS020AC,New Construction Conversion and Renovation,,B4,Contractor - Site works                 ,"145,574.88",03/04/2014,CAP,MANSELL CONSTRUCTION SERVICES 
3097,,,Hillcross School Expansion              ,CS020AC,New Construction Conversion and Renovation,,B4,Contractor - Site works                 ,"18,219.85",28/04/2014,CAP,MANSELL CONSTRUCTION SERVICES 
3098,,,Hillcross School Expansion              ,CS020AC,New Construction Conversion and Renovation,,B4,Contractor - Site works                 ,"88,706.02",27/05/2014,CAP,MANSELL CONSTRUCTION SERVICES 
3998,,,Hillcross School Expansion              ,CS020AC,New Construction Conversion and Renovation,,B1,Consultants Fees D&S Structure          ,"1,925.00",03/06/2014,CAP,STACE LLP                     
3999,,,Hillcross School Expansion              ,CS020AC,New Construction Conversion and Renovation,,B1,Consultants Fees D&S Structure          ,"1,170.00",20/05/2014,CAP,STACE LLP                     
4000,,,Hillcross School Expansion              ,CS020AC,New Construction Conversion and Renovation,,B1,Consultants Fees D&S Structure          ,"1,925.00",20/05/2014,CAP,STACE LLP                     
1847,,,Merton Abbey Temp Accomodation          ,CS022AC,New Construction Conversion and Renovation,,B1,Consultants Fees D&S Structure          ,625,31/05/2014,CAP,EIGHT ASSOCIATES              
2051,,,Merton Abbey Temp Accomodation          ,CS022AC,New Construction Conversion and Renovation,,B2,Site Surveys D&S Structure              ,"1,500.00",22/05/2014,CAP,GLEDSDALE ASSOCIATES          
2492,,,Merton Abbey Temp Accomodation          ,CS022AC,New Construction Conversion and Renovation,,B2,Site Surveys D&S Structure              ,750.3,28/05/2014,CAP,KEEGANS LIMITED               
3099,,,Merton Abbey Temp Accomodation          ,CS022AC,New Construction Conversion and Renovation,,B4,Contractor - Site works                 ,"122,801.78",29/05/2014,CAP,MANSELL CONSTRUCTION SERVICES 
3432,,,Merton Abbey Temp Accomodation          ,CS022AC,New Construction Conversion and Renovation,,B1,Consultants Fees D&S Structure          ,"26,015.59",30/05/2014,CAP,PELLINGS LLP                  
2202,,,Pelham School Expansion                 ,CS023AC,New Construction Conversion and Renovation,,B1,Consultants Fees D&S Structure          ,"7,215.00",29/05/2014,CAP,HAVERSTOCK ASSOCIATES LLP     
3100,,,Pelham School Expansion                 ,CS023AC,New Construction Conversion and Renovation,,B4,Contractor - Site works                 ,"91,988.49",27/05/2014,CAP,MANSELL CONSTRUCTION SERVICES 
4001,,,Pelham School Expansion                 ,CS023AC,New Construction Conversion and Renovation,,B1,Consultants Fees D&S Structure          ,"1,975.00",20/05/2014,CAP,STACE LLP                     
4002,,,Pelham School Expansion                 ,CS023AC,New Construction Conversion and Renovation,,B1,Consultants Fees D&S Structure          ,"1,170.00",20/05/2014,CAP,STACE LLP                     
2203,,,Dundonald expansion                     ,CS031AC,New Construction Conversion and Renovation,,B1,Consultants Fees D&S Structure          ,"74,373.00",19/05/2014,CAP,HAVERSTOCK ASSOCIATES LLP     
4243,,,Dundonald expansion                     ,CS031AC,New Construction Conversion and Renovation,,B1,Consultants Fees D&S Structure          ,"1,570.00",30/05/2014,CAP,SYNERGY CPC LLP               
4244,,,Dundonald expansion                     ,CS031AC,New Construction Conversion and Renovation,,B1,Consultants Fees D&S Structure          ,"2,200.00",30/05/2014,CAP,SYNERGY CPC LLP               
3288,,,St Ann's Primary Phase                  ,CS032AA,New Construction Conversion and Renovation,,B1,Consultants Fees D&S Structure          ,"15,083.25",05/06/2014,CAP,NPS PROPERTY CONSULTANTS LTD  
2493,,,Poplar Permanent Expansion              ,CS034AB,New Construction Conversion and Renovation,,B2,Site Surveys D&S Structure              ,751,28/05/2014,CAP,KEEGANS LIMITED               
3101,,,Poplar Permanent Expansion              ,CS034AB,New Construction Conversion and Renovation,,B4,Contractor - Site works                 ,"294,183.24",29/05/2014,CAP,MANSELL CONSTRUCTION SERVICES 
3433,,,Poplar Permanent Expansion              ,CS034AB,New Construction Conversion and Renovation,,B1,Consultants Fees D&S Structure          ,"3,312.12",30/05/2014,CAP,PELLINGS LLP                  
218,,,Singlegate expansion                    ,CS049AA,New Construction Conversion and Renovation,,B1,Consultants Fees D&S Structure          ,"69,751.00",20/05/2014,CAP,ATKINS LIMITED                
3102,,,Singlegate expansion                    ,CS049AA,New Construction Conversion and Renovation,,B4,Contractor - Site works                 ,"4,782.22",19/05/2014,CAP,MANSELL CONSTRUCTION SERVICES 
3103,,,Singlegate expansion                    ,CS049AA,New Construction Conversion and Renovation,,B4,Contractor - Site works                 ,"56,217.78",19/05/2014,CAP,MANSELL CONSTRUCTION SERVICES 
1694,,,Wimbledon Park expansion                ,CS050AA,New Construction Conversion and Renovation,,B1,Consultants Fees D&S Structure          ,"20,679.78",05/11/2013,CAP,CURL LA TOURELLE ARCHITECTS   
4245,,,Wimbledon Park expansion                ,CS050AA,New Construction Conversion and Renovation,,B1,Consultants Fees D&S Structure          ,"1,000.00",30/05/2014,CAP,SYNERGY CPC LLP               
1419,,,Schools Access Initiative Inc           ,CS050SA,New Construction Conversion and Renovation,,B6,Other Costs - Site works                ,"9,400.00",15/05/2014,CAP,REDACTED
1474,,,IT Equipment                            ,CT006EA,Vehicles Plant Equipment and Machinery,,D3,Equipment                               ,"5,679.79",28/01/2014,CAP,CISILION LTD                  
1938,,,IT Equipment                            ,CT006EA,Vehicles Plant Equipment and Machinery,,D3,Equipment                               ,"8,544.00",23/04/2014,CAP,FORDWAY LTD                   
3253,,,IT Equipment                            ,CT006EA,Other Capital Expenditure,,E3,Miscellaneous Capital Expendit          ,"6,250.00",30/05/2014,CAP,NET-CTRL                      
3995,,,IT Equipment                            ,CT006EA,Vehicles Plant Equipment and Machinery,,D3,Equipment                               ,"3,266.97",30/05/2014,CAP,SPECIALIST COMPUTER CENT. PLC 
3996,,,IT Equipment                            ,CT006EA,Vehicles Plant Equipment and Machinery,,D3,Equipment                               ,"7,467.36",30/05/2014,CAP,SPECIALIST COMPUTER CENT. PLC 
4256,,,IT Equipment                            ,CT006EA,Other Capital Expenditure,,E3,Miscellaneous Capital Expendit          ,"2,500.00",29/05/2014,CAP,NETCALL TELECOM LIMITED       
1127,Central Services,Council tax collection,Local Taxation Services,E02100,Third Party Payments          ,Private Contractors           ,EH01,Miscellaneous Agency Services           ,626.73,01/03/2014,REV,COMMERCIAL COLLECTION SERVICES
1128,Central Services,Council tax collection,Local Taxation Services,E02100,Third Party Payments          ,Private Contractors           ,EH01,Miscellaneous Agency Services           ,634.35,01/06/2014,REV,COMMERCIAL COLLECTION SERVICES
1903,Central Services,Council tax collection,Local Taxation Services,E02100,Supplies & Services           ,Services                      ,DF09,Miscellaneous Fees                      ,"9,100.00",18/06/2014,REV,EXPERIAN LTD                  
3075,Central Services,Council tax collection,Local Taxation Services,E02100,Supplies & Services           ,Comms and Computing           ,DG09,Computer Purchases - Misc               ,725,13/06/2014,REV,MAG:NET SOLUTIONS             
3205,Central Services,Council tax collection,Local Taxation Services,E02100,Supplies & Services           ,Comms and Computing           ,DG07,Computer Software                       ,710.4,20/06/2014,REV,MISCO                         
3556,Central Services,Council tax collection,Local Taxation Services,E02100,Supplies & Services           ,Comms and Computing           ,DG09,Computer Purchases - Misc               ,"7,000.00",09/05/2014,REV,CIVICA UK LIMITED             
3557,Central Services,Council tax collection,Local Taxation Services,E02100,Supplies & Services           ,Comms and Computing           ,DG09,Computer Purchases - Misc               ,"4,393.00",10/06/2014,REV,CIVICA UK LIMITED             
3558,Central Services,Council tax collection,Local Taxation Services,E02100,Supplies & Services           ,Comms and Computing           ,DG09,Computer Purchases - Misc               ,616.8,16/05/2014,REV,CIVICA UK LIMITED             
3559,Central Services,Council tax collection,Local Taxation Services,E02100,Supplies & Services           ,Comms and Computing           ,DG09,Computer Purchases - Misc               ,"5,000.00",18/06/2014,REV,CIVICA UK LIMITED             
3560,Central Services,Council tax collection,Local Taxation Services,E02100,Supplies & Services           ,Comms and Computing           ,DG09,Computer Purchases - Misc               ,"7,515.00",18/06/2014,REV,CIVICA UK LIMITED             
3561,Central Services,Council tax collection,Local Taxation Services,E02100,Supplies & Services           ,Comms and Computing           ,DG09,Computer Purchases - Misc               ,"1,538.00",18/06/2014,REV,CIVICA UK LIMITED             
3562,Central Services,Council tax collection,Local Taxation Services,E02100,Supplies & Services           ,Comms and Computing           ,DG09,Computer Purchases - Misc               ,775,18/06/2014,REV,CIVICA UK LIMITED             
3997,Central Services,Council tax collection,Local Taxation Services,E02100,Supplies & Services           ,Comms and Computing           ,DG07,Computer Software                       ,550,22/05/2014,REV,SPEECH CENTRE                 
4552,Central Services,Council tax collection,Local Taxation Services,E02100,Supplies & Services           ,Services                      ,DF11,Counsel's Fees                          ,"1,030.00",13/05/2014,REV,WELBECK LAW LLP               
4553,Central Services,Council tax collection,Local Taxation Services,E02100,Supplies & Services           ,Services                      ,DF11,Counsel's Fees                          ,"1,030.00",09/06/2014,REV,WELBECK LAW LLP               
2401,Central Services,Council tax collection,Local Taxation Bailiffs,E02101,Supplies & Services           ,Services                      ,DF18,Bailiffs' fees                          ,577.25,31/05/2014,REV,HPI LIMITED                   
4111,Central Services,SupS Payroll,Payroll,E02140,Third Party Payments          ,Private Contractors           ,EH10,Contract Payments                       ,"5,723.64",30/05/2014,REV,LONDON BOROUGH OF SUTTON      
4112,Central Services,SupS Payroll,Payroll,E02140,Third Party Payments          ,Private Contractors           ,EH10,Contract Payments                       ,"19,837.94",16/06/2014,REV,LONDON BOROUGH OF SUTTON      
4113,Central Services,SupS Payroll,Payroll,E02140,Third Party Payments          ,Private Contractors           ,EH10,Contract Payments                       ,"8,565.38",24/06/2014,REV,LONDON BOROUGH OF SUTTON      
4114,Central Services,SupS Payroll,Payroll,E02140,Third Party Payments          ,Private Contractors           ,EH10,Contract Payments                       ,"12,673.11",27/05/2014,REV,LONDON BOROUGH OF SUTTON      
3252,Central Services,SupS Facilities,Post Room,E02220,Supplies & Services           ,Equip Furniture/Materials     ,DA01,Equipment - R & M                       ,872,04/04/2014,REV,NEOPOST FINANCE LIMITED       
3415,Central Services,SupS Facilities,Post Room,E02220,Supplies & Services           ,Comms and Computing           ,DG04,Postage - General                       ,514.3,31/05/2014,REV,PARKER CARS LTD               
4050,Central Services,SupS Facilities,Post Room,E02220,Supplies & Services           ,Comms and Computing           ,DG04,Postage - General                       ,535,27/05/2014,REV,STREETWISE COURIERS           
4313,Central Services,SupS Facilities,Post Room,E02220,Supplies & Services           ,Comms and Computing           ,DG04,Postage - General                       ,600,09/05/2014,REV,TRAVELCARE                    
3906,Central Services,SupS Facilities,Security Services,E02221,Employees                     ,Direct Employee Expenses      ,AA17,Agency Staff & Casual Paymts            ,"1,883.70",01/06/2014,REV,REDACTED
3907,Central Services,SupS Facilities,Security Services,E02221,Employees                     ,Direct Employee Expenses      ,AA17,Agency Staff & Casual Paymts            ,"2,889.90",01/06/2014,REV,REDACTED
3908,Central Services,SupS Facilities,Security Services,E02221,Employees                     ,Direct Employee Expenses      ,AA17,Agency Staff & Casual Paymts            ,"1,965.60",01/06/2014,REV,REDACTED
3909,Central Services,SupS Facilities,Security Services,E02221,Employees                     ,Direct Employee Expenses      ,AA17,Agency Staff & Casual Paymts            ,"1,497.60",01/06/2014,REV,REDACTED
4412,Central Services,SupS Facilities,Civic Centre,E02222,Premises Related Expenditure  ,RepairsAlterations&MtceOfBldgs,BA29,BUILD MAINT MGT FEES                    ,"2,799.50",22/05/2014,REV,UNIQUE OFFICE SOLUTIONS LTD   
4413,Central Services,SupS Facilities,Civic Centre,E02222,Premises Related Expenditure  ,RepairsAlterations&MtceOfBldgs,BA29,BUILD MAINT MGT FEES                    ,"1,897.50",12/06/2014,REV,UNIQUE OFFICE SOLUTIONS LTD   
4414,Central Services,SupS Facilities,Civic Centre,E02222,Premises Related Expenditure  ,RepairsAlterations&MtceOfBldgs,BA29,BUILD MAINT MGT FEES                    ,"1,273.59",12/06/2014,REV,UNIQUE OFFICE SOLUTIONS LTD   
226,Central Services,SupS Facilities,Facilities,E02231,Supplies & Services           ,Equip Furniture/Materials     ,DA09,Equip-Purchases                         ,"18,308.74",31/03/2014,REV,AVELEC SOLUTIONS              
1423,Central Services,SupS Facilities,Facilities,E02231,Premises Related Expenditure  ,RepairsAlterations&MtceOfBldgs,BA01,DDM - General Building                  ,"9,002.00",26/03/2014,REV,SALTASH ENTERPRISES LTD       
1424,Central Services,SupS Facilities,Facilities,E02231,Premises Related Expenditure  ,RepairsAlterations&MtceOfBldgs,BA89,Fire Safety Risk Assessment             ,"2,523.00",26/03/2014,REV,SALTASH ENTERPRISES LTD       
1425,Central Services,SupS Facilities,Facilities,E02231,Premises Related Expenditure  ,RepairsAlterations&MtceOfBldgs,BA89,Fire Safety Risk Assessment             ,"1,827.00",29/05/2014,REV,SALTASH ENTERPRISES LTD       
1426,Central Services,SupS Facilities,Facilities,E02231,Premises Related Expenditure  ,RepairsAlterations&MtceOfBldgs,BA90,Water Hygiene                           ,"14,600.00",26/03/2014,REV,SALTASH ENTERPRISES LTD       
1590,Central Services,SupS Facilities,Facilities,E02231,Premises Related Expenditure  ,RepairsAlterations&MtceOfBldgs,BA02,ENERGY CONSERVATION                     ,"1,600.00",02/06/2014,REV,COMPLEMENT CONSULTING LIMITED 
1866,Central Services,SupS Facilities,Facilities,E02231,Premises Related Expenditure  ,RepairsAlterations&MtceOfBldgs,BA02,ENERGY CONSERVATION                     ,"11,329.98",08/05/2014,REV,ENERGY SAVING LIGHTING (UK) LT
2418,Central Services,SupS Facilities,Facilities,E02231,Premises Related Expenditure  ,RepairsAlterations&MtceOfBldgs,BA90,Water Hygiene                           ,805,28/02/2014,REV,HYDRO-X WATER TREATMENT LTD   
3111,Central Services,SupS Facilities,Facilities,E02231,Supplies & Services           ,Services                      ,DF09,Miscellaneous Fees                      ,"1,465.00",29/05/2014,REV,REDACTED
3112,Central Services,SupS Facilities,Facilities,E02231,Supplies & Services           ,Services                      ,DF09,Miscellaneous Fees                      ,"1,215.00",29/05/2014,REV,REDACTED
3113,Central Services,SupS Facilities,Facilities,E02231,Supplies & Services           ,Services                      ,DF09,Miscellaneous Fees                      ,"1,548.33",29/05/2014,REV,REDACTED
3114,Central Services,SupS Facilities,Facilities,E02231,Supplies & Services           ,Services                      ,DF09,Miscellaneous Fees                      ,"1,381.67",29/05/2014,REV,REDACTED
1458,Central Services,SupS Facilities,FM External Fees,E02239,Premises Related Expenditure  ,RepairsAlterations&MtceOfBldgs,BA03,DDM - Mechanical                        ,525.7,23/05/2014,REV,EUROPA NATIONWIDE TECH.SER.LTD
1368,Central Services,SupS Facilities,Corporate Services Buildings,E02240,Premises Related Expenditure  ,RepairsAlterations&MtceOfBldgs,BA03,DDM - Mechanical                        ,"2,500.00",15/05/2014,REV,CHUBB FIRE & SECURITY LTD     
1437,Central Services,SupS Facilities,Corporate Services Buildings,E02240,Premises Related Expenditure  ,RepairsAlterations&MtceOfBldgs,BA05,DDM - Electrical                        ,"4,800.00",30/05/2014,REV,DATA TECHNIQUES               
1438,Central Services,SupS Facilities,Corporate Services Buildings,E02240,Premises Related Expenditure  ,RepairsAlterations&MtceOfBldgs,BA05,DDM - Electrical                        ,"-4,800.00",30/05/2014,REV,DATA TECHNIQUES               
1439,Central Services,SupS Facilities,Corporate Services Buildings,E02240,Premises Related Expenditure  ,RepairsAlterations&MtceOfBldgs,BA05,DDM - Electrical                        ,"3,188.44",30/05/2014,REV,DATA TECHNIQUES               
1459,Central Services,SupS Facilities,Corporate Services Buildings,E02240,Premises Related Expenditure  ,RepairsAlterations&MtceOfBldgs,BA03,DDM - Mechanical                        ,"3,000.00",18/06/2014,REV,EUROPA NATIONWIDE TECH.SER.LTD
1460,Central Services,SupS Facilities,Corporate Services Buildings,E02240,Premises Related Expenditure  ,RepairsAlterations&MtceOfBldgs,BA03,DDM - Mechanical                        ,"1,231.23",23/05/2014,REV,EUROPA NATIONWIDE TECH.SER.LTD
1461,Central Services,SupS Facilities,Corporate Services Buildings,E02240,Premises Related Expenditure  ,RepairsAlterations&MtceOfBldgs,BA03,DDM - Mechanical                        ,"3,875.61",15/05/2014,REV,EUROPA NATIONWIDE TECH.SER.LTD
1462,Central Services,SupS Facilities,Corporate Services Buildings,E02240,Premises Related Expenditure  ,RepairsAlterations&MtceOfBldgs,BA03,DDM - Mechanical                        ,"2,682.61",18/06/2014,REV,EUROPA NATIONWIDE TECH.SER.LTD
1463,Central Services,SupS Facilities,Corporate Services Buildings,E02240,Premises Related Expenditure  ,RepairsAlterations&MtceOfBldgs,BA05,DDM - Electrical                        ,"5,077.67",14/04/2014,REV,EUROPA NATIONWIDE TECH.SER.LTD
1464,Central Services,SupS Facilities,Corporate Services Buildings,E02240,Premises Related Expenditure  ,RepairsAlterations&MtceOfBldgs,BA29,Build Maint Mgt Fees                    ,"2,518.61",15/05/2014,REV,EUROPA NATIONWIDE TECH.SER.LTD
1838,Central Services,SupS Facilities,Corporate Services Buildings,E02240,Premises Related Expenditure  ,RepairsAlterations&MtceOfBldgs,BA29,Build Maint Mgt Fees                    ,601.5,31/05/2014,REV,EDE'S (U.K.) LTD              
2010,Central Services,SupS Facilities,Corporate Services Buildings,E02240,Premises Related Expenditure  ,Energy Costs                  ,BB03,Gas (incl. Butane)                      ,"5,009.90",04/06/2014,REV,GAZPROM MARKETING&TRADING LTD 
2011,Central Services,SupS Facilities,Corporate Services Buildings,E02240,Premises Related Expenditure  ,Energy Costs                  ,BB03,Gas (incl. Butane)                      ,"8,624.63",13/05/2014,REV,GAZPROM MARKETING&TRADING LTD 
3821,Central Services,SupS Facilities,Corporate Services Buildings,E02240,Premises Related Expenditure  ,Energy Costs                  ,BB02,Electricity                             ,507.42,02/06/2014,REV,SCOTTISHPOWER                 
3822,Central Services,SupS Facilities,Corporate Services Buildings,E02240,Premises Related Expenditure  ,Energy Costs                  ,BB02,Electricity                             ,"15,208.33",06/06/2014,REV,SCOTTISHPOWER                 
3823,Central Services,SupS Facilities,Corporate Services Buildings,E02240,Premises Related Expenditure  ,Energy Costs                  ,BB02,Electricity                             ,518.79,13/05/2014,REV,SCOTTISHPOWER                 
3824,Central Services,SupS Facilities,Corporate Services Buildings,E02240,Premises Related Expenditure  ,Energy Costs                  ,BB02,Electricity                             ,"11,001.30",07/05/2014,REV,SCOTTISHPOWER                 
4115,Central Services,SupS Facilities,Corporate Services Buildings,E02240,Premises Related Expenditure  ,Water Services                ,BE01,Use of Water (Metered)                  ,"1,118.92",30/05/2014,REV,SUTTON AND EAST SURREY WATER  
1465,Childrens & Education Services,Strategic Management,CSF Buildings,E02256,Premises Related Expenditure  ,RepairsAlterations&MtceOfBldgs,BA03,DDM - Mechanical                        ,501.6,30/05/2014,REV,EUROPA NATIONWIDE TECH.SER.LTD
3254,Childrens & Education Services,Strategic Management,CSF Buildings,E02256,Premises Related Expenditure  ,RepairsAlterations&MtceOfBldgs,BA01,DDM - General Building                  ,535.14,28/05/2014,REV,NETWORK BLINDS LIMITED        
347,Adult Social Care,OP 65 & Over Day Care,Pollards Hill Day Centre,E02270,Premises Related Expenditure  ,Cleaning and Domestic Supplies,BH03,Cleaning Services                       ,"3,093.61",01/06/2014,REV,BIRKIN CLEANING SERVICES LTD  
348,Adult Social Care,OP 65 & Over Day Care,Pollards Hill Day Centre,E02270,Premises Related Expenditure  ,Cleaning and Domestic Supplies,BH03,Cleaning Services                       ,"1,492.52",01/06/2014,REV,BIRKIN CLEANING SERVICES LTD  
349,Adult Social Care,OP 65 & Over Day Care,Pollards Hill Day Centre,E02270,Premises Related Expenditure  ,Cleaning and Domestic Supplies,BH03,Cleaning Services                       ,"1,222.20",01/06/2014,REV,BIRKIN CLEANING SERVICES LTD  
350,Adult Social Care,OP 65 & Over Day Care,Pollards Hill Day Centre,E02270,Premises Related Expenditure  ,Cleaning and Domestic Supplies,BH03,Cleaning Services                       ,"1,239.08",01/06/2014,REV,BIRKIN CLEANING SERVICES LTD  
351,Adult Social Care,OP 65 & Over Day Care,Pollards Hill Day Centre,E02270,Premises Related Expenditure  ,Cleaning and Domestic Supplies,BH03,Cleaning Services                       ,"1,673.61",01/06/2014,REV,BIRKIN CLEANING SERVICES LTD  
352,Adult Social Care,OP 65 & Over Day Care,Pollards Hill Day Centre,E02270,Premises Related Expenditure  ,Cleaning and Domestic Supplies,BH03,Cleaning Services                       ,"6,596.17",01/06/2014,REV,BIRKIN CLEANING SERVICES LTD  
353,Adult Social Care,OP 65 & Over Day Care,Pollards Hill Day Centre,E02270,Premises Related Expenditure  ,Cleaning and Domestic Supplies,BH03,Cleaning Services                       ,835.04,01/06/2014,REV,BIRKIN CLEANING SERVICES LTD  
354,Adult Social Care,OP 65 & Over Day Care,Pollards Hill Day Centre,E02270,Premises Related Expenditure  ,Cleaning and Domestic Supplies,BH03,Cleaning Services                       ,"1,421.80",01/06/2014,REV,BIRKIN CLEANING SERVICES LTD  
355,Adult Social Care,OP 65 & Over Day Care,Pollards Hill Day Centre,E02270,Premises Related Expenditure  ,Cleaning and Domestic Supplies,BH03,Cleaning Services                       ,"1,540.02",01/06/2014,REV,BIRKIN CLEANING SERVICES LTD  
2114,Adult Social Care,OP 65 & Over Day Care,Pollards Hill Day Centre,E02270,Premises Related Expenditure  ,Cleaning and Domestic Supplies,BH01,Cleaning Materials                      ,504,02/06/2014,REV,GREENHAM TRADING LTD          
1466,Cultural Env Reg&Plan Services,Parks & Open Spaces,E & R Buildings,E02344,Premises Related Expenditure  ,RepairsAlterations&MtceOfBldgs,BA03,DDM - Mechanical                        ,502.88,15/05/2014,REV,EUROPA NATIONWIDE TECH.SER.LTD
1467,Cultural Env Reg&Plan Services,Parks & Open Spaces,E & R Buildings,E02344,Premises Related Expenditure  ,RepairsAlterations&MtceOfBldgs,BA03,DDM - Mechanical                        ,525.06,15/05/2014,REV,EUROPA NATIONWIDE TECH.SER.LTD
1367,Adult Social Care,PS u65 Day Care,C & H Buildings,E02345,Premises Related Expenditure  ,RepairsAlterations&MtceOfBldgs,BA01,DDM - General Building                  ,861.19,19/06/2014,REV,CHUBB FIRE LIMITED            
1429,Adult Social Care,PS u65 Day Care,C & H Buildings,E02345,Premises Related Expenditure  ,RepairsAlterations&MtceOfBldgs,BA06,Repairs & Maintenance General           ,"1,945.00",17/06/2014,REV,SYMES GARDEN SERVICES         
1468,Adult Social Care,PS u65 Day Care,C & H Buildings,E02345,Premises Related Expenditure  ,RepairsAlterations&MtceOfBldgs,BA05,DDM - Electrical                        ,"3,453.26",14/04/2014,REV,EUROPA NATIONWIDE TECH.SER.LTD
1469,Cultural Env Reg&Plan Services,Parks & Open Spaces,Leisure Buildings,E02350,Premises Related Expenditure  ,RepairsAlterations&MtceOfBldgs,BA05,DDM - Electrical                        ,"4,264.86",14/04/2014,REV,EUROPA NATIONWIDE TECH.SER.LTD
1470,Cultural Env Reg&Plan Services,Parks & Open Spaces,Leisure Buildings,E02350,Premises Related Expenditure  ,RepairsAlterations&MtceOfBldgs,BA05,DDM - Electrical                        ,"1,220.16",14/04/2014,REV,EUROPA NATIONWIDE TECH.SER.LTD
3602,Central Services,SupS DOF,Director of Corporate Services,E04060,Supplies & Services           ,Expenses                      ,DH02,Conferences                             ,695,16/06/2014,REV,REDACTED
4861,Central Services,SupS DOF,Director of Corporate Services,E04060,Supplies & Services           ,Services                      ,DF11,Counsel's Fees                          ,508,31/03/2014,REV,WRAGGE & CO LLP               
1871,Central Services,SupS DOF,AD RESOURCES,E04061,Supplies & Services           ,Services                      ,DF58,Audit Fee                               ,"3,258.00",04/06/2014,REV,ERNST & YOUNG LLP             
3546,Central Services,SupS DOF,AD RESOURCES,E04061,Supplies & Services           ,Services                      ,DF03,CONSULTANTS                             ,"6,670.00",03/06/2014,REV,PUBLIC SECTOR CONSULTANTS     
3547,Central Services,SupS DOF,AD RESOURCES,E04061,Supplies & Services           ,Services                      ,DF03,CONSULTANTS                             ,"9,200.00",02/05/2014,REV,PUBLIC SECTOR CONSULTANTS     
3596,Central Services,SupS DOF,AD RESOURCES,E04061,Supplies & Services           ,Comms and Computing           ,DG50,Other IT Expenditure                    ,"7,030.00",22/05/2014,REV,REAL ASSET MANAGEMENT PLC     
2477,Central Services,SupS  Risk and Insurance,Insurance Premiums & Funding,E05161,Supplies & Services           ,Services                      ,DF74,Insurance Premiums                      ,"104,960.00",10/04/2014,REV,JLT SPECIALTY LIMITED         
2478,Central Services,SupS  Risk and Insurance,Insurance Premiums & Funding,E05161,Supplies & Services           ,Services                      ,DF74,Insurance Premiums                      ,"13,510.72",10/04/2014,REV,JLT SPECIALTY LIMITED         
4875,Central Services,SupS  Risk and Insurance,Insurance Premiums & Funding,E05161,Supplies & Services           ,Services                      ,DF74,Insurance Premiums                      ,"78,057.48",17/04/2014,REV,ZURICH INSURANCE COMPANY      
1872,Central Services,SupS Corporate Finance,Corporate Accountancy,E06209,Supplies & Services           ,Services                      ,DF58,Audit Fee                               ,"54,400.00",29/04/2014,REV,ERNST & YOUNG LLP             
3517,Central Services,SupS Corporate Finance,Corporate Accountancy,E06209,Supplies & Services           ,Grants and Subscriptions      ,DJ04,Subscriptions                           ,"3,000.00",18/06/2014,REV,PRICEWATERHOUSE COOPERS       
166,Central Services,SupS Corporate Finance,Accounts Payable,E06212,Supplies & Services           ,Comms and Computing           ,DG07,COMPUTER SOFTWARE                       ,"3,750.00",15/05/2014,REV,ASH INFORMATION SYSTEMS LTD   
3591,Central Services,SupS Strategic Finance,Treasury & Insurance,E06222,Employees                     ,Direct Employee Expenses      ,AA17,Agency Staff & Casual Paymts            ,"2,350.00",31/03/2014,REV,REDACTED
3592,Central Services,SupS Strategic Finance,Treasury & Insurance,E06222,Employees                     ,Direct Employee Expenses      ,AA17,Agency Staff & Casual Paymts            ,"4,700.00",27/05/2014,REV,REDACTED
234,Central Services,GENERATED ACCOUNT,Parking Cash Collect'n Contrct,E06225,Third Party Payments          ,Private Contractors           ,EH02,Miscellaneous Hired Services            ,"1,015.40",30/05/2014,REV,BANKING AUTOMATION LTD        
235,Central Services,GENERATED ACCOUNT,Parking Cash Collect'n Contrct,E06225,Third Party Payments          ,Private Contractors           ,EH02,Miscellaneous Hired Services            ,"10,931.20",30/05/2014,REV,BANKING AUTOMATION LTD        
3057,Central Services,GENERATED ACCOUNT,Establishments' Cash Collect'n,E06226,Third Party Payments          ,Private Contractors           ,EH02,Miscellaneous Hired Services            ,"3,501.61",15/05/2014,REV,LOOMIS UK LTD                 
3593,Central Services,SupS DOF,Service Accountancy,E06227,Employees                     ,Direct Employee Expenses      ,AA17,Agency Staff & Casual Paymts            ,"5,520.00",17/06/2014,REV,REDACTED
3594,Central Services,SupS DOF,Service Accountancy,E06227,Employees                     ,Direct Employee Expenses      ,AA17,Agency Staff & Casual Paymts            ,"5,060.00",27/05/2014,REV,REDACTED
3595,Central Services,SupS DOF,Service Accountancy,E06227,Employees                     ,Direct Employee Expenses      ,AA17,Agency Staff & Casual Paymts            ,"2,300.00",01/04/2014,REV,REDACTED
817,Central Services,SupS Legal,AD CORPORATE GOVERNANCE,E10279,Supplies & Services           ,Equip Furniture/Materials     ,DA09,Equip-Purchases                         ,"2,465.00",18/06/2014,REV,CANFORD AUDIO PLC             
2995,Central Services,SupS Legal,Legal Services,E10282,Supplies & Services           ,Services                      ,DF28,Court Fees                              ,"3,810.00",06/06/2014,REV,REDACTED
2739,Central Services,Land Charges,Land Charges,E10283,Supplies & Services           ,Services                      ,DF11,Counsel's fees                          ,"2,822.02",24/06/2014,REV,LOCAL GOVERNMENT ASSOCIATION  
263,Central Services,Conducting elections,Election Expenses,E10284,Supplies & Services           ,Equip Furniture/Materials     ,DA03,Hire of Equipment                       ,738.5,22/05/2014,REV,BARKERS MARQUEE HIRE LTD      
1839,Central Services,Conducting elections,Election Expenses,E10284,Transport Related Expenditure ,Contract Hire and Op Leasing  ,CC01,Hired Transport                         ,"8,941.05",31/05/2014,REV,EDE'S (U.K.) LTD              
1896,Central Services,Conducting elections,Election Expenses,E10284,Supplies & Services           ,Equip Furniture/Materials     ,DA03,Hire of Equipment                       ,"2,731.25",26/05/2014,REV,EVENT HIRE COMPANY            
3393,Central Services,Conducting elections,Election Expenses,E10284,Supplies & Services           ,Equip Furniture/Materials     ,DA09,Equip-Purchases                         ,"1,470.00",19/05/2014,REV,PAKFLATT (UK) LTD             
3440,Central Services,Conducting elections,Election Expenses,E10284,Supplies & Services           ,Equip Furniture/Materials     ,DA03,Hire of Equipment                       ,850,27/05/2014,REV,PENWORTHAM STAGING            
3744,Central Services,Registration of electors,Electoral Registration,E10285,Supplies & Services           ,Comms and Computing           ,DG04,Postage - General                       ,"2,255.82",26/05/2014,REV,ROYAL MAIL GROUP LTD          
3745,Central Services,Registration of electors,Electoral Registration,E10285,Supplies & Services           ,Comms and Computing           ,DG04,Postage - General                       ,"1,988.04",02/06/2014,REV,ROYAL MAIL GROUP LTD          
3746,Central Services,Registration of electors,Electoral Registration,E10285,Supplies & Services           ,Comms and Computing           ,DG04,Postage - General                       ,"1,052.18",28/04/2014,REV,ROYAL MAIL GROUP LTD          
2570,Central Services,SupS Legal,Shared Legal Service,E10288,Supplies & Services           ,Services                      ,DF95,Services from Provider                  ,525.1,07/04/2014,REV,KENT COUNTY COUNCIL           
4876,Central Services,SupS Legal,Shared Legal Service,E10288,Supplies & Services           ,Comms and Computing           ,DG50,Other IT Expenditure                    ,"5,000.00",25/06/2014,REV,ZYLPHA LIMITED                
85,Central Services,SupS Legal,Richmond Legal,E10289,Supplies & Services           ,Services                      ,DF11,Counsel's Fees                          ,610,09/05/2014,REV,REDACTED
277,Central Services,SupS Legal,Richmond Legal,E10289,Supplies & Services           ,Services                      ,DF11,Counsel's Fees                          ,"1,675.00",16/06/2014,REV,REDACTED
290,Central Services,SupS Legal,Richmond Legal,E10289,Supplies & Services           ,Services                      ,DF11,Counsel's Fees                          ,"1,007.50",09/04/2014,REV,REDACTED
2416,Central Services,SupS Legal,Richmond Legal,E10289,Supplies & Services           ,Services                      ,DF11,Counsel's Fees                          ,875,19/05/2014,REV,REDACTED
2483,Central Services,SupS Legal,Richmond Legal,E10289,Supplies & Services           ,Services                      ,DF11,Counsel's Fees                          ,"1,050.00",15/05/2014,REV,REDACTED
3833,Central Services,SupS Legal,Richmond Legal,E10289,Supplies & Services           ,Services                      ,DF11,Counsel's Fees                          ,600,28/05/2014,REV,REDACTED
3870,Central Services,SupS Legal,Richmond Legal,E10289,Supplies & Services           ,Services                      ,DF95,Services from Provider                  ,"4,512.00",30/04/2014,REV,SHARPE PRITCHARD SOLICITORS   
3871,Central Services,SupS Legal,Richmond Legal,E10289,Supplies & Services           ,Services                      ,DF95,Services from Provider                  ,"2,017.20",31/05/2014,REV,SHARPE PRITCHARD SOLICITORS   
3872,Central Services,SupS Legal,Richmond Legal,E10289,Supplies & Services           ,Services                      ,DF95,Services from Provider                  ,"22,250.10",28/02/2014,REV,SHARPE PRITCHARD SOLICITORS   
3928,Central Services,SupS Legal,Richmond Legal,E10289,Supplies & Services           ,Services                      ,DF11,Counsel's Fees                          ,"3,000.00",02/04/2014,REV,REDACTED
3929,Central Services,SupS Legal,Richmond Legal,E10289,Supplies & Services           ,Services                      ,DF11,Counsel's Fees                          ,500,02/04/2014,REV,REDACTED
3931,Central Services,SupS Legal,Richmond Legal,E10289,Supplies & Services           ,Services                      ,DF11,Counsel's Fees                          ,"16,500.00",13/05/2014,REV,REDACTED
3932,Central Services,SupS Legal,Richmond Legal,E10289,Supplies & Services           ,Services                      ,DF11,Counsel's Fees                          ,"12,000.00",04/04/2014,REV,REDACTED
4683,Central Services,SupS Legal,Richmond Legal,E10289,Supplies & Services           ,Services                      ,DF09,Miscellaneous Fees                      ,770.23,31/03/2014,REV,WINCANTON RECORDS MANAGEMENT  
4877,Central Services,SupS Legal,K&S Shared Legal                        ,E10291,Supplies & Services           ,Comms and Computing           ,DG50,Other IT Expenditure                    ,"5,000.00",25/06/2014,REV,ZYLPHA LIMITED                
1129,Central Services,SupS Legal,Kingston Legal                          ,E10292,Supplies & Services           ,Services                      ,DF95,Services from Provider                  ,"1,560.00",13/05/2014,REV,CEDR                          
2676,Central Services,SupS Legal,Kingston Legal                          ,E10292,Supplies & Services           ,Services                      ,DF11,Counsel's Fees                          ,"1,355.00",06/05/2014,REV,REDACTED
3058,Central Services,SupS Legal,Kingston Legal                          ,E10292,Supplies & Services           ,Services                      ,DF11,Counsel's Fees                          ,"1,300.00",30/05/2014,REV,REDACTED
3873,Central Services,SupS Legal,Kingston Legal                          ,E10292,Supplies & Services           ,Services                      ,DF11,Counsel's Fees                          ,"1,500.00",12/06/2014,REV,REDACTED
1124,Central Services,SupS Legal,Sutton Legal                            ,E10293,Supplies & Services           ,Services                      ,DF14,Doctors and Other Fees                  ,"4,447.50",20/06/2014,REV,C.A.T.T. PARTNERSHIP          
1131,Central Services,SupS Legal,Sutton Legal                            ,E10293,Supplies & Services           ,Services                      ,DF14,Doctors and Other Fees                  ,"2,674.60",20/05/2014,REV,CF SOCIAL WORK                
1537,Central Services,SupS Legal,Sutton Legal                            ,E10293,Supplies & Services           ,Services                      ,DF95,Services from Provider                  ,785,29/05/2014,REV,CMS CAMERON MCKENNA LLP       
1710,Central Services,SupS Legal,Sutton Legal                            ,E10293,Supplies & Services           ,Services                      ,DF11,Counsel's Fees                          ,736.25,11/04/2014,REV,REDACTED
1813,Central Services,SupS Legal,Sutton Legal                            ,E10293,Supplies & Services           ,Services                      ,DF11,Counsel's Fees                          ,600,09/05/2014,REV,REDACTED
1814,Central Services,SupS Legal,Sutton Legal                            ,E10293,Supplies & Services           ,Services                      ,DF11,Counsel's Fees                          ,570,09/05/2014,REV,REDACTED
1815,Central Services,SupS Legal,Sutton Legal                            ,E10293,Supplies & Services           ,Services                      ,DF11,Counsel's Fees                          ,570,09/05/2014,REV,REDACTED
1816,Central Services,SupS Legal,Sutton Legal                            ,E10293,Supplies & Services           ,Services                      ,DF11,Counsel's Fees                          ,570,11/06/2014,REV,REDACTED
1817,Central Services,SupS Legal,Sutton Legal                            ,E10293,Supplies & Services           ,Services                      ,DF11,Counsel's Fees                          ,712.5,09/05/2014,REV,REDACTED
1818,Central Services,SupS Legal,Sutton Legal                            ,E10293,Supplies & Services           ,Services                      ,DF11,Counsel's Fees                          ,855,09/05/2014,REV,REDACTED
1971,Central Services,SupS Legal,Sutton Legal                            ,E10293,Supplies & Services           ,Services                      ,DF95,Services from Provider                  ,950,30/01/2014,REV,FREEMANS SOLICITORS           
1972,Central Services,SupS Legal,Sutton Legal                            ,E10293,Supplies & Services           ,Services                      ,DF95,Services from Provider                  ,"4,750.00",30/01/2014,REV,FREEMANS SOLICITORS           
1973,Central Services,SupS Legal,Sutton Legal                            ,E10293,Supplies & Services           ,Services                      ,DF95,Services from Provider                  ,"6,525.00",30/01/2014,REV,FREEMANS SOLICITORS           
2378,Central Services,SupS Legal,Sutton Legal                            ,E10293,Supplies & Services           ,Services                      ,DF11,Counsel's Fees                          ,570,09/05/2014,REV,REDACTED
2987,Central Services,SupS Legal,Sutton Legal                            ,E10293,Supplies & Services           ,Services                      ,DF11,Counsel's Fees                          ,807.5,27/02/2014,REV,REDACTED
3431,Central Services,SupS Legal,Sutton Legal                            ,E10293,Supplies & Services           ,Services                      ,DF11,Counsel's Fees                          ,"1,660.00",20/05/2014,REV,REDACTED
3874,Central Services,SupS Legal,Sutton Legal                            ,E10293,Supplies & Services           ,Services                      ,DF11,Counsel's Fees                          ,"1,500.00",13/05/2014,REV,REDACTED
3957,Central Services,SupS Legal,Sutton Legal                            ,E10293,Supplies & Services           ,Services                      ,DF14,Doctors and Other Fees                  ,"4,000.00",04/06/2014,REV,S LONDON & MAUDSLEY (NHS)TRUST
4230,Central Services,SupS Legal,Sutton Legal                            ,E10293,Supplies & Services           ,Services                      ,DF95,Services from Provider                  ,"7,834.24",27/03/2014,REV,SYMBOL FAMILY SUPPORT SERVICES
4231,Central Services,SupS Legal,Sutton Legal                            ,E10293,Supplies & Services           ,Services                      ,DF95,Services from Provider                  ,"1,000.00",27/03/2014,REV,SYMBOL FAMILY SUPPORT SERVICES
4863,Central Services,SupS Legal,Sutton Legal                            ,E10293,Supplies & Services           ,Services                      ,DF14,Doctors and Other Fees                  ,"1,813.87",03/04/2014,REV,REDACTED
1819,Central Services,SupS Legal,Achieving for Children (AFC),E10295,Supplies & Services           ,Services                      ,DF14,Doctors and Other Fees                  ,"1,503.60",18/03/2014,REV,REDACTED
1904,Central Services,SupS Legal,Achieving for Children (AFC),E10295,Supplies & Services           ,Services                      ,DF14,Doctors and Other Fees                  ,"2,585.00",22/05/2014,REV,SECECETRA EXPERT SERVICES     
1939,Central Services,SupS Legal,Achieving for Children (AFC),E10295,Supplies & Services           ,Services                      ,DF11,Counsel's Fees                          ,"3,900.00",09/05/2014,REV,REDACTED
2164,Central Services,SupS Legal,Achieving for Children (AFC),E10295,Supplies & Services           ,Services                      ,DF11,Counsel's Fees                          ,520,15/05/2014,REV,REDACTED
2465,Central Services,SupS Legal,Achieving for Children (AFC),E10295,Supplies & Services           ,Services                      ,DF11,Counsel's Fees                          ,520,17/06/2014,REV,REDACTED
3939,Central Services,SupS Legal,Achieving for Children (AFC),E10295,Supplies & Services           ,Services                      ,DF11,Counsel's Fees                          ,930,30/05/2014,REV,REDACTED
3940,Central Services,SupS Legal,Achieving for Children (AFC),E10295,Supplies & Services           ,Services                      ,DF11,Counsel's Fees                          ,520,25/04/2014,REV,REDACTED
4491,Central Services,SupS Legal,Achieving for Children (AFC),E10295,Supplies & Services           ,Services                      ,DF11,Counsel's Fees                          ,"2,000.00",19/05/2014,REV,REDACTED
87,Central Services,SupS IT,Corp Saving-Print Strategy,E14359,Supplies & Services           ,Equip Furniture/Materials     ,DA77,Photocopier Rental                      ,"29,750.00",30/05/2014,REV,ALTODIGITAL NETWORKS LTD      
88,Central Services,SupS IT,Corp Saving-Print Strategy,E14359,Supplies & Services           ,Equip Furniture/Materials     ,DA77,Photocopier Rental                      ,"5,115.66",30/05/2014,REV,ALTODIGITAL NETWORKS LTD      
89,Central Services,SupS IT,Corp Saving-Print Strategy,E14359,Supplies & Services           ,Prntng Stnry Gen Off Exp      ,DE06,MULTI-FUNCTIONAL PRINTERS               ,"39,035.77",30/05/2014,REV,ALTODIGITAL NETWORKS LTD      
3289,Central Services,SupS IT,BI IT Projects,E14360,Employees                     ,Direct Employee Expenses      ,AA17,Agency Staff & Casual Paymts            ,"1,355.47",02/06/2014,REV,NUMBER 10 INTERIM LTD         
3290,Central Services,SupS IT,BI IT Projects,E14360,Employees                     ,Direct Employee Expenses      ,AA17,Agency Staff & Casual Paymts            ,"1,350.09",19/05/2014,REV,NUMBER 10 INTERIM LTD         
3291,Central Services,SupS IT,BI IT Projects,E14360,Employees                     ,Direct Employee Expenses      ,AA17,Agency Staff & Casual Paymts            ,"1,500.10",23/05/2014,REV,NUMBER 10 INTERIM LTD         
3504,Central Services,SupS IT,BI IT Projects,E14360,Employees                     ,Direct Employee Expenses      ,AA17,Agency Staff & Casual Paymts            ,"3,000.00",06/05/2014,REV,REDACTED
1719,Central Services,SupS IT,AD I&T,E14363,Employees                     ,Direct Employee Expenses      ,AA17,Agency Staff & Casual Paymts            ,"1,650.00",29/04/2014,REV,DGH RECRUITMENT LTD           
1720,Central Services,SupS IT,AD I&T,E14363,Employees                     ,Direct Employee Expenses      ,AA17,Agency Staff & Casual Paymts            ,"2,062.50",21/05/2014,REV,DGH RECRUITMENT LTD           
1721,Central Services,SupS IT,AD I&T,E14363,Employees                     ,Direct Employee Expenses      ,AA17,Agency Staff & Casual Paymts            ,825,11/06/2014,REV,DGH RECRUITMENT LTD           
1722,Central Services,SupS IT,AD I&T,E14363,Employees                     ,Direct Employee Expenses      ,AA17,Agency Staff & Casual Paymts            ,"2,062.50",24/06/2014,REV,DGH RECRUITMENT LTD           
1723,Central Services,SupS IT,AD I&T,E14363,Employees                     ,Direct Employee Expenses      ,AA17,Agency Staff & Casual Paymts            ,"1,500.00",22/04/2014,REV,DGH RECRUITMENT LTD           
1724,Central Services,SupS IT,AD I&T,E14363,Employees                     ,Direct Employee Expenses      ,AA17,Agency Staff & Casual Paymts            ,"1,875.00",17/06/2014,REV,DGH RECRUITMENT LTD           
1725,Central Services,SupS IT,AD I&T,E14363,Employees                     ,Direct Employee Expenses      ,AA17,Agency Staff & Casual Paymts            ,"1,500.00",29/04/2014,REV,DGH RECRUITMENT LTD           
1726,Central Services,SupS IT,AD I&T,E14363,Employees                     ,Direct Employee Expenses      ,AA17,Agency Staff & Casual Paymts            ,"1,875.00",24/06/2014,REV,DGH RECRUITMENT LTD           
1727,Central Services,SupS IT,AD I&T,E14363,Employees                     ,Direct Employee Expenses      ,AA17,Agency Staff & Casual Paymts            ,"1,650.00",22/04/2014,REV,DGH RECRUITMENT LTD           
1728,Central Services,SupS IT,AD I&T,E14363,Employees                     ,Direct Employee Expenses      ,AA17,Agency Staff & Casual Paymts            ,"1,875.00",11/06/2014,REV,DGH RECRUITMENT LTD           
1729,Central Services,SupS IT,AD I&T,E14363,Employees                     ,Direct Employee Expenses      ,AA17,Agency Staff & Casual Paymts            ,"1,500.00",04/06/2014,REV,DGH RECRUITMENT LTD           
2003,Central Services,SupS IT,AD I&T,E14363,Employees                     ,Direct Employee Expenses      ,AA17,Agency Staff & Casual Paymts            ,"11,305.00",23/06/2014,REV,GATENBY SANDERSON             
2004,Central Services,SupS IT,AD I&T,E14363,Employees                     ,Direct Employee Expenses      ,AA17,Agency Staff & Casual Paymts            ,"8,627.50",28/05/2014,REV,REDACTED
192,Central Services,SupS IT,Systems & Projects,E14366,Employees                     ,Direct Employee Expenses      ,AA17,Agency Staff & Casual Paymts            ,"1,375.00",13/06/2014,REV,REDACTED
193,Central Services,SupS IT,Systems & Projects,E14366,Employees                     ,Direct Employee Expenses      ,AA17,Agency Staff & Casual Paymts            ,"1,100.00",30/05/2014,REV,REDACTED
194,Central Services,SupS IT,Systems & Projects,E14366,Employees                     ,Direct Employee Expenses      ,AA17,Agency Staff & Casual Paymts            ,"1,375.00",23/05/2014,REV,REDACTED
195,Central Services,SupS IT,Systems & Projects,E14366,Employees                     ,Direct Employee Expenses      ,AA17,Agency Staff & Casual Paymts            ,"1,100.00",09/05/2014,REV,REDACTED
196,Central Services,SupS IT,Systems & Projects,E14366,Employees                     ,Direct Employee Expenses      ,AA17,Agency Staff & Casual Paymts            ,"1,375.00",06/06/2014,REV,REDACTED
2392,Central Services,SupS IT,Systems & Projects,E14366,Supplies & Services           ,Comms and Computing           ,DG02,Software Licences                       ,"2,717.00",09/06/2014,REV,HOMETRACK DATA SYSTEMS LTD    
2681,Central Services,SupS IT,Systems & Projects,E14366,Employees                     ,Direct Employee Expenses      ,AA17,Agency Staff & Casual Paymts            ,"5,942.80",11/06/2014,REV,REDACTED
2682,Central Services,SupS IT,Systems & Projects,E14366,Employees                     ,Direct Employee Expenses      ,AA17,Agency Staff & Casual Paymts            ,"5,942.80",16/05/2014,REV,REDACTED
3292,Central Services,SupS IT,Systems & Projects,E14366,Employees                     ,Direct Employee Expenses      ,AA17,Agency Staff & Casual Paymts            ,"1,285.80",13/06/2014,REV,NUMBER 10 INTERIM LTD         
3293,Central Services,SupS IT,Systems & Projects,E14366,Employees                     ,Direct Employee Expenses      ,AA17,Agency Staff & Casual Paymts            ,942.92,02/06/2014,REV,NUMBER 10 INTERIM LTD         
3354,Central Services,SupS IT,Systems & Projects,E14366,Supplies & Services           ,Comms and Computing           ,DG65,Application Licences                    ,"79,779.52",01/04/2014,REV,OLM SYSTEMS                   
3355,Central Services,SupS IT,Systems & Projects,E14366,Supplies & Services           ,Comms and Computing           ,DG65,Application Licences                    ,-797.8,16/06/2014,REV,OLM SYSTEMS                   
3563,Central Services,SupS IT,Systems & Projects,E14366,Supplies & Services           ,Comms and Computing           ,DG02,Software Licences                       ,"1,905.91",31/05/2014,REV,CIVICA UK LIMITED             
478,Central Services,SupS IT,Operations & Telecomms,E14367,Supplies & Services           ,Comms and Computing           ,DG54,Corporate Telephones                    ,"45,506.55",28/05/2014,REV,BRITISH TELECOMMUNICATIONS PLC
1483,Central Services,SupS IT,Operations & Telecomms,E14367,Supplies & Services           ,Comms and Computing           ,DG15,Network Maintenance                     ,581.8,11/05/2014,REV,CLEAR SKIES SOFTWARE          
1545,Central Services,SupS IT,Operations & Telecomms,E14367,Supplies & Services           ,Comms and Computing           ,DG54,Corporate Telephones                    ,"2,493.23",02/06/2014,REV,COLT TELECOMMUNICATIONS       
1874,Central Services,SupS IT,Operations & Telecomms,E14367,Employees                     ,Direct Employee Expenses      ,AA17,Agency Staff & Casual Paymts            ,"4,830.00",30/05/2014,REV,REDACTED
2740,Central Services,SupS IT,Operations & Telecomms,E14367,Supplies & Services           ,Comms and Computing           ,DG15,Network Maintenance                     ,"74,708.00",02/06/2014,REV,LONDON GRID FOR LEARNING TRUST
3801,Central Services,SupS IT,Operations & Telecomms,E14367,Supplies & Services           ,Comms and Computing           ,DG15,Network Maintenance                     ,875,28/05/2014,REV,SCALABLE COMMUNICATIONS PLC   
3802,Central Services,SupS IT,Operations & Telecomms,E14367,Supplies & Services           ,Comms and Computing           ,DG15,Network Maintenance                     ,"4,269.00",12/06/2014,REV,SCALABLE COMMUNICATIONS PLC   
4297,Central Services,SupS IT,Operations & Telecomms,E14367,Supplies & Services           ,Comms and Computing           ,DG54,Corporate Telephones                    ,"6,045.66",04/06/2014,REV,T MOBILE (UK)                 
4296,Central Services,SupS IT,Distributed Services,E14368,Supplies & Services           ,Comms and Computing           ,DG64,Software Licences - Distrib             ,"1,000.00",08/05/2014,REV,TIMEWATCH PLC                 
1427,Central Services,SupS IT,Corp Saving-IT Consolidation,E14370,Premises Related Expenditure  ,RepairsAlterations&MtceOfBldgs,BA01,DDM - General Building                  ,"4,285.00",12/06/2014,REV,SALTASH ENTERPRISES LTD       
1698,Central Services,SupS IT,No longer used,E14371,Employees                     ,Direct Employee Expenses      ,AA17,Agency Staff & Casual Paymts            ,"2,060.00",06/05/2014,REV,REDACTED
1699,Central Services,SupS IT,No longer used,E14371,Employees                     ,Direct Employee Expenses      ,AA17,Agency Staff & Casual Paymts            ,"1,648.00",22/04/2014,REV,REDACTED
1700,Central Services,SupS IT,No longer used,E14371,Employees                     ,Direct Employee Expenses      ,AA17,Agency Staff & Casual Paymts            ,"2,060.00",14/04/2014,REV,REDACTED
3603,Central Services,SupS IT,No longer used,E14371,Supplies & Services           ,Services                      ,DF03,Consultants                             ,"2,975.00",31/03/2014,REV,REDQUADRANT LTD               
4482,Central Services,SupS IT,No longer used,E14371,Supplies & Services           ,Services                      ,DF03,Consultants                             ,"9,882.50",06/05/2014,REV,V4 SERVICES LIMITED           
4483,Central Services,SupS IT,No longer used,E14371,Supplies & Services           ,Services                      ,DF03,Consultants                             ,"10,700.00",04/06/2014,REV,V4 SERVICES LIMITED           
1475,Central Services,SupS IT,Business Systems - Deptl Supt,E14377,Supplies & Services           ,Comms and Computing           ,DG07,Computer Software                       ,"3,350.00",28/01/2014,REV,CISILION LTD                  
2494,Cultural Env Reg&Plan Services,Mgt & Support (Env),ES Support & Development,G00070,Supplies & Services           ,Comms and Computing           ,DG50,Other IT Expenditure                    ,"1,150.00",10/06/2014,REV,KEEP BRITAIN TIDY             
1696,Cultural Env Reg&Plan Services,BC Regs & Other not split,HoS - PP&D                              ,G00111,Supplies & Services           ,Services                      ,DF11,Counsel's Fees                          ,"1,250.00",01/05/2014,REV,REDACTED
3173,Highways & Transport Services,Hwys/Rds (struct) not split,C'way & F'way Mtce,G00121,Supplies & Services           ,Services                      ,DF03,Consultants                             ,"2,000.00",01/06/2014,REV,METIS CONSULTANTS LIMITED     
3174,Highways & Transport Services,Hwys/Rds (struct) not split,C'way & F'way Mtce,G00121,Supplies & Services           ,Services                      ,DF03,Consultants                             ,"2,960.00",09/05/2014,REV,METIS CONSULTANTS LIMITED     
1393,Highways & Transport Services,Repair prin/oth rds not split,Walk Sheets,G00127,Third Party Payments          ,Private Contractors           ,EH56,Carriageway/Fway Maint                  ,"1,176.58",06/06/2014,REV,FM CONWAY LTD                 
1394,Highways & Transport Services,Repair prin/oth rds not split,Walk Sheets,G00127,Third Party Payments          ,Private Contractors           ,EH56,Carriageway/Fway Maint                  ,"17,939.52",20/06/2014,REV,FM CONWAY LTD                 
1395,Highways & Transport Services,Repair prin/oth rds not split,Walk Sheets,G00127,Third Party Payments          ,Private Contractors           ,EH56,Carriageway/Fway Maint                  ,"15,200.54",03/06/2014,REV,FM CONWAY LTD                 
1396,Highways & Transport Services,Repair prin/oth rds not split,Walk Sheets,G00127,Third Party Payments          ,Private Contractors           ,EH56,Carriageway/Fway Maint                  ,"49,033.49",20/06/2014,REV,FM CONWAY LTD                 
1397,Highways & Transport Services,Repair prin/oth rds not split,Walk Sheets,G00127,Third Party Payments          ,Private Contractors           ,EH56,Carriageway/Fway Maint                  ,"2,409.38",13/06/2014,REV,FM CONWAY LTD                 
1398,Highways & Transport Services,Repair prin/oth rds not split,Walk Sheets,G00127,Third Party Payments          ,Private Contractors           ,EH56,Carriageway/Fway Maint                  ,"2,629.82",06/06/2014,REV,FM CONWAY LTD                 
1399,Highways & Transport Services,Repair prin/oth rds not split,Walk Sheets,G00127,Third Party Payments          ,Private Contractors           ,EH56,Carriageway/Fway Maint                  ,"11,870.10",03/06/2014,REV,FM CONWAY LTD                 
1400,Highways & Transport Services,Repair prin/oth rds not split,Walk Sheets,G00127,Third Party Payments          ,Private Contractors           ,EH56,Carriageway/Fway Maint                  ,"1,385.55",06/06/2014,REV,FM CONWAY LTD                 
1401,Highways & Transport Services,Saf mtc prin/oth rds not split,Traffic Signs.,G00160,Third Party Payments          ,Private Contractors           ,EH01,Miscellaneous Agency Services           ,"2,043.78",20/06/2014,REV,FM CONWAY LTD                 
1402,Highways & Transport Services,Saf mtc prin/oth rds not split,Traffic Signs.,G00160,Third Party Payments          ,Private Contractors           ,EH01,Miscellaneous Agency Services           ,703.39,03/06/2014,REV,FM CONWAY LTD                 
1443,Highways & Transport Services,Saf mtc prin/oth rds not split,Traffic Signs.,G00160,Third Party Payments          ,Private Contractors           ,EH01,Miscellaneous Agency Services           ,651.49,18/06/2014,REV,MAY GURNEY LTD T/A CARTLEDGE  
1444,Highways & Transport Services,Saf mtc prin/oth rds not split,Traffic Signs.,G00160,Third Party Payments          ,Private Contractors           ,EH01,Miscellaneous Agency Services           ,"1,992.06",18/06/2014,REV,MAY GURNEY LTD T/A CARTLEDGE  
4306,Highways & Transport Services,TRAF & HWYS CAPITAL PROJECTS,TRAF & HWYS CAPITAL PROJECTS,G00210,Supplies & Services           ,Services                      ,DF05,Surveys (General)                       ,"3,970.00",23/05/2014,REV,TRAFFICWATCH (UK) LTD.        
1403,Highways & Transport Services,Transport Plg/Policy/Strategy,CPZ implementation & Consultat,G00211,Third Party Payments          ,Private Contractors           ,EH56,Carriageway/Fway Maint                  ,"1,311.62",13/06/2014,REV,FM CONWAY LTD                 
1404,Highways & Transport Services,Transport Plg/Policy/Strategy,CPZ implementation & Consultat,G00211,Third Party Payments          ,Private Contractors           ,EH56,Carriageway/Fway Maint                  ,"23,939.81",13/06/2014,REV,FM CONWAY LTD                 
1405,Highways & Transport Services,Transport Plg/Policy/Strategy,CPZ implementation & Consultat,G00211,Third Party Payments          ,Private Contractors           ,EH56,Carriageway/Fway Maint                  ,653.16,03/06/2014,REV,FM CONWAY LTD                 
1406,Highways & Transport Services,Transport Plg/Policy/Strategy,CPZ implementation & Consultat,G00211,Third Party Payments          ,Private Contractors           ,EH56,Carriageway/Fway Maint                  ,"1,152.28",25/06/2014,REV,FM CONWAY LTD                 
1407,Highways & Transport Services,Transport Plg/Policy/Strategy,CPZ implementation & Consultat,G00211,Third Party Payments          ,Private Contractors           ,EH56,Carriageway/Fway Maint                  ,"2,142.31",25/06/2014,REV,FM CONWAY LTD                 
3023,Highways & Transport Services,Traffic Management,Tr Man & Accid Sch,G00220,Third Party Payments          ,Other Agencies                ,EJ52,London Boroughs Transport Sche          ,"2,700.00",21/05/2014,REV,LONDON COUNCILS               
1445,Highways & Transport Services,Street Lighting.,Street Lighting .,G00260,Third Party Payments          ,Private Contractors           ,EH01,Miscellaneous Agency Services           ,878.13,29/05/2014,REV,MAY GURNEY LTD T/A CARTLEDGE  
1446,Highways & Transport Services,Street Lighting.,Street Lighting .,G00260,Third Party Payments          ,Private Contractors           ,EH01,Miscellaneous Agency Services           ,"3,307.71",18/06/2014,REV,MAY GURNEY LTD T/A CARTLEDGE  
1447,Highways & Transport Services,Street Lighting.,Street Lighting .,G00260,Third Party Payments          ,Private Contractors           ,EH01,Miscellaneous Agency Services           ,"14,129.84",29/05/2014,REV,MAY GURNEY LTD T/A CARTLEDGE  
3825,Highways & Transport Services,Street Lighting.,Street Lighting .,G00260,Premises Related Expenditure  ,Energy Costs                  ,BB02,Electricity                             ,"47,124.49",03/06/2014,REV,SCOTTISHPOWER                 
4405,Highways & Transport Services,Street Lighting.,Street Lighting .,G00260,Third Party Payments          ,Private Contractors           ,EH01,Miscellaneous Agency Services           ,642,13/06/2014,REV,UK POWER NETWORKS (OPERATIONS)
4406,Highways & Transport Services,Street Lighting.,Street Lighting .,G00260,Third Party Payments          ,Private Contractors           ,EH01,Miscellaneous Agency Services           ,642,13/06/2014,REV,UK POWER NETWORKS (OPERATIONS)
1448,Highways & Transport Services,Off-street parking,Car Parks (Unloc),G00291,Premises Related Expenditure  ,RepairsAlterations&MtceOfBldgs,BA06,REPAIRS & MAINTENANCE GENERAL           ,849,18/06/2014,REV,MAY GURNEY LTD T/A CARTLEDGE  
861,Highways & Transport Services,Off-street parking,Coombe Lane,G00292,Premises Related Expenditure  ,Rents                         ,BC01,Miscellaneous Rents                     ,"9,562.50",22/05/2014,REV,CAPITA SYMONDS LTD            
4311,Highways & Transport Services,Off-street parking,York Close CP,G00298,Premises Related Expenditure  ,Rents                         ,BC01,Miscellaneous Rents                     ,"30,460.50",05/06/2014,REV,TRANSPORT TRADING LTD PROP A/C
4410,Highways & Transport Services,Off-street parking,York Close CP,G00298,Premises Related Expenditure  ,RepairsAlterations&MtceOfBldgs,BA06,Repairs & Maintenance General           ,754.15,13/05/2014,REV,UK POWERNETWORKS              
4542,Highways & Transport Services,Off-street parking,York Close CP,G00298,Premises Related Expenditure  ,RepairsAlterations&MtceOfBldgs,BA06,Repairs & Maintenance General           ,"3,433.55",21/05/2014,REV,R.J.H.WELDING                 
2996,Highways & Transport Services,Off-street parking,St. Georges Car Park EAST,G00300,Premises Related Expenditure  ,Rents                         ,BC01,Miscellaneous Rents                     ,824.39,29/05/2014,REV,LLOYDS BANK SF NOMINEES LTD   
3777,Highways & Transport Services,Off-street parking,St. Georges Car Park WEST M/S,G00302,Premises Related Expenditure  ,Rents                         ,BC01,Miscellaneous Rents                     ,"3,390.98",21/05/2014,REV,SACKVILLE SPF IV (GP) NO 1 LTD
3826,Highways & Transport Services,Off-street parking,St. Georges Car Park WEST M/S,G00302,Premises Related Expenditure  ,Energy Costs                  ,BB02,Electricity                             ,660.91,03/06/2014,REV,SCOTTISHPOWER                 
4543,Highways & Transport Services,Off-street parking,Raleigh Gardens C P,G00306,Premises Related Expenditure  ,RepairsAlterations&MtceOfBldgs,BA06,Repairs & Maintenance General           ,540,21/05/2014,REV,R.J.H.WELDING                 
157,Highways & Transport Services,Off-street parking,"St. Mks Rd, Multi Sty",G00308,Premises Related Expenditure  ,Rents                         ,BC01,Miscellaneous Rents                     ,"5,500.00",01/05/2014,REV,ASDA STORES LTD               
1922,Highways & Transport Services,Off-street parking,"St. Mks Rd, Multi Sty",G00308,Premises Related Expenditure  ,Rents                         ,BC01,Miscellaneous Rents                     ,"3,432.14",25/04/2014,REV,FISHER PROPERTY CONSULTANTS   
1923,Highways & Transport Services,Off-street parking,"St. Mks Rd, Multi Sty",G00308,Premises Related Expenditure  ,Rents                         ,BC01,Miscellaneous Rents                     ,529.97,25/04/2014,REV,FISHER PROPERTY CONSULTANTS   
1408,Highways & Transport Services,On-street parking,On Street Parking.,G00311,Premises Related Expenditure  ,RepairsAlterations&MtceOfBldgs,BA06,Repairs & Maintenance General           ,883.83,20/06/2014,REV,FM CONWAY LTD                 
4312,Highways & Transport Services,Safe routes inc schl x patrol,DFT Child Pedestrian,G00324,Supplies & Services           ,Services                      ,DF03,Consultants                             ,"3,500.00",28/05/2014,REV,TRANSPORT INITIATIVES LLP     
4479,Highways & Transport Services,Safe routes inc schl x patrol,DFT Child Pedestrian,G00324,Supplies & Services           ,Services                      ,DF03,Consultants                             ,"4,580.00",14/06/2014,REV,VELO MONDIAL                  
3550,Highways & Transport Services,Parking Enforcement not split,Civil Enforcement Officers,G00330,Supplies & Services           ,Equip Furniture/Materials     ,DA09,Equip-Purchases                         ,877.5,03/06/2014,REV,QUARTIX                       
3669,Highways & Transport Services,Parking Enforcement not split,Civil Enforcement Officers,G00330,Supplies & Services           ,Equip Furniture/Materials     ,DA09,Equip-Purchases                         ,705,11/06/2014,REV,REVEAL MEDIA LTD              
2421,Highways & Transport Services,Parking Enforcement not split,Operational Running Costs,G00331,Supplies & Services           ,Comms and Computing           ,DG61,Computer Servs Special                  ,791.5,19/05/2014,REV,IMPERIAL CIVIL ENFORC.SOLUT.  
3024,Highways & Transport Services,Parking Enforcement not split,Operational Running Costs,G00331,Third Party Payments          ,Other Agencies                ,EJ58,Parking Cttee for London                ,"1,500.00",12/05/2014,REV,LONDON COUNCILS               
3206,Highways & Transport Services,Parking Enforcement not split,Operational Running Costs,G00331,Supplies & Services           ,Comms and Computing           ,DG08,Computer Hardware                       ,645.8,03/06/2014,REV,MISCO                         
4307,Highways & Transport Services,Parking Enforcement not split,Operational Running Costs,G00331,Supplies & Services           ,Equip Furniture/Materials     ,DA09,Equip-Purchases                         ,"4,106.00",29/05/2014,REV,TRAFFIC SAFETY SYSTEMS LTD    
3820,Highways & Transport Services,Repair prin/oth rds not split,Flood Risk Management,G00350,Supplies & Services           ,Services                      ,DF03,Consultants                             ,895.16,19/05/2014,REV,URS INFRASTRUCTURE & ENV UK LT
1409,Highways & Transport Services,Hwys/Rds (struct) not split,Footpath Crossings.,G00390,Third Party Payments          ,Private Contractors           ,EH56,Carriageway/Fway Maint                  ,993.61,13/06/2014,REV,FM CONWAY LTD                 
1410,Highways & Transport Services,Hwys/Rds (struct) not split,Footpath Crossings.,G00390,Third Party Payments          ,Private Contractors           ,EH56,Carriageway/Fway Maint                  ,"4,763.24",03/06/2014,REV,FM CONWAY LTD                 
1411,Highways & Transport Services,Hwys/Rds (struct) not split,Footpath Crossings.,G00390,Third Party Payments          ,Private Contractors           ,EH56,Carriageway/Fway Maint                  ,722.32,13/06/2014,REV,FM CONWAY LTD                 
1412,Highways & Transport Services,Hwys/Rds (struct) not split,Footpath Crossings.,G00390,Third Party Payments          ,Private Contractors           ,EH56,Carriageway/Fway Maint                  ,"2,246.91",20/06/2014,REV,FM CONWAY LTD                 
1413,Highways & Transport Services,Hwys/Rds (struct) not split,Footpath Crossings.,G00390,Third Party Payments          ,Private Contractors           ,EH56,Carriageway/Fway Maint                  ,"2,632.94",03/06/2014,REV,FM CONWAY LTD                 
1414,Highways & Transport Services,Hwys/Rds (struct) not split,Footpath Crossings.,G00390,Third Party Payments          ,Private Contractors           ,EH56,Carriageway/Fway Maint                  ,"5,111.01",06/06/2014,REV,FM CONWAY LTD                 
1415,Highways & Transport Services,Hwys/Rds (struct) not split,Footpath Crossings.,G00390,Third Party Payments          ,Private Contractors           ,EH56,Carriageway/Fway Maint                  ,"1,070.21",13/06/2014,REV,FM CONWAY LTD                 
1416,Highways & Transport Services,Hwys/Rds (struct) not split,Footpath Crossings.,G00390,Third Party Payments          ,Private Contractors           ,EH56,Carriageway/Fway Maint                  ,813,06/06/2014,REV,FM CONWAY LTD                 
1417,Highways & Transport Services,Hwys/Rds (struct) not split,Footpath Crossings.,G00390,Third Party Payments          ,Private Contractors           ,EH56,Carriageway/Fway Maint                  ,"6,170.74",06/06/2014,REV,FM CONWAY LTD                 
4407,Highways & Transport Services,Hwys/Rds (struct) not split,Footpath Crossings.,G00390,Third Party Payments          ,Private Contractors           ,EH01,Miscellaneous Agency Services           ,900,13/05/2014,REV,UK POWER NETWORKS (OPERATIONS)
4408,Highways & Transport Services,Hwys/Rds (struct) not split,Footpath Crossings.,G00390,Third Party Payments          ,Private Contractors           ,EH01,Miscellaneous Agency Services           ,"1,176.00",03/06/2014,REV,UK POWER NETWORKS (OPERATIONS)
4409,Highways & Transport Services,Hwys/Rds (struct) not split,Footpath Crossings.,G00390,Third Party Payments          ,Private Contractors           ,EH56,Carriageway/Fway Maint                  ,"1,184.00",13/06/2014,REV,UK POWER NETWORKS (OPERATIONS)
309,Cultural Env Reg&Plan Services,Street Clean - Not highways,Street Cleansing (Inc. Gully),G00492,Supplies & Services           ,Equip Furniture/Materials     ,DA08,Tools-Purchase                          ,"1,428.60",11/06/2014,REV,BELL BRUSH                    
310,Cultural Env Reg&Plan Services,Street Clean - Not highways,Street Cleansing (Inc. Gully),G00492,Supplies & Services           ,Equip Furniture/Materials     ,DA08,Tools-Purchase                          ,"2,059.63",13/06/2014,REV,BELL BRUSH                    
1579,Cultural Env Reg&Plan Services,Street Clean - Not highways,Street Cleansing (Inc. Gully),G00492,Employees                     ,Direct Employee Expenses      ,AA17,Agency Staff & Casual Paymts            ,"5,705.25",10/06/2014,REV,REDACTED
2680,Cultural Env Reg&Plan Services,Street Clean - Not highways,Street Cleansing (Inc. Gully),G00492,Supplies & Services           ,Equip Furniture/Materials     ,DA54,STR SWEEPER BINS/TROLLEYS               ,900,04/03/2014,REV,KYRON ENERGY & POWER LIMITED  
3934,Cultural Env Reg&Plan Services,Street Clean - Not highways,Street Cleansing (Inc. Gully),G00492,Supplies & Services           ,Clothing Unfrms Laundry       ,DC02,Clothing & Uniforms                     ,"2,158.13",16/06/2014,REV,SAFETY MANAGEMENT             
4084,Cultural Env Reg&Plan Services,Street Clean - Not highways,Street Cleansing (Inc. Gully),G00492,Premises Related Expenditure  ,Water Services                ,BE01,Use of Water (Metered)                  ,"4,024.00",22/05/2014,REV,SUPPLY UK HIRE SHOPS          
4085,Cultural Env Reg&Plan Services,Street Clean - Not highways,Street Cleansing (Inc. Gully),G00492,Premises Related Expenditure  ,Water Services                ,BE01,Use of Water (Metered)                  ,"1,021.00",04/06/2014,REV,SUPPLY UK HIRE SHOPS          
4086,Cultural Env Reg&Plan Services,Street Clean - Not highways,Street Cleansing (Inc. Gully),G00492,Premises Related Expenditure  ,Water Services                ,BE01,Use of Water (Metered)                  ,"1,021.00",03/06/2014,REV,SUPPLY UK HIRE SHOPS          
4087,Cultural Env Reg&Plan Services,Street Clean - Not highways,Street Cleansing (Inc. Gully),G00492,Premises Related Expenditure  ,Water Services                ,BE01,Use of Water (Metered)                  ,"4,024.00",22/05/2014,REV,SUPPLY UK HIRE SHOPS          
4088,Cultural Env Reg&Plan Services,Street Clean - Not highways,Street Cleansing (Inc. Gully),G00492,Premises Related Expenditure  ,Water Services                ,BE01,Use of Water (Metered)                  ,"1,021.00",04/06/2014,REV,SUPPLY UK HIRE SHOPS          
4089,Cultural Env Reg&Plan Services,Street Clean - Not highways,Street Cleansing (Inc. Gully),G00492,Premises Related Expenditure  ,Water Services                ,BE01,Use of Water (Metered)                  ,"1,021.00",04/06/2014,REV,SUPPLY UK HIRE SHOPS          
4090,Cultural Env Reg&Plan Services,Street Clean - Not highways,Street Cleansing (Inc. Gully),G00492,Premises Related Expenditure  ,Water Services                ,BE01,Use of Water (Metered)                  ,"4,024.00",04/06/2014,REV,SUPPLY UK HIRE SHOPS          
4411,Cultural Env Reg&Plan Services,Street Clean - Not highways,Street Cleansing (Inc. Gully),G00492,Supplies & Services           ,Equip Furniture/Materials     ,DA32,Wheeled Bins                            ,"4,940.00",28/04/2014,REV,UK CONTAINER MAINTENANCE LTD  
428,Cultural Env Reg&Plan Services,Waste Disposal (not separated),Waste Disposal .,G00550,Third Party Payments          ,Private Contractors           ,EH01,Dog Bin Disposal - Biffa                ,"1,140.00",31/12/2013,REV,BRITANNIA CREST RECYCLING LTD 
1616,Cultural Env Reg&Plan Services,Waste Disposal (not separated),Waste Disposal .,G00550,Third Party Payments          ,Private Contractors           ,EH96,GULLY DISPOSAL                          ,"1,433.00",31/05/2014,REV,CORY ENVIRONMENTAL LIMITED    
2129,Cultural Env Reg&Plan Services,Waste Disposal (not separated),Waste Disposal .,G00550,Third Party Payments          ,Private Contractors           ,EH66,Clinical Waste Disposal                 ,976.52,31/05/2014,REV,S.GRUNDON (WASTE) LTD.        
2634,Cultural Env Reg&Plan Services,Civic Amenity Sites,Garth Road Site,G00580,Third Party Payments          ,Private Contractors           ,EH10,Contract Payments                       ,"175,107.67",30/05/2014,REV,KINGSTON CORPORATION          
2635,Cultural Env Reg&Plan Services,Civic Amenity Sites,Garth Road Site,G00580,Third Party Payments          ,Private Contractors           ,EH63,TRANSPORT FEE - LANDFILL                ,"54,133.49",30/05/2014,REV,KINGSTON CORPORATION          
3282,Cultural Env Reg&Plan Services,Public Health,Dog Control.,G00620,Third Party Payments          ,Private Contractors           ,EH02,Miscellaneous Hired Services            ,"2,718.00",06/06/2014,REV,NOAH'S ARK ENVIRONMENTAL SERV.
4044,Cultural Env Reg&Plan Services,Recycling (Collection),BARROW AND BINS REPLACEMENT,G00641,Supplies & Services           ,Equip Furniture/Materials     ,DA54,GREEN KERBSIDE RECYCLING BOXES          ,"6,629.70",22/05/2014,REV,STRAIGHT PLC                  
4045,Cultural Env Reg&Plan Services,Recycling (Collection),BARROW AND BINS REPLACEMENT,G00641,Supplies & Services           ,Equip Furniture/Materials     ,DA54,GREEN KERBSIDE RECYCLING BOXES          ,"6,629.70",03/06/2014,REV,STRAIGHT PLC                  
4260,Cultural Env Reg&Plan Services,Recycling (Collection),BARROW AND BINS REPLACEMENT,G00641,Supplies & Services           ,Equip Furniture/Materials     ,DA09,STREET BARROWS                          ,"8,877.00",25/03/2014,REV,TERBERG MATEC UK LTD          
3935,Cultural Env Reg&Plan Services,Recycling (Collection),Recycling Collection,G00645,Supplies & Services           ,Clothing Unfrms Laundry       ,DC02,Clothing & Uniforms                     ,"1,365.00",19/05/2014,REV,SAFETY MANAGEMENT             
3936,Cultural Env Reg&Plan Services,Recycling (Collection),Recycling Collection,G00645,Supplies & Services           ,Clothing Unfrms Laundry       ,DC02,Clothing & Uniforms                     ,"3,497.91",19/05/2014,REV,SAFETY MANAGEMENT             
3778,Cultural Env Reg&Plan Services,Recycling (Collection),Food Waste Service,G00648,Supplies & Services           ,Equip Furniture/Materials     ,DA31,Waste Sacks & Bags                      ,"1,051.08",02/05/2014,REV,SPHERE PROFFESSIONAL          
4046,Cultural Env Reg&Plan Services,Recycling (Collection),Food Waste Service,G00648,Supplies & Services           ,Equip Furniture/Materials     ,DA54,Recycling Containers                    ,602.08,18/06/2014,REV,STRAIGHT PLC                  
4047,Cultural Env Reg&Plan Services,Recycling (Collection),Food Waste Service,G00648,Supplies & Services           ,Equip Furniture/Materials     ,DA54,Recycling Containers                    ,"7,917.92",18/06/2014,REV,STRAIGHT PLC                  
1868,Cultural Env Reg&Plan Services,Recycling (Collection),WCSS Recycl Encourgmnt&Incentv          ,G00650,Supplies & Services           ,Services                      ,DF32,Customer Survey                         ,"31,390.00",30/05/2014,REV,ENVENTURE                     
2024,Cultural Env Reg&Plan Services,Recycling (Collection),WCSS Recycl Encourgmnt&Incentv          ,G00650,Supplies & Services           ,Equip Furniture/Materials     ,DA09,Equip-Purchases                         ,"6,920.00",25/03/2014,REV,GEESINK NORBA                 
2025,Cultural Env Reg&Plan Services,Recycling (Collection),WCSS Recycl Encourgmnt&Incentv          ,G00650,Supplies & Services           ,Equip Furniture/Materials     ,DA09,Equip-Purchases                         ,"6,920.00",25/03/2014,REV,GEESINK NORBA                 
2026,Cultural Env Reg&Plan Services,Recycling (Collection),WCSS Recycl Encourgmnt&Incentv          ,G00650,Supplies & Services           ,Equip Furniture/Materials     ,DA09,Equip-Purchases                         ,-500,23/05/2014,REV,GEESINK NORBA                 
2027,Cultural Env Reg&Plan Services,Recycling (Collection),WCSS Recycl Encourgmnt&Incentv          ,G00650,Supplies & Services           ,Equip Furniture/Materials     ,DA09,Equip-Purchases                         ,-500,23/05/2014,REV,GEESINK NORBA                 
1546,Cultural Env Reg&Plan Services,Household Waste Collection,Refuse Collection (Operations),G00661,Supplies & Services           ,Equip Furniture/Materials     ,DA03,Hire of Equipment                       ,"1,920.00",02/06/2014,REV,COMCIR RADIO COMMUNICATIONS LT
4048,Cultural Env Reg&Plan Services,Trade Waste Collection,Commercial Waste,G00663,Supplies & Services           ,Equip Furniture/Materials     ,DA32,Wheeled Bins                            ,"1,074.50",12/06/2014,REV,STRAIGHT PLC                  
4049,Cultural Env Reg&Plan Services,Trade Waste Collection,Commercial Waste,G00663,Supplies & Services           ,Equip Furniture/Materials     ,DA32,Wheeled Bins                            ,"6,230.90",13/06/2014,REV,STRAIGHT PLC                  
2571,Cultural Env Reg&Plan Services,Inspect/Enforce (Consumer P),Trading Standards,G00690,Employees                     ,Direct Employee Expenses      ,AA17,Agency Staff & Casual Paymts            ,575,05/06/2014,REV,REDACTED
2572,Cultural Env Reg&Plan Services,Inspect/Enforce (Consumer P),Trading Standards,G00690,Employees                     ,Direct Employee Expenses      ,AA17,Agency Staff & Casual Paymts            ,745,11/06/2014,REV,REDACTED
816,Cultural Env Reg&Plan Services,Housing Standards,Housing/Env,G00730,Supplies & Services           ,Equip Furniture/Materials     ,DA09,Equip-Purchases                         ,819.4,30/05/2014,REV,CAMPBELL ASSOCIATES           
1869,Cultural Env Reg&Plan Services,Housing Standards,AIR QUALITY GRANT (DEFRA) MB,G00732,Supplies & Services           ,Services                      ,DF03,Consultants                             ,"1,600.00",23/06/2014,REV,ENVIRONMENTAL RESEARCH GROUP  
2239,Cultural Env Reg&Plan Services,Mgt & Support (Env),Waste Management,G00900,Employees                     ,Indirect Employee Expenses    ,AB02,Recruitment Adverts                     ,"1,968.00",30/05/2014,REV,REDACTED
2245,Cultural Env Reg&Plan Services,Mgt & Support (Env),Waste Management,G00900,Employees                     ,Indirect Employee Expenses    ,AB02,Recruitment Adverts                     ,"6,633.34",02/05/2014,REV,HAYS RECRUITING EXPERTS       
2246,Cultural Env Reg&Plan Services,Mgt & Support (Env),Waste Management,G00900,Employees                     ,Indirect Employee Expenses    ,AB02,Recruitment Adverts                     ,"1,968.00",30/05/2014,REV,HAYS RECRUITING EXPERTS       
4116,Cultural Env Reg&Plan Services,Mgt & Support (Env),Waste Management,G00900,Premises Related Expenditure  ,Water Services                ,BE01,Use of Water (Metered)                  ,652.1,30/05/2014,REV,SUTTON AND EAST SURREY WATER  
356,Central Services,Grants - Voluntary Groups,Vestry Hall,G19290,Premises Related Expenditure  ,Cleaning and Domestic Supplies,BH03,Cleaning Services                       ,"1,383.56",01/06/2014,REV,BIRKIN CLEANING SERVICES LTD  
1916,Central Services,Grants - Voluntary Groups,Vestry Hall,G19290,Premises Related Expenditure  ,RepairsAlterations&MtceOfBldgs,BA89,Fire Safety Risk Assessment             ,795,05/06/2014,REV,FIRE COMPLIANCE MANAGEM'T SERV
2012,Central Services,Grants - Voluntary Groups,Vestry Hall,G19290,Premises Related Expenditure  ,Energy Costs                  ,BB03,Gas (incl. Butane)                      ,-775.22,04/06/2014,REV,GAZPROM MARKETING&TRADING LTD 
3424,Central Services,Grants - Voluntary Groups,Vestry Hall,G19290,Employees                     ,Direct Employee Expenses      ,AA17,Agency Staff & Casual Paymts            ,"5,140.63",10/06/2014,REV,REDACTED
3425,Central Services,Grants - Voluntary Groups,Vestry Hall,G19290,Employees                     ,Direct Employee Expenses      ,AA17,Agency Staff & Casual Paymts            ,728.07,31/05/2014,REV,REDACTED
3827,Central Services,Grants - Voluntary Groups,Vestry Hall,G19290,Premises Related Expenditure  ,Energy Costs                  ,BB02,Electricity                             ,614.61,05/05/2014,REV,SCOTTISHPOWER                 
4263,Central Services,Grants - Voluntary Groups,Vestry Hall,G19290,Premises Related Expenditure  ,Water Services                ,BE01,Use of Water (Metered)                  ,549.78,17/06/2014,REV,THAMES WATER UTILITIES LTD    
369,Highways & Transport Services,Safe routes inc schl x patrol,School & Road Safety TFL                ,H01083,Supplies & Services           ,Services                      ,DF30,Activities Programme                    ,600,27/05/2014,REV,BLAKES DRIVER TRAINING        
476,Cultural Env Reg&Plan Services,BC Regs & Other not split,Building Control,H01100,Supplies & Services           ,Services                      ,DF57,Consulting Engineers Fees               ,832,20/06/2014,REV,BSI                           
1812,Cultural Env Reg&Plan Services,BC Regs & Other not split,Building Control,H01100,Supplies & Services           ,Prntng Stnry Gen Off Exp      ,DE05,Micro-filming                           ,"1,528.90",22/05/2014,REV,DOCUMENT SCANNING SOLUTIONS LT
3345,Cultural Env Reg&Plan Services,BC Regs & Other not split,Building Control,H01100,Supplies & Services           ,Equip Furniture/Materials     ,DA09,Equip-Purchases                         ,"6,900.00",31/03/2014,REV,OCE (UK) LTD                  
287,Cultural Env Reg&Plan Services,DC Advice Apps & Reg not split,Development Control,H01130,Supplies & Services           ,Services                      ,DF11,Counsel's fees                          ,800,31/03/2014,REV,DAC BEACHCROFT                
288,Cultural Env Reg&Plan Services,DC Advice Apps & Reg not split,Development Control,H01130,Supplies & Services           ,Services                      ,DF11,Counsel's fees                          ,"1,000.00",31/03/2014,REV,DAC BEACHCROFT                
1418,Cultural Env Reg&Plan Services,DC Advice Apps & Reg not split,Development Control,H01130,Supplies & Services           ,Services                      ,DF02,Misc Advertising/Publicity              ,"1,020.36",20/06/2014,REV,FM CONWAY LTD                 
3286,Cultural Env Reg&Plan Services,DC Advice Apps & Reg not split,Development Control,H01130,Supplies & Services           ,Comms and Computing           ,DG09,Computer Purchases - Misc               ,"4,500.00",27/05/2014,REV,NORTHGATE INFORMATION SOLUTION
4069,Cultural Env Reg&Plan Services,Planning Policy not split,REGENERATION & INVESTMENT,H01174,Supplies & Services           ,Services                      ,DF03,Consultants                             ,"2,275.00",31/05/2014,REV,STUDIO WEAVE LTD              
1544,Cultural Env Reg&Plan Services,Planning Policy not split,HPDG - Physical Regeneration,H01178,Supplies & Services           ,Services                      ,DF03,Consultants                             ,"6,179.36",12/06/2014,REV,COLLIERS INTERNATIONAL        
802,CS -Oth Operating Inc & Expend,Extraordinary Items & PY Adj.,MILES RD GENERATOR,H01203,Premises Related Expenditure  ,Rents                         ,BC01,Miscellaneous Rents                     ,"8,000.00",22/05/2014,REV,W&R BUXTON LTD PENSION FUND   
2060,Cultural Env Reg&Plan Services,Economic Dev (Not separated),(LABGI)-BUSINESS SUPPORT,H01210,Third Party Payments          ,Private Contractors           ,EH02,Miscellaneous Hired Services            ,"1,079.75",21/05/2014,REV,GRAFFITI MANAGEMENT LTD       
3167,Cultural Env Reg&Plan Services,Economic Dev (Not separated),GO GREEN PLUS (S106),H01225,Supplies & Services           ,Grants and Subscriptions      ,DJ54,Contributions                           ,587.1,26/05/2014,REV,MERTON CHAMBER OF COMMERCE    
76,CS -Oth Operating Inc & Expend,T/A Vehicle Maintenance etc,Transport-Contract Hire,J01374,Transport Related Expenditure ,Contract Hire and Op Leasing  ,CC64,HIRING TRANSPORT SEN CABS               ,560,02/06/2014,REV,AERIAL CAR SERVICES LTD       
77,CS -Oth Operating Inc & Expend,T/A Vehicle Maintenance etc,Transport-Contract Hire,J01374,Transport Related Expenditure ,Contract Hire and Op Leasing  ,CC64,HIRING TRANSPORT SEN CABS               ,572,02/06/2014,REV,AERIAL CAR SERVICES LTD       
78,CS -Oth Operating Inc & Expend,T/A Vehicle Maintenance etc,Transport-Contract Hire,J01374,Transport Related Expenditure ,Contract Hire and Op Leasing  ,CC67,HIRING TRANSPORT H&SS CAB ADULTS        ,800,02/06/2014,REV,AERIAL CAR SERVICES LTD       
210,CS -Oth Operating Inc & Expend,T/A Vehicle Maintenance etc,Transport-Contract Hire,J01374,Transport Related Expenditure ,Contract Hire and Op Leasing  ,CC64,HIRING TRANSPORT SEN CABS               ,"1,376.00",30/05/2014,REV,A STAR TRANSPORT LIMITED      
211,CS -Oth Operating Inc & Expend,T/A Vehicle Maintenance etc,Transport-Contract Hire,J01374,Transport Related Expenditure ,Contract Hire and Op Leasing  ,CC64,HIRING TRANSPORT SEN CABS               ,960,30/05/2014,REV,A STAR TRANSPORT LIMITED      
212,CS -Oth Operating Inc & Expend,T/A Vehicle Maintenance etc,Transport-Contract Hire,J01374,Transport Related Expenditure ,Contract Hire and Op Leasing  ,CC67,HIRING TRANSPORT H&SS CAB ADULTS        ,726,30/05/2014,REV,A STAR TRANSPORT LIMITED      
213,CS -Oth Operating Inc & Expend,T/A Vehicle Maintenance etc,Transport-Contract Hire,J01374,Transport Related Expenditure ,Contract Hire and Op Leasing  ,CC67,HIRING TRANSPORT H&SS CAB ADULTS        ,"1,152.00",30/05/2014,REV,A STAR TRANSPORT LIMITED      
238,CS -Oth Operating Inc & Expend,T/A Vehicle Maintenance etc,Transport-Contract Hire,J01374,Transport Related Expenditure ,Contract Hire and Op Leasing  ,CC64,HIRING TRANSPORT SEN CABS               ,"1,092.00",31/05/2014,REV,BARCLAYS ASSET & SALES FINANCE
239,CS -Oth Operating Inc & Expend,T/A Vehicle Maintenance etc,Transport-Contract Hire,J01374,Transport Related Expenditure ,Contract Hire and Op Leasing  ,CC64,HIRING TRANSPORT SEN CABS               ,848,31/05/2014,REV,BARCLAYS ASSET & SALES FINANCE
240,CS -Oth Operating Inc & Expend,T/A Vehicle Maintenance etc,Transport-Contract Hire,J01374,Transport Related Expenditure ,Contract Hire and Op Leasing  ,CC64,HIRING TRANSPORT SEN CABS               ,"1,536.00",31/05/2014,REV,BARCLAYS ASSET & SALES FINANCE
241,CS -Oth Operating Inc & Expend,T/A Vehicle Maintenance etc,Transport-Contract Hire,J01374,Transport Related Expenditure ,Contract Hire and Op Leasing  ,CC64,HIRING TRANSPORT SEN CABS               ,"2,080.00",31/05/2014,REV,BARCLAYS ASSET & SALES FINANCE
242,CS -Oth Operating Inc & Expend,T/A Vehicle Maintenance etc,Transport-Contract Hire,J01374,Transport Related Expenditure ,Contract Hire and Op Leasing  ,CC64,HIRING TRANSPORT SEN CABS               ,"1,856.00",31/05/2014,REV,BARCLAYS ASSET & SALES FINANCE
243,CS -Oth Operating Inc & Expend,T/A Vehicle Maintenance etc,Transport-Contract Hire,J01374,Transport Related Expenditure ,Contract Hire and Op Leasing  ,CC64,HIRING TRANSPORT SEN CABS               ,"2,400.00",31/05/2014,REV,BARCLAYS ASSET & SALES FINANCE
244,CS -Oth Operating Inc & Expend,T/A Vehicle Maintenance etc,Transport-Contract Hire,J01374,Transport Related Expenditure ,Contract Hire and Op Leasing  ,CC64,HIRING TRANSPORT SEN CABS               ,"1,728.00",31/05/2014,REV,BARCLAYS ASSET & SALES FINANCE
245,CS -Oth Operating Inc & Expend,T/A Vehicle Maintenance etc,Transport-Contract Hire,J01374,Transport Related Expenditure ,Contract Hire and Op Leasing  ,CC64,HIRING TRANSPORT SEN CABS               ,"2,432.00",31/05/2014,REV,BARCLAYS ASSET & SALES FINANCE
246,CS -Oth Operating Inc & Expend,T/A Vehicle Maintenance etc,Transport-Contract Hire,J01374,Transport Related Expenditure ,Contract Hire and Op Leasing  ,CC64,HIRING TRANSPORT SEN CABS               ,"2,310.00",31/05/2014,REV,BARCLAYS ASSET & SALES FINANCE
247,CS -Oth Operating Inc & Expend,T/A Vehicle Maintenance etc,Transport-Contract Hire,J01374,Transport Related Expenditure ,Contract Hire and Op Leasing  ,CC64,HIRING TRANSPORT SEN CABS               ,"2,755.00",31/05/2014,REV,BARCLAYS ASSET & SALES FINANCE
248,CS -Oth Operating Inc & Expend,T/A Vehicle Maintenance etc,Transport-Contract Hire,J01374,Transport Related Expenditure ,Contract Hire and Op Leasing  ,CC64,HIRING TRANSPORT SEN CABS               ,"2,624.00",31/05/2014,REV,BARCLAYS ASSET & SALES FINANCE
249,CS -Oth Operating Inc & Expend,T/A Vehicle Maintenance etc,Transport-Contract Hire,J01374,Transport Related Expenditure ,Contract Hire and Op Leasing  ,CC64,HIRING TRANSPORT SEN CABS               ,"2,240.00",31/05/2014,REV,BARCLAYS ASSET & SALES FINANCE
250,CS -Oth Operating Inc & Expend,T/A Vehicle Maintenance etc,Transport-Contract Hire,J01374,Transport Related Expenditure ,Contract Hire and Op Leasing  ,CC64,HIRING TRANSPORT SEN CABS               ,"2,720.00",31/05/2014,REV,BARCLAYS ASSET & SALES FINANCE
251,CS -Oth Operating Inc & Expend,T/A Vehicle Maintenance etc,Transport-Contract Hire,J01374,Transport Related Expenditure ,Contract Hire and Op Leasing  ,CC67,HIRING TRANSPORT H&SS CAB ADULTS        ,528,31/05/2014,REV,BARCLAYS ASSET & SALES FINANCE
252,CS -Oth Operating Inc & Expend,T/A Vehicle Maintenance etc,Transport-Contract Hire,J01374,Transport Related Expenditure ,Contract Hire and Op Leasing  ,CC67,HIRING TRANSPORT H&SS CAB ADULTS        ,504,31/05/2014,REV,BARCLAYS ASSET & SALES FINANCE
253,CS -Oth Operating Inc & Expend,T/A Vehicle Maintenance etc,Transport-Contract Hire,J01374,Transport Related Expenditure ,Contract Hire and Op Leasing  ,CC67,HIRING TRANSPORT H&SS CAB ADULTS        ,"1,909.00",31/05/2014,REV,BARCLAYS ASSET & SALES FINANCE
254,CS -Oth Operating Inc & Expend,T/A Vehicle Maintenance etc,Transport-Contract Hire,J01374,Transport Related Expenditure ,Contract Hire and Op Leasing  ,CC67,HIRING TRANSPORT H&SS CAB ADULTS        ,"1,838.00",31/05/2014,REV,BARCLAYS ASSET & SALES FINANCE
255,CS -Oth Operating Inc & Expend,T/A Vehicle Maintenance etc,Transport-Contract Hire,J01374,Transport Related Expenditure ,Contract Hire and Op Leasing  ,CC67,HIRING TRANSPORT H&SS CAB ADULTS        ,"1,088.00",31/05/2014,REV,BARCLAYS ASSET & SALES FINANCE
256,CS -Oth Operating Inc & Expend,T/A Vehicle Maintenance etc,Transport-Contract Hire,J01374,Transport Related Expenditure ,Contract Hire and Op Leasing  ,CC67,HIRING TRANSPORT H&SS CAB ADULTS        ,952,31/05/2014,REV,BARCLAYS ASSET & SALES FINANCE
257,CS -Oth Operating Inc & Expend,T/A Vehicle Maintenance etc,Transport-Contract Hire,J01374,Transport Related Expenditure ,Contract Hire and Op Leasing  ,CC68,HIRING TRANSPORT SEN COLLEGES CABS      ,955,31/05/2014,REV,BARCLAYS ASSET & SALES FINANCE
258,CS -Oth Operating Inc & Expend,T/A Vehicle Maintenance etc,Transport-Contract Hire,J01374,Transport Related Expenditure ,Contract Hire and Op Leasing  ,CC68,HIRING TRANSPORT SEN COLLEGES CABS      ,952,31/05/2014,REV,BARCLAYS ASSET & SALES FINANCE
471,CS -Oth Operating Inc & Expend,T/A Vehicle Maintenance etc,Transport-Contract Hire,J01374,Transport Related Expenditure ,Contract Hire and Op Leasing  ,CC64,HIRING TRANSPORT SEN CABS               ,"1,904.00",31/05/2014,REV,BRUNSWICK CARS LTD            
479,CS -Oth Operating Inc & Expend,T/A Vehicle Maintenance etc,Transport-Contract Hire,J01374,Transport Related Expenditure ,Contract Hire and Op Leasing  ,CC53,Plant Hire for MRCS                     ,"1,155.00",31/03/2014,REV,B&T PLANT HIRE LTD            
798,CS -Oth Operating Inc & Expend,T/A Vehicle Maintenance etc,Transport-Contract Hire,J01374,Transport Related Expenditure ,Contract Hire and Op Leasing  ,CC59,HIRING TRANSPORT OPERATIONS             ,"1,452.00",30/05/2014,REV,BURNT TREE VEHICLE RENTAL     
799,CS -Oth Operating Inc & Expend,T/A Vehicle Maintenance etc,Transport-Contract Hire,J01374,Transport Related Expenditure ,Contract Hire and Op Leasing  ,CC59,HIRING TRANSPORT OPERATIONS             ,"1,452.00",30/05/2014,REV,BURNT TREE VEHICLE RENTAL     
800,CS -Oth Operating Inc & Expend,T/A Vehicle Maintenance etc,Transport-Contract Hire,J01374,Transport Related Expenditure ,Contract Hire and Op Leasing  ,CC59,HIRING TRANSPORT OPERATIONS             ,"1,452.00",30/05/2014,REV,BURNT TREE VEHICLE RENTAL     
835,CS -Oth Operating Inc & Expend,T/A Vehicle Maintenance etc,Transport-Contract Hire,J01374,Transport Related Expenditure ,Contract Hire and Op Leasing  ,CC64,HIRING TRANSPORT SEN CABS               ,735,31/05/2014,REV,CAPITAL CARS                  
836,CS -Oth Operating Inc & Expend,T/A Vehicle Maintenance etc,Transport-Contract Hire,J01374,Transport Related Expenditure ,Contract Hire and Op Leasing  ,CC64,HIRING TRANSPORT SEN CABS               ,"2,306.00",31/05/2014,REV,CAPITAL CARS                  
837,CS -Oth Operating Inc & Expend,T/A Vehicle Maintenance etc,Transport-Contract Hire,J01374,Transport Related Expenditure ,Contract Hire and Op Leasing  ,CC64,HIRING TRANSPORT SEN CABS               ,"1,410.00",31/05/2014,REV,CAPITAL CARS                  
838,CS -Oth Operating Inc & Expend,T/A Vehicle Maintenance etc,Transport-Contract Hire,J01374,Transport Related Expenditure ,Contract Hire and Op Leasing  ,CC64,HIRING TRANSPORT SEN CABS               ,"1,184.00",31/05/2014,REV,CAPITAL CARS                  
839,CS -Oth Operating Inc & Expend,T/A Vehicle Maintenance etc,Transport-Contract Hire,J01374,Transport Related Expenditure ,Contract Hire and Op Leasing  ,CC64,HIRING TRANSPORT SEN CABS               ,"1,216.00",31/05/2014,REV,CAPITAL CARS                  
840,CS -Oth Operating Inc & Expend,T/A Vehicle Maintenance etc,Transport-Contract Hire,J01374,Transport Related Expenditure ,Contract Hire and Op Leasing  ,CC64,HIRING TRANSPORT SEN CABS               ,"1,184.00",31/05/2014,REV,CAPITAL CARS                  
841,CS -Oth Operating Inc & Expend,T/A Vehicle Maintenance etc,Transport-Contract Hire,J01374,Transport Related Expenditure ,Contract Hire and Op Leasing  ,CC64,HIRING TRANSPORT SEN CABS               ,"1,824.00",31/05/2014,REV,CAPITAL CARS                  
842,CS -Oth Operating Inc & Expend,T/A Vehicle Maintenance etc,Transport-Contract Hire,J01374,Transport Related Expenditure ,Contract Hire and Op Leasing  ,CC64,HIRING TRANSPORT SEN CABS               ,742,31/05/2014,REV,CAPITAL CARS                  
843,CS -Oth Operating Inc & Expend,T/A Vehicle Maintenance etc,Transport-Contract Hire,J01374,Transport Related Expenditure ,Contract Hire and Op Leasing  ,CC64,HIRING TRANSPORT SEN CABS               ,"3,680.00",31/05/2014,REV,CAPITAL CARS                  
844,CS -Oth Operating Inc & Expend,T/A Vehicle Maintenance etc,Transport-Contract Hire,J01374,Transport Related Expenditure ,Contract Hire and Op Leasing  ,CC64,HIRING TRANSPORT SEN CABS               ,"1,378.00",31/05/2014,REV,CAPITAL CARS                  
845,CS -Oth Operating Inc & Expend,T/A Vehicle Maintenance etc,Transport-Contract Hire,J01374,Transport Related Expenditure ,Contract Hire and Op Leasing  ,CC64,HIRING TRANSPORT SEN CABS               ,"1,568.00",31/05/2014,REV,CAPITAL CARS                  
846,CS -Oth Operating Inc & Expend,T/A Vehicle Maintenance etc,Transport-Contract Hire,J01374,Transport Related Expenditure ,Contract Hire and Op Leasing  ,CC64,HIRING TRANSPORT SEN CABS               ,"1,216.00",31/05/2014,REV,CAPITAL CARS                  
847,CS -Oth Operating Inc & Expend,T/A Vehicle Maintenance etc,Transport-Contract Hire,J01374,Transport Related Expenditure ,Contract Hire and Op Leasing  ,CC64,HIRING TRANSPORT SEN CABS               ,"2,016.00",31/05/2014,REV,CAPITAL CARS                  
848,CS -Oth Operating Inc & Expend,T/A Vehicle Maintenance etc,Transport-Contract Hire,J01374,Transport Related Expenditure ,Contract Hire and Op Leasing  ,CC64,HIRING TRANSPORT SEN CABS               ,"1,504.00",31/05/2014,REV,CAPITAL CARS                  
849,CS -Oth Operating Inc & Expend,T/A Vehicle Maintenance etc,Transport-Contract Hire,J01374,Transport Related Expenditure ,Contract Hire and Op Leasing  ,CC64,HIRING TRANSPORT SEN CABS               ,720,31/05/2014,REV,CAPITAL CARS                  
850,CS -Oth Operating Inc & Expend,T/A Vehicle Maintenance etc,Transport-Contract Hire,J01374,Transport Related Expenditure ,Contract Hire and Op Leasing  ,CC64,HIRING TRANSPORT SEN CABS               ,794,31/05/2014,REV,CAPITAL CARS                  
851,CS -Oth Operating Inc & Expend,T/A Vehicle Maintenance etc,Transport-Contract Hire,J01374,Transport Related Expenditure ,Contract Hire and Op Leasing  ,CC64,HIRING TRANSPORT SEN CABS               ,"2,232.00",31/05/2014,REV,CAPITAL CARS                  
852,CS -Oth Operating Inc & Expend,T/A Vehicle Maintenance etc,Transport-Contract Hire,J01374,Transport Related Expenditure ,Contract Hire and Op Leasing  ,CC67,HIRING TRANSPORT H&SS CAB ADULTS        ,846,31/05/2014,REV,CAPITAL CARS                  
853,CS -Oth Operating Inc & Expend,T/A Vehicle Maintenance etc,Transport-Contract Hire,J01374,Transport Related Expenditure ,Contract Hire and Op Leasing  ,CC67,HIRING TRANSPORT H&SS CAB ADULTS        ,666,31/05/2014,REV,CAPITAL CARS                  
854,CS -Oth Operating Inc & Expend,T/A Vehicle Maintenance etc,Transport-Contract Hire,J01374,Transport Related Expenditure ,Contract Hire and Op Leasing  ,CC67,HIRING TRANSPORT H&SS CAB ADULTS        ,630,31/05/2014,REV,CAPITAL CARS                  
855,CS -Oth Operating Inc & Expend,T/A Vehicle Maintenance etc,Transport-Contract Hire,J01374,Transport Related Expenditure ,Contract Hire and Op Leasing  ,CC67,HIRING TRANSPORT H&SS CAB ADULTS        ,705,31/05/2014,REV,CAPITAL CARS                  
856,CS -Oth Operating Inc & Expend,T/A Vehicle Maintenance etc,Transport-Contract Hire,J01374,Transport Related Expenditure ,Contract Hire and Op Leasing  ,CC67,HIRING TRANSPORT H&SS CAB ADULTS        ,944,31/05/2014,REV,CAPITAL CARS                  
857,CS -Oth Operating Inc & Expend,T/A Vehicle Maintenance etc,Transport-Contract Hire,J01374,Transport Related Expenditure ,Contract Hire and Op Leasing  ,CC68,HIRING TRANSPORT SEN COLLEGES CABS      ,800,31/05/2014,REV,CAPITAL CARS                  
858,CS -Oth Operating Inc & Expend,T/A Vehicle Maintenance etc,Transport-Contract Hire,J01374,Transport Related Expenditure ,Contract Hire and Op Leasing  ,CC68,HIRING TRANSPORT SEN COLLEGES CABS      ,"1,344.00",31/05/2014,REV,CAPITAL CARS                  
859,CS -Oth Operating Inc & Expend,T/A Vehicle Maintenance etc,Transport-Contract Hire,J01374,Transport Related Expenditure ,Contract Hire and Op Leasing  ,CC68,HIRING TRANSPORT SEN COLLEGES CABS      ,600,31/05/2014,REV,CAPITAL CARS                  
1822,CS -Oth Operating Inc & Expend,T/A Vehicle Maintenance etc,Transport-Contract Hire,J01374,Transport Related Expenditure ,Contract Hire and Op Leasing  ,CC53,Plant Hire for MRCS                     ,925,06/06/2014,REV,DRM MUNICIPAL SERVICES LIMITED
1983,CS -Oth Operating Inc & Expend,T/A Vehicle Maintenance etc,Transport-Contract Hire,J01374,Transport Related Expenditure ,Contract Hire and Op Leasing  ,CC64,HIRING TRANSPORT SEN CABS               ,640,31/05/2014,REV,GALPINS SERVICE               
1984,CS -Oth Operating Inc & Expend,T/A Vehicle Maintenance etc,Transport-Contract Hire,J01374,Transport Related Expenditure ,Contract Hire and Op Leasing  ,CC64,HIRING TRANSPORT SEN CABS               ,610,31/05/2014,REV,GALPINS SERVICE               
1985,CS -Oth Operating Inc & Expend,T/A Vehicle Maintenance etc,Transport-Contract Hire,J01374,Transport Related Expenditure ,Contract Hire and Op Leasing  ,CC64,HIRING TRANSPORT SEN CABS               ,620,31/05/2014,REV,GALPINS SERVICE               
1986,CS -Oth Operating Inc & Expend,T/A Vehicle Maintenance etc,Transport-Contract Hire,J01374,Transport Related Expenditure ,Contract Hire and Op Leasing  ,CC64,HIRING TRANSPORT SEN CABS               ,952,31/05/2014,REV,GALPINS SERVICE               
1987,CS -Oth Operating Inc & Expend,T/A Vehicle Maintenance etc,Transport-Contract Hire,J01374,Transport Related Expenditure ,Contract Hire and Op Leasing  ,CC64,HIRING TRANSPORT SEN CABS               ,750,31/05/2014,REV,GALPINS SERVICE               
2131,CS -Oth Operating Inc & Expend,T/A Vehicle Maintenance etc,Transport-Contract Hire,J01374,Transport Related Expenditure ,Contract Hire and Op Leasing  ,CC53,Plant Hire for MRCS                     ,"1,848.00",02/06/2014,REV,GVS HIRE LTD                  
2132,CS -Oth Operating Inc & Expend,T/A Vehicle Maintenance etc,Transport-Contract Hire,J01374,Transport Related Expenditure ,Contract Hire and Op Leasing  ,CC53,Plant Hire for MRCS                     ,"1,848.00",02/06/2014,REV,GVS HIRE LTD                  
2185,CS -Oth Operating Inc & Expend,T/A Vehicle Maintenance etc,Transport-Contract Hire,J01374,Transport Related Expenditure ,Direct Transport Costs        ,CA01,Petrol Derv & Oil                       ,"38,616.38",29/05/2014,REV,HARVEST ENERGY LIMITED        
2567,CS -Oth Operating Inc & Expend,T/A Vehicle Maintenance etc,Transport-Contract Hire,J01374,Transport Related Expenditure ,Contract Hire and Op Leasing  ,CC64,HIRING TRANSPORT SEN CABS               ,555,29/05/2014,REV,KENDALL CARS                  
2568,CS -Oth Operating Inc & Expend,T/A Vehicle Maintenance etc,Transport-Contract Hire,J01374,Transport Related Expenditure ,Contract Hire and Op Leasing  ,CC64,HIRING TRANSPORT SEN CABS               ,533,29/05/2014,REV,KENDALL CARS                  
2647,CS -Oth Operating Inc & Expend,T/A Vehicle Maintenance etc,Transport-Contract Hire,J01374,Transport Related Expenditure ,Contract Hire and Op Leasing  ,CC64,HIRING TRANSPORT SEN CABS               ,"1,036.80",31/05/2014,REV,KINGSTON ACCESSIBILITY TRAN LT
2648,CS -Oth Operating Inc & Expend,T/A Vehicle Maintenance etc,Transport-Contract Hire,J01374,Transport Related Expenditure ,Contract Hire and Op Leasing  ,CC64,HIRING TRANSPORT SEN CABS               ,"1,984.00",31/05/2014,REV,KINGSTON ACCESSIBILITY TRAN LT
2649,CS -Oth Operating Inc & Expend,T/A Vehicle Maintenance etc,Transport-Contract Hire,J01374,Transport Related Expenditure ,Contract Hire and Op Leasing  ,CC64,HIRING TRANSPORT SEN CABS               ,"2,240.00",31/05/2014,REV,KINGSTON ACCESSIBILITY TRAN LT
2650,CS -Oth Operating Inc & Expend,T/A Vehicle Maintenance etc,Transport-Contract Hire,J01374,Transport Related Expenditure ,Contract Hire and Op Leasing  ,CC64,HIRING TRANSPORT SEN CABS               ,"1,196.70",31/05/2014,REV,KINGSTON ACCESSIBILITY TRAN LT
2651,CS -Oth Operating Inc & Expend,T/A Vehicle Maintenance etc,Transport-Contract Hire,J01374,Transport Related Expenditure ,Contract Hire and Op Leasing  ,CC64,HIRING TRANSPORT SEN CABS               ,"1,664.00",31/05/2014,REV,KINGSTON ACCESSIBILITY TRAN LT
2652,CS -Oth Operating Inc & Expend,T/A Vehicle Maintenance etc,Transport-Contract Hire,J01374,Transport Related Expenditure ,Contract Hire and Op Leasing  ,CC64,HIRING TRANSPORT SEN CABS               ,"2,544.00",31/05/2014,REV,KINGSTON ACCESSIBILITY TRAN LT
2653,CS -Oth Operating Inc & Expend,T/A Vehicle Maintenance etc,Transport-Contract Hire,J01374,Transport Related Expenditure ,Contract Hire and Op Leasing  ,CC64,HIRING TRANSPORT SEN CABS               ,999.8,31/05/2014,REV,KINGSTON ACCESSIBILITY TRAN LT
2654,CS -Oth Operating Inc & Expend,T/A Vehicle Maintenance etc,Transport-Contract Hire,J01374,Transport Related Expenditure ,Contract Hire and Op Leasing  ,CC64,HIRING TRANSPORT SEN CABS               ,"1,536.00",31/05/2014,REV,KINGSTON ACCESSIBILITY TRAN LT
2655,CS -Oth Operating Inc & Expend,T/A Vehicle Maintenance etc,Transport-Contract Hire,J01374,Transport Related Expenditure ,Contract Hire and Op Leasing  ,CC64,HIRING TRANSPORT SEN CABS               ,750,31/05/2014,REV,KINGSTON ACCESSIBILITY TRAN LT
2656,CS -Oth Operating Inc & Expend,T/A Vehicle Maintenance etc,Transport-Contract Hire,J01374,Transport Related Expenditure ,Contract Hire and Op Leasing  ,CC64,HIRING TRANSPORT SEN CABS               ,"1,484.48",31/05/2014,REV,KINGSTON ACCESSIBILITY TRAN LT
2657,CS -Oth Operating Inc & Expend,T/A Vehicle Maintenance etc,Transport-Contract Hire,J01374,Transport Related Expenditure ,Contract Hire and Op Leasing  ,CC64,HIRING TRANSPORT SEN CABS               ,"1,439.52",31/05/2014,REV,KINGSTON ACCESSIBILITY TRAN LT
2658,CS -Oth Operating Inc & Expend,T/A Vehicle Maintenance etc,Transport-Contract Hire,J01374,Transport Related Expenditure ,Contract Hire and Op Leasing  ,CC64,HIRING TRANSPORT SEN CABS               ,"2,175.68",31/05/2014,REV,KINGSTON ACCESSIBILITY TRAN LT
2659,CS -Oth Operating Inc & Expend,T/A Vehicle Maintenance etc,Transport-Contract Hire,J01374,Transport Related Expenditure ,Contract Hire and Op Leasing  ,CC64,HIRING TRANSPORT SEN CABS               ,"2,076.48",31/05/2014,REV,KINGSTON ACCESSIBILITY TRAN LT
2660,CS -Oth Operating Inc & Expend,T/A Vehicle Maintenance etc,Transport-Contract Hire,J01374,Transport Related Expenditure ,Contract Hire and Op Leasing  ,CC64,HIRING TRANSPORT SEN CABS               ,"2,336.00",31/05/2014,REV,KINGSTON ACCESSIBILITY TRAN LT
2683,CS -Oth Operating Inc & Expend,T/A Vehicle Maintenance etc,Transport-Contract Hire,J01374,Transport Related Expenditure ,Contract Hire and Op Leasing  ,CC67,HIRING TRANSPORT H&SS CAB ADULTS        ,948,29/05/2014,REV,CALVERTON FACTORS LTD         
3302,CS -Oth Operating Inc & Expend,T/A Vehicle Maintenance etc,Transport-Contract Hire,J01374,Transport Related Expenditure ,Contract Hire and Op Leasing  ,CC64,HIRING TRANSPORT SEN CABS               ,"1,250.00",31/05/2014,REV,NVCAR HIRE LTD                
3303,CS -Oth Operating Inc & Expend,T/A Vehicle Maintenance etc,Transport-Contract Hire,J01374,Transport Related Expenditure ,Contract Hire and Op Leasing  ,CC64,HIRING TRANSPORT SEN CABS               ,640,31/05/2014,REV,NVCAR HIRE LTD                
3304,CS -Oth Operating Inc & Expend,T/A Vehicle Maintenance etc,Transport-Contract Hire,J01374,Transport Related Expenditure ,Contract Hire and Op Leasing  ,CC64,HIRING TRANSPORT SEN CABS               ,748,31/05/2014,REV,NVCAR HIRE LTD                
3305,CS -Oth Operating Inc & Expend,T/A Vehicle Maintenance etc,Transport-Contract Hire,J01374,Transport Related Expenditure ,Contract Hire and Op Leasing  ,CC64,HIRING TRANSPORT SEN CABS               ,630,31/05/2014,REV,NVCAR HIRE LTD                
3306,CS -Oth Operating Inc & Expend,T/A Vehicle Maintenance etc,Transport-Contract Hire,J01374,Transport Related Expenditure ,Contract Hire and Op Leasing  ,CC64,HIRING TRANSPORT SEN CABS               ,725,31/05/2014,REV,NVCAR HIRE LTD                
3307,CS -Oth Operating Inc & Expend,T/A Vehicle Maintenance etc,Transport-Contract Hire,J01374,Transport Related Expenditure ,Contract Hire and Op Leasing  ,CC64,HIRING TRANSPORT SEN CABS               ,"1,152.00",31/05/2014,REV,NVCAR HIRE LTD                
3308,CS -Oth Operating Inc & Expend,T/A Vehicle Maintenance etc,Transport-Contract Hire,J01374,Transport Related Expenditure ,Contract Hire and Op Leasing  ,CC64,HIRING TRANSPORT SEN CABS               ,"2,192.00",31/05/2014,REV,NVCAR HIRE LTD                
3309,CS -Oth Operating Inc & Expend,T/A Vehicle Maintenance etc,Transport-Contract Hire,J01374,Transport Related Expenditure ,Contract Hire and Op Leasing  ,CC64,HIRING TRANSPORT SEN CABS               ,"1,248.00",31/05/2014,REV,NVCAR HIRE LTD                
3310,CS -Oth Operating Inc & Expend,T/A Vehicle Maintenance etc,Transport-Contract Hire,J01374,Transport Related Expenditure ,Contract Hire and Op Leasing  ,CC64,HIRING TRANSPORT SEN CABS               ,"1,152.00",31/05/2014,REV,NVCAR HIRE LTD                
3311,CS -Oth Operating Inc & Expend,T/A Vehicle Maintenance etc,Transport-Contract Hire,J01374,Transport Related Expenditure ,Contract Hire and Op Leasing  ,CC64,HIRING TRANSPORT SEN CABS               ,"1,056.00",31/05/2014,REV,NVCAR HIRE LTD                
3312,CS -Oth Operating Inc & Expend,T/A Vehicle Maintenance etc,Transport-Contract Hire,J01374,Transport Related Expenditure ,Contract Hire and Op Leasing  ,CC64,HIRING TRANSPORT SEN CABS               ,"1,170.00",31/05/2014,REV,NVCAR HIRE LTD                
3313,CS -Oth Operating Inc & Expend,T/A Vehicle Maintenance etc,Transport-Contract Hire,J01374,Transport Related Expenditure ,Contract Hire and Op Leasing  ,CC64,HIRING TRANSPORT SEN CABS               ,"1,465.00",31/05/2014,REV,NVCAR HIRE LTD                
3314,CS -Oth Operating Inc & Expend,T/A Vehicle Maintenance etc,Transport-Contract Hire,J01374,Transport Related Expenditure ,Contract Hire and Op Leasing  ,CC64,HIRING TRANSPORT SEN CABS               ,990,31/05/2014,REV,NVCAR HIRE LTD                
3315,CS -Oth Operating Inc & Expend,T/A Vehicle Maintenance etc,Transport-Contract Hire,J01374,Transport Related Expenditure ,Contract Hire and Op Leasing  ,CC64,HIRING TRANSPORT SEN CABS               ,"1,050.00",31/05/2014,REV,NVCAR HIRE LTD                
3316,CS -Oth Operating Inc & Expend,T/A Vehicle Maintenance etc,Transport-Contract Hire,J01374,Transport Related Expenditure ,Contract Hire and Op Leasing  ,CC64,HIRING TRANSPORT SEN CABS               ,616,31/05/2014,REV,NVCAR HIRE LTD                
3317,CS -Oth Operating Inc & Expend,T/A Vehicle Maintenance etc,Transport-Contract Hire,J01374,Transport Related Expenditure ,Contract Hire and Op Leasing  ,CC64,HIRING TRANSPORT SEN CABS               ,594,31/05/2014,REV,NVCAR HIRE LTD                
3318,CS -Oth Operating Inc & Expend,T/A Vehicle Maintenance etc,Transport-Contract Hire,J01374,Transport Related Expenditure ,Contract Hire and Op Leasing  ,CC64,HIRING TRANSPORT SEN CABS               ,"1,152.00",31/05/2014,REV,NVCAR HIRE LTD                
3319,CS -Oth Operating Inc & Expend,T/A Vehicle Maintenance etc,Transport-Contract Hire,J01374,Transport Related Expenditure ,Contract Hire and Op Leasing  ,CC64,HIRING TRANSPORT SEN CABS               ,648,31/05/2014,REV,NVCAR HIRE LTD                
3320,CS -Oth Operating Inc & Expend,T/A Vehicle Maintenance etc,Transport-Contract Hire,J01374,Transport Related Expenditure ,Contract Hire and Op Leasing  ,CC64,HIRING TRANSPORT SEN CABS               ,"1,920.00",31/05/2014,REV,NVCAR HIRE LTD                
3321,CS -Oth Operating Inc & Expend,T/A Vehicle Maintenance etc,Transport-Contract Hire,J01374,Transport Related Expenditure ,Contract Hire and Op Leasing  ,CC66,HIRING TRANSPORT H&SS CAB CHILDREN      ,576,31/05/2014,REV,NVCAR HIRE LTD                
3322,CS -Oth Operating Inc & Expend,T/A Vehicle Maintenance etc,Transport-Contract Hire,J01374,Transport Related Expenditure ,Contract Hire and Op Leasing  ,CC67,HIRING TRANSPORT H&SS CAB ADULTS        ,600,31/05/2014,REV,NVCAR HIRE LTD                
3323,CS -Oth Operating Inc & Expend,T/A Vehicle Maintenance etc,Transport-Contract Hire,J01374,Transport Related Expenditure ,Contract Hire and Op Leasing  ,CC67,HIRING TRANSPORT H&SS CAB ADULTS        ,988,31/05/2014,REV,NVCAR HIRE LTD                
3324,CS -Oth Operating Inc & Expend,T/A Vehicle Maintenance etc,Transport-Contract Hire,J01374,Transport Related Expenditure ,Contract Hire and Op Leasing  ,CC67,HIRING TRANSPORT H&SS CAB ADULTS        ,672,31/05/2014,REV,NVCAR HIRE LTD                
3325,CS -Oth Operating Inc & Expend,T/A Vehicle Maintenance etc,Transport-Contract Hire,J01374,Transport Related Expenditure ,Contract Hire and Op Leasing  ,CC67,HIRING TRANSPORT H&SS CAB ADULTS        ,608,31/05/2014,REV,NVCAR HIRE LTD                
3326,CS -Oth Operating Inc & Expend,T/A Vehicle Maintenance etc,Transport-Contract Hire,J01374,Transport Related Expenditure ,Contract Hire and Op Leasing  ,CC67,HIRING TRANSPORT H&SS CAB ADULTS        ,"1,300.00",31/05/2014,REV,NVCAR HIRE LTD                
3327,CS -Oth Operating Inc & Expend,T/A Vehicle Maintenance etc,Transport-Contract Hire,J01374,Transport Related Expenditure ,Contract Hire and Op Leasing  ,CC68,HIRING TRANSPORT SEN COLLEGES CABS      ,550,31/05/2014,REV,NVCAR HIRE LTD                
3445,CS -Oth Operating Inc & Expend,T/A Vehicle Maintenance etc,Transport-Contract Hire,J01374,Transport Related Expenditure ,Contract Hire and Op Leasing  ,CC53,Plant Hire for MRCS                     ,610,10/06/2014,REV,PFB HIRE LTD                  
3446,CS -Oth Operating Inc & Expend,T/A Vehicle Maintenance etc,Transport-Contract Hire,J01374,Transport Related Expenditure ,Contract Hire and Op Leasing  ,CC53,Plant Hire for MRCS                     ,610,03/06/2014,REV,PFB HIRE LTD                  
3513,CS -Oth Operating Inc & Expend,T/A Vehicle Maintenance etc,Transport-Contract Hire,J01374,Transport Related Expenditure ,Contract Hire and Op Leasing  ,CC64,HIRING TRANSPORT SEN CABS               ,720,11/06/2014,REV,PREMIER CARS                  
3690,CS -Oth Operating Inc & Expend,T/A Vehicle Maintenance etc,Transport-Contract Hire,J01374,Transport Related Expenditure ,Contract Hire and Op Leasing  ,CC53,Plant Hire for MRCS                     ,726,31/05/2014,REV,REDACTED
3691,CS -Oth Operating Inc & Expend,T/A Vehicle Maintenance etc,Transport-Contract Hire,J01374,Transport Related Expenditure ,Contract Hire and Op Leasing  ,CC56,Plant Hire for Leisure                  ,"1,755.00",31/05/2014,REV,REDACTED
3692,CS -Oth Operating Inc & Expend,T/A Vehicle Maintenance etc,Transport-Contract Hire,J01374,Transport Related Expenditure ,Contract Hire and Op Leasing  ,CC57,Pland Hire for Housing                  ,940,31/05/2014,REV,REDACTED
3693,CS -Oth Operating Inc & Expend,T/A Vehicle Maintenance etc,Transport-Contract Hire,J01374,Transport Related Expenditure ,Contract Hire and Op Leasing  ,CC59,HIRING TRANSPORT OPERATIONS             ,"2,238.32",31/05/2014,REV,REDACTED
3876,CS -Oth Operating Inc & Expend,T/A Vehicle Maintenance etc,Transport-Contract Hire,J01374,Transport Related Expenditure ,Contract Hire and Op Leasing  ,CC64,HIRING TRANSPORT SEN CABS               ,"1,904.00",31/05/2014,REV,SHERWOOD TRANSPORT GROUP      
3877,CS -Oth Operating Inc & Expend,T/A Vehicle Maintenance etc,Transport-Contract Hire,J01374,Transport Related Expenditure ,Contract Hire and Op Leasing  ,CC64,HIRING TRANSPORT SEN CABS               ,735,31/05/2014,REV,SHERWOOD TRANSPORT GROUP      
3878,CS -Oth Operating Inc & Expend,T/A Vehicle Maintenance etc,Transport-Contract Hire,J01374,Transport Related Expenditure ,Contract Hire and Op Leasing  ,CC64,HIRING TRANSPORT SEN CABS               ,"1,435.50",31/05/2014,REV,SHERWOOD TRANSPORT GROUP      
3879,CS -Oth Operating Inc & Expend,T/A Vehicle Maintenance etc,Transport-Contract Hire,J01374,Transport Related Expenditure ,Contract Hire and Op Leasing  ,CC64,HIRING TRANSPORT SEN CABS               ,"2,640.00",31/05/2014,REV,SHERWOOD TRANSPORT GROUP      
3880,CS -Oth Operating Inc & Expend,T/A Vehicle Maintenance etc,Transport-Contract Hire,J01374,Transport Related Expenditure ,Contract Hire and Op Leasing  ,CC64,HIRING TRANSPORT SEN CABS               ,"2,544.00",31/05/2014,REV,SHERWOOD TRANSPORT GROUP      
3881,CS -Oth Operating Inc & Expend,T/A Vehicle Maintenance etc,Transport-Contract Hire,J01374,Transport Related Expenditure ,Contract Hire and Op Leasing  ,CC64,HIRING TRANSPORT SEN CABS               ,"1,548.80",31/05/2014,REV,SHERWOOD TRANSPORT GROUP      
3882,CS -Oth Operating Inc & Expend,T/A Vehicle Maintenance etc,Transport-Contract Hire,J01374,Transport Related Expenditure ,Contract Hire and Op Leasing  ,CC64,HIRING TRANSPORT SEN CABS               ,"1,106.00",31/05/2014,REV,SHERWOOD TRANSPORT GROUP      
3883,CS -Oth Operating Inc & Expend,T/A Vehicle Maintenance etc,Transport-Contract Hire,J01374,Transport Related Expenditure ,Contract Hire and Op Leasing  ,CC64,HIRING TRANSPORT SEN CABS               ,"2,544.00",31/05/2014,REV,SHERWOOD TRANSPORT GROUP      
3884,CS -Oth Operating Inc & Expend,T/A Vehicle Maintenance etc,Transport-Contract Hire,J01374,Transport Related Expenditure ,Contract Hire and Op Leasing  ,CC64,HIRING TRANSPORT SEN CABS               ,"1,305.00",31/05/2014,REV,SHERWOOD TRANSPORT GROUP      
3885,CS -Oth Operating Inc & Expend,T/A Vehicle Maintenance etc,Transport-Contract Hire,J01374,Transport Related Expenditure ,Contract Hire and Op Leasing  ,CC64,HIRING TRANSPORT SEN CABS               ,"1,584.00",31/05/2014,REV,SHERWOOD TRANSPORT GROUP      
3886,CS -Oth Operating Inc & Expend,T/A Vehicle Maintenance etc,Transport-Contract Hire,J01374,Transport Related Expenditure ,Contract Hire and Op Leasing  ,CC64,HIRING TRANSPORT SEN CABS               ,825,31/05/2014,REV,SHERWOOD TRANSPORT GROUP      
3887,CS -Oth Operating Inc & Expend,T/A Vehicle Maintenance etc,Transport-Contract Hire,J01374,Transport Related Expenditure ,Contract Hire and Op Leasing  ,CC64,HIRING TRANSPORT SEN CABS               ,"2,640.00",31/05/2014,REV,SHERWOOD TRANSPORT GROUP      
3888,CS -Oth Operating Inc & Expend,T/A Vehicle Maintenance etc,Transport-Contract Hire,J01374,Transport Related Expenditure ,Contract Hire and Op Leasing  ,CC64,HIRING TRANSPORT SEN CABS               ,848,31/05/2014,REV,SHERWOOD TRANSPORT GROUP      
3889,CS -Oth Operating Inc & Expend,T/A Vehicle Maintenance etc,Transport-Contract Hire,J01374,Transport Related Expenditure ,Contract Hire and Op Leasing  ,CC64,HIRING TRANSPORT SEN CABS               ,"1,350.00",31/05/2014,REV,SHERWOOD TRANSPORT GROUP      
3890,CS -Oth Operating Inc & Expend,T/A Vehicle Maintenance etc,Transport-Contract Hire,J01374,Transport Related Expenditure ,Contract Hire and Op Leasing  ,CC64,HIRING TRANSPORT SEN CABS               ,"1,640.00",31/05/2014,REV,SHERWOOD TRANSPORT GROUP      
3891,CS -Oth Operating Inc & Expend,T/A Vehicle Maintenance etc,Transport-Contract Hire,J01374,Transport Related Expenditure ,Contract Hire and Op Leasing  ,CC64,HIRING TRANSPORT SEN CABS               ,"1,120.00",31/05/2014,REV,SHERWOOD TRANSPORT GROUP      
3892,CS -Oth Operating Inc & Expend,T/A Vehicle Maintenance etc,Transport-Contract Hire,J01374,Transport Related Expenditure ,Contract Hire and Op Leasing  ,CC64,HIRING TRANSPORT SEN CABS               ,750,31/05/2014,REV,SHERWOOD TRANSPORT GROUP      
3893,CS -Oth Operating Inc & Expend,T/A Vehicle Maintenance etc,Transport-Contract Hire,J01374,Transport Related Expenditure ,Contract Hire and Op Leasing  ,CC64,HIRING TRANSPORT SEN CABS               ,"1,137.50",31/05/2014,REV,SHERWOOD TRANSPORT GROUP      
3894,CS -Oth Operating Inc & Expend,T/A Vehicle Maintenance etc,Transport-Contract Hire,J01374,Transport Related Expenditure ,Contract Hire and Op Leasing  ,CC64,HIRING TRANSPORT SEN CABS               ,"1,260.00",31/05/2014,REV,SHERWOOD TRANSPORT GROUP      
3895,CS -Oth Operating Inc & Expend,T/A Vehicle Maintenance etc,Transport-Contract Hire,J01374,Transport Related Expenditure ,Contract Hire and Op Leasing  ,CC64,HIRING TRANSPORT SEN CABS               ,675,31/05/2014,REV,SHERWOOD TRANSPORT GROUP      
3896,CS -Oth Operating Inc & Expend,T/A Vehicle Maintenance etc,Transport-Contract Hire,J01374,Transport Related Expenditure ,Contract Hire and Op Leasing  ,CC64,HIRING TRANSPORT SEN CABS               ,880,31/05/2014,REV,SHERWOOD TRANSPORT GROUP      
3910,CS -Oth Operating Inc & Expend,T/A Vehicle Maintenance etc,Transport-Contract Hire,J01374,Transport Related Expenditure ,Contract Hire and Op Leasing  ,CC64,HIRING TRANSPORT SEN CABS               ,"1,542.40",25/05/2014,REV,SILVERBURN FINANCE (UK) LTD   
3911,CS -Oth Operating Inc & Expend,T/A Vehicle Maintenance etc,Transport-Contract Hire,J01374,Transport Related Expenditure ,Contract Hire and Op Leasing  ,CC64,HIRING TRANSPORT SEN CABS               ,810,25/05/2014,REV,SILVERBURN FINANCE (UK) LTD   
3912,CS -Oth Operating Inc & Expend,T/A Vehicle Maintenance etc,Transport-Contract Hire,J01374,Transport Related Expenditure ,Contract Hire and Op Leasing  ,CC64,HIRING TRANSPORT SEN CABS               ,"2,711.04",25/05/2014,REV,SILVERBURN FINANCE (UK) LTD   
3913,CS -Oth Operating Inc & Expend,T/A Vehicle Maintenance etc,Transport-Contract Hire,J01374,Transport Related Expenditure ,Contract Hire and Op Leasing  ,CC64,HIRING TRANSPORT SEN CABS               ,654.4,25/05/2014,REV,SILVERBURN FINANCE (UK) LTD   
3914,CS -Oth Operating Inc & Expend,T/A Vehicle Maintenance etc,Transport-Contract Hire,J01374,Transport Related Expenditure ,Contract Hire and Op Leasing  ,CC64,HIRING TRANSPORT SEN CABS               ,"1,056.00",25/05/2014,REV,SILVERBURN FINANCE (UK) LTD   
3915,CS -Oth Operating Inc & Expend,T/A Vehicle Maintenance etc,Transport-Contract Hire,J01374,Transport Related Expenditure ,Contract Hire and Op Leasing  ,CC64,HIRING TRANSPORT SEN CABS               ,720,25/05/2014,REV,SILVERBURN FINANCE (UK) LTD   
3916,CS -Oth Operating Inc & Expend,T/A Vehicle Maintenance etc,Transport-Contract Hire,J01374,Transport Related Expenditure ,Contract Hire and Op Leasing  ,CC64,HIRING TRANSPORT SEN CABS               ,960,25/05/2014,REV,SILVERBURN FINANCE (UK) LTD   
3917,CS -Oth Operating Inc & Expend,T/A Vehicle Maintenance etc,Transport-Contract Hire,J01374,Transport Related Expenditure ,Contract Hire and Op Leasing  ,CC64,HIRING TRANSPORT SEN CABS               ,"1,190.40",25/05/2014,REV,SILVERBURN FINANCE (UK) LTD   
3918,CS -Oth Operating Inc & Expend,T/A Vehicle Maintenance etc,Transport-Contract Hire,J01374,Transport Related Expenditure ,Contract Hire and Op Leasing  ,CC64,HIRING TRANSPORT SEN CABS               ,"1,056.00",25/05/2014,REV,SILVERBURN FINANCE (UK) LTD   
3919,CS -Oth Operating Inc & Expend,T/A Vehicle Maintenance etc,Transport-Contract Hire,J01374,Transport Related Expenditure ,Contract Hire and Op Leasing  ,CC64,HIRING TRANSPORT SEN CABS               ,"2,864.00",25/05/2014,REV,SILVERBURN FINANCE (UK) LTD   
3920,CS -Oth Operating Inc & Expend,T/A Vehicle Maintenance etc,Transport-Contract Hire,J01374,Transport Related Expenditure ,Contract Hire and Op Leasing  ,CC64,HIRING TRANSPORT SEN CABS               ,726,30/04/2014,REV,SILVERBURN FINANCE (UK) LTD   
3921,CS -Oth Operating Inc & Expend,T/A Vehicle Maintenance etc,Transport-Contract Hire,J01374,Transport Related Expenditure ,Contract Hire and Op Leasing  ,CC66,HIRING TRANSPORT H&SS CAB CHILDREN      ,522.86,25/05/2014,REV,SILVERBURN FINANCE (UK) LTD   
4117,CS -Oth Operating Inc & Expend,T/A Vehicle Maintenance etc,Transport-Contract Hire,J01374,Transport Related Expenditure ,Contract Hire and Op Leasing  ,CC64,HIRING TRANSPORT SEN CABS               ,832,31/05/2014,REV,CHEAM STATION CARS            
4118,CS -Oth Operating Inc & Expend,T/A Vehicle Maintenance etc,Transport-Contract Hire,J01374,Transport Related Expenditure ,Contract Hire and Op Leasing  ,CC64,HIRING TRANSPORT SEN CABS               ,"1,350.00",31/05/2014,REV,CHEAM STATION CARS            
4119,CS -Oth Operating Inc & Expend,T/A Vehicle Maintenance etc,Transport-Contract Hire,J01374,Transport Related Expenditure ,Contract Hire and Op Leasing  ,CC64,HIRING TRANSPORT SEN CABS               ,750,31/05/2014,REV,CHEAM STATION CARS            
4492,CS -Oth Operating Inc & Expend,T/A Vehicle Maintenance etc,Transport-Contract Hire,J01374,Transport Related Expenditure ,Contract Hire and Op Leasing  ,CC64,HIRING TRANSPORT SEN CABS               ,"2,208.00",31/05/2014,REV,WALLINGTON CARS & COURIERS LTD
4493,CS -Oth Operating Inc & Expend,T/A Vehicle Maintenance etc,Transport-Contract Hire,J01374,Transport Related Expenditure ,Contract Hire and Op Leasing  ,CC64,HIRING TRANSPORT SEN CABS               ,"2,550.00",31/05/2014,REV,WALLINGTON CARS & COURIERS LTD
4494,CS -Oth Operating Inc & Expend,T/A Vehicle Maintenance etc,Transport-Contract Hire,J01374,Transport Related Expenditure ,Contract Hire and Op Leasing  ,CC67,HIRING TRANSPORT H&SS CAB ADULTS        ,589,31/05/2014,REV,WALLINGTON CARS & COURIERS LTD
259,CS -Oth Operating Inc & Expend,T/A Vehicle Maintenance etc,Transport-Workshop,J01376,Transport Related Expenditure ,Contract Hire and Op Leasing  ,CC60,Vehicle Hire for LB Sutton              ,"4,960.00",31/05/2014,REV,BARCLAYS ASSET & SALES FINANCE
260,CS -Oth Operating Inc & Expend,T/A Vehicle Maintenance etc,Transport-Workshop,J01376,Transport Related Expenditure ,Contract Hire and Op Leasing  ,CC60,Vehicle Hire for LB Sutton              ,"1,788.00",30/05/2014,REV,BARCLAYS ASSET & SALES FINANCE
261,CS -Oth Operating Inc & Expend,T/A Vehicle Maintenance etc,Transport-Workshop,J01376,Transport Related Expenditure ,Contract Hire and Op Leasing  ,CC65,Vehicle Hire for Education              ,952,31/05/2014,REV,BARCLAYS ASSET & SALES FINANCE
262,CS -Oth Operating Inc & Expend,T/A Vehicle Maintenance etc,Transport-Workshop,J01376,Transport Related Expenditure ,Contract Hire and Op Leasing  ,CC65,Vehicle Hire for Education              ,"1,792.00",31/05/2014,REV,BARCLAYS ASSET & SALES FINANCE
472,CS -Oth Operating Inc & Expend,T/A Vehicle Maintenance etc,Transport-Workshop,J01376,Transport Related Expenditure ,Contract Hire and Op Leasing  ,CC60,Vehicle Hire for LB Sutton              ,"2,240.00",31/05/2014,REV,BRUNSWICK CARS LTD            
473,CS -Oth Operating Inc & Expend,T/A Vehicle Maintenance etc,Transport-Workshop,J01376,Transport Related Expenditure ,Contract Hire and Op Leasing  ,CC60,Vehicle Hire for LB Sutton              ,"1,648.00",31/05/2014,REV,BRUNSWICK CARS LTD            
474,CS -Oth Operating Inc & Expend,T/A Vehicle Maintenance etc,Transport-Workshop,J01376,Transport Related Expenditure ,Contract Hire and Op Leasing  ,CC60,Vehicle Hire for LB Sutton              ,"1,400.00",30/04/2014,REV,BRUNSWICK CARS LTD            
475,CS -Oth Operating Inc & Expend,T/A Vehicle Maintenance etc,Transport-Workshop,J01376,Transport Related Expenditure ,Contract Hire and Op Leasing  ,CC60,Vehicle Hire for LB Sutton              ,"1,133.00",30/04/2014,REV,BRUNSWICK CARS LTD            
860,CS -Oth Operating Inc & Expend,T/A Vehicle Maintenance etc,Transport-Workshop,J01376,Transport Related Expenditure ,Contract Hire and Op Leasing  ,CC60,Vehicle Hire for LB Sutton              ,"2,800.00",31/05/2014,REV,CAPITAL CARS                  
2684,CS -Oth Operating Inc & Expend,T/A Vehicle Maintenance etc,Transport-Workshop,J01376,Transport Related Expenditure ,Contract Hire and Op Leasing  ,CC60,Vehicle Hire for LB Sutton              ,"1,910.00",29/05/2014,REV,CALVERTON FACTORS LTD         
2685,CS -Oth Operating Inc & Expend,T/A Vehicle Maintenance etc,Transport-Workshop,J01376,Transport Related Expenditure ,Contract Hire and Op Leasing  ,CC60,Vehicle Hire for LB Sutton              ,"1,270.00",09/05/2014,REV,CALVERTON FACTORS LTD         
2686,CS -Oth Operating Inc & Expend,T/A Vehicle Maintenance etc,Transport-Workshop,J01376,Transport Related Expenditure ,Contract Hire and Op Leasing  ,CC60,Vehicle Hire for LB Sutton              ,840,29/05/2014,REV,CALVERTON FACTORS LTD         
1548,CS -Oth Operating Inc & Expend,T/A Vehicle Maintenance etc,Vehicle Workshops,J01378,Transport Related Expenditure ,Direct Transport Costs        ,CA72,Vehicle Parts                           ,526.28,16/06/2014,REV,COMMERCIAL & PLANT LTD        
1714,CS -Oth Operating Inc & Expend,T/A Vehicle Maintenance etc,Vehicle Workshops,J01378,Transport Related Expenditure ,Direct Transport Costs        ,CA72,Vehicle Parts                           ,632.56,13/06/2014,REV,DENNIS EAGLE LIMITED          
1715,CS -Oth Operating Inc & Expend,T/A Vehicle Maintenance etc,Vehicle Workshops,J01378,Transport Related Expenditure ,Direct Transport Costs        ,CA72,Vehicle Parts                           ,"1,289.92",06/06/2014,REV,DENNIS EAGLE LIMITED          
1716,CS -Oth Operating Inc & Expend,T/A Vehicle Maintenance etc,Vehicle Workshops,J01378,Transport Related Expenditure ,Direct Transport Costs        ,CA72,Vehicle Parts                           ,"1,465.94",21/05/2014,REV,DENNIS EAGLE LIMITED          
1717,CS -Oth Operating Inc & Expend,T/A Vehicle Maintenance etc,Vehicle Workshops,J01378,Transport Related Expenditure ,Direct Transport Costs        ,CA72,Vehicle Parts                           ,787.9,03/06/2014,REV,DENNIS EAGLE LIMITED          
1718,CS -Oth Operating Inc & Expend,T/A Vehicle Maintenance etc,Vehicle Workshops,J01378,Transport Related Expenditure ,Direct Transport Costs        ,CA72,Vehicle Parts                           ,597.26,10/06/2014,REV,DENNIS EAGLE LIMITED          
1911,CS -Oth Operating Inc & Expend,T/A Vehicle Maintenance etc,Vehicle Workshops,J01378,Transport Related Expenditure ,Direct Transport Costs        ,CA56,Specialist Maint. (On Site)             ,536.96,06/06/2014,REV,FARID MUNICIPAL VEHICLES LTD  
1927,CS -Oth Operating Inc & Expend,T/A Vehicle Maintenance etc,Vehicle Workshops,J01378,Transport Related Expenditure ,Direct Transport Costs        ,CA55,Specialist Maint. (Off Site)            ,"1,434.56",23/05/2014,REV,FLEETSPEED COACHWORKS LTD.    
2028,CS -Oth Operating Inc & Expend,T/A Vehicle Maintenance etc,Vehicle Workshops,J01378,Transport Related Expenditure ,Direct Transport Costs        ,CA56,Specialist Maint. (On Site)             ,"1,829.94",23/05/2014,REV,GEESINK NORBA                 
2029,CS -Oth Operating Inc & Expend,T/A Vehicle Maintenance etc,Vehicle Workshops,J01378,Transport Related Expenditure ,Direct Transport Costs        ,CA72,Vehicle Parts                           ,835.37,30/05/2014,REV,GEESINK NORBA                 
2030,CS -Oth Operating Inc & Expend,T/A Vehicle Maintenance etc,Vehicle Workshops,J01378,Transport Related Expenditure ,Direct Transport Costs        ,CA72,Vehicle Parts                           ,993.21,30/05/2014,REV,GEESINK NORBA                 
2031,CS -Oth Operating Inc & Expend,T/A Vehicle Maintenance etc,Vehicle Workshops,J01378,Transport Related Expenditure ,Direct Transport Costs        ,CA72,Vehicle Parts                           ,"1,796.00",29/05/2014,REV,GEESINK NORBA                 
2133,CS -Oth Operating Inc & Expend,T/A Vehicle Maintenance etc,Vehicle Workshops,J01378,Transport Related Expenditure ,Direct Transport Costs        ,CA55,Specialist Maint. (Off Site)            ,"1,515.45",10/06/2014,REV,GVS HIRE LTD                  
2472,CS -Oth Operating Inc & Expend,T/A Vehicle Maintenance etc,Vehicle Workshops,J01378,Transport Related Expenditure ,Direct Transport Costs        ,CA72,Vehicle Parts                           ,634.11,20/05/2014,REV,JD ASSOCIATES                 
2481,CS -Oth Operating Inc & Expend,T/A Vehicle Maintenance etc,Vehicle Workshops,J01378,Transport Related Expenditure ,Direct Transport Costs        ,CA72,Vehicle Parts                           ,596.71,30/05/2014,REV,JOHNSTON SWEEPERS LIMITED     
2637,CS -Oth Operating Inc & Expend,T/A Vehicle Maintenance etc,Vehicle Workshops,J01378,Transport Related Expenditure ,Direct Transport Costs        ,CA55,Specialist Maint. (Off Site)            ,643.41,30/05/2014,REV,KINGSLEY COMM COMPONENTS LTD  
3217,CS -Oth Operating Inc & Expend,T/A Vehicle Maintenance etc,Vehicle Workshops,J01378,Transport Related Expenditure ,Direct Transport Costs        ,CA02,Tyres                                   ,785,13/06/2014,REV,MORDEN TYRE SERVICES LTD      
3218,CS -Oth Operating Inc & Expend,T/A Vehicle Maintenance etc,Vehicle Workshops,J01378,Transport Related Expenditure ,Direct Transport Costs        ,CA02,Tyres                                   ,630,17/06/2014,REV,MORDEN TYRE SERVICES LTD      
3219,CS -Oth Operating Inc & Expend,T/A Vehicle Maintenance etc,Vehicle Workshops,J01378,Transport Related Expenditure ,Direct Transport Costs        ,CA02,Tyres                                   ,600,13/03/2014,REV,MORDEN TYRE SERVICES LTD      
3220,CS -Oth Operating Inc & Expend,T/A Vehicle Maintenance etc,Vehicle Workshops,J01378,Transport Related Expenditure ,Direct Transport Costs        ,CA02,Tyres                                   ,"1,940.00",22/05/2014,REV,MORDEN TYRE SERVICES LTD      
3221,CS -Oth Operating Inc & Expend,T/A Vehicle Maintenance etc,Vehicle Workshops,J01378,Transport Related Expenditure ,Direct Transport Costs        ,CA02,Tyres                                   ,"1,930.00",22/05/2014,REV,MORDEN TYRE SERVICES LTD      
3222,CS -Oth Operating Inc & Expend,T/A Vehicle Maintenance etc,Vehicle Workshops,J01378,Transport Related Expenditure ,Direct Transport Costs        ,CA02,Tyres                                   ,"1,000.00",18/06/2014,REV,MORDEN TYRE SERVICES LTD      
3223,CS -Oth Operating Inc & Expend,T/A Vehicle Maintenance etc,Vehicle Workshops,J01378,Transport Related Expenditure ,Direct Transport Costs        ,CA02,Tyres                                   ,"1,685.00",01/06/2014,REV,MORDEN TYRE SERVICES LTD      
3224,CS -Oth Operating Inc & Expend,T/A Vehicle Maintenance etc,Vehicle Workshops,J01378,Transport Related Expenditure ,Direct Transport Costs        ,CA72,Vehicle Parts                           ,"1,655.00",12/06/2014,REV,MORDEN TYRE SERVICES LTD      
3519,CS -Oth Operating Inc & Expend,T/A Vehicle Maintenance etc,Vehicle Workshops,J01378,Employees                     ,Direct Employee Expenses      ,AA17,Agency Staff & Casual Paymts            ,775.5,12/03/2014,REV,REDACTED
3520,CS -Oth Operating Inc & Expend,T/A Vehicle Maintenance etc,Vehicle Workshops,J01378,Employees                     ,Direct Employee Expenses      ,AA17,Agency Staff & Casual Paymts            ,759,15/04/2014,REV,REDACTED
3521,CS -Oth Operating Inc & Expend,T/A Vehicle Maintenance etc,Vehicle Workshops,J01378,Employees                     ,Direct Employee Expenses      ,AA17,Agency Staff & Casual Paymts            ,750.75,26/03/2014,REV,REDACTED
3522,CS -Oth Operating Inc & Expend,T/A Vehicle Maintenance etc,Vehicle Workshops,J01378,Employees                     ,Direct Employee Expenses      ,AA17,Agency Staff & Casual Paymts            ,750.75,09/04/2014,REV,REDACTED
3523,CS -Oth Operating Inc & Expend,T/A Vehicle Maintenance etc,Vehicle Workshops,J01378,Employees                     ,Direct Employee Expenses      ,AA17,Agency Staff & Casual Paymts            ,717.75,17/04/2014,REV,REDACTED
3868,CS -Oth Operating Inc & Expend,T/A Vehicle Maintenance etc,Vehicle Workshops,J01378,Transport Related Expenditure ,Direct Transport Costs        ,CA02,Tyres                                   ,678.4,04/06/2014,REV,REDACTED
3869,CS -Oth Operating Inc & Expend,T/A Vehicle Maintenance etc,Vehicle Workshops,J01378,Transport Related Expenditure ,Direct Transport Costs        ,CA72,Vehicle Parts                           ,552.5,17/05/2014,REV,REDACTED
3901,CS -Oth Operating Inc & Expend,T/A Vehicle Maintenance etc,Vehicle Workshops,J01378,Employees                     ,Direct Employee Expenses      ,AA17,Agency Staff & Casual Paymts            ,660,21/05/2014,REV,REDACTED
3902,CS -Oth Operating Inc & Expend,T/A Vehicle Maintenance etc,Vehicle Workshops,J01378,Employees                     ,Direct Employee Expenses      ,AA17,Agency Staff & Casual Paymts            ,709.5,28/05/2014,REV,REDACTED
3903,CS -Oth Operating Inc & Expend,T/A Vehicle Maintenance etc,Vehicle Workshops,J01378,Employees                     ,Direct Employee Expenses      ,AA17,Agency Staff & Casual Paymts            ,660,11/06/2014,REV,REDACTED
3904,CS -Oth Operating Inc & Expend,T/A Vehicle Maintenance etc,Vehicle Workshops,J01378,Employees                     ,Direct Employee Expenses      ,AA17,Agency Staff & Casual Paymts            ,610.5,14/05/2014,REV,REDACTED
3905,CS -Oth Operating Inc & Expend,T/A Vehicle Maintenance etc,Vehicle Workshops,J01378,Employees                     ,Direct Employee Expenses      ,AA17,Agency Staff & Casual Paymts            ,577.5,04/06/2014,REV,REDACTED
4063,CS -Oth Operating Inc & Expend,T/A Vehicle Maintenance etc,Vehicle Workshops,J01378,Transport Related Expenditure ,Direct Transport Costs        ,CA56,Specialist Maint. (On Site)             ,784.35,11/06/2014,REV,REDACTED
4064,CS -Oth Operating Inc & Expend,T/A Vehicle Maintenance etc,Vehicle Workshops,J01378,Transport Related Expenditure ,Direct Transport Costs        ,CA56,Specialist Maint. (On Site)             ,573.33,20/05/2014,REV,REDACTED
4065,CS -Oth Operating Inc & Expend,T/A Vehicle Maintenance etc,Vehicle Workshops,J01378,Transport Related Expenditure ,Direct Transport Costs        ,CA56,Specialist Maint. (On Site)             ,754.9,22/05/2014,REV,REDACTED
4066,CS -Oth Operating Inc & Expend,T/A Vehicle Maintenance etc,Vehicle Workshops,J01378,Transport Related Expenditure ,Direct Transport Costs        ,CA56,Specialist Maint. (On Site)             ,729.98,02/05/2014,REV,REDACTED
4067,CS -Oth Operating Inc & Expend,T/A Vehicle Maintenance etc,Vehicle Workshops,J01378,Transport Related Expenditure ,Direct Transport Costs        ,CA56,Specialist Maint. (On Site)             ,612.55,28/05/2014,REV,REDACTED
4068,CS -Oth Operating Inc & Expend,T/A Vehicle Maintenance etc,Vehicle Workshops,J01378,Transport Related Expenditure ,Direct Transport Costs        ,CA56,Specialist Maint. (On Site)             ,533.86,12/05/2014,REV,REDACTED
4074,CS -Oth Operating Inc & Expend,T/A Vehicle Maintenance etc,Vehicle Workshops,J01378,Supplies & Services           ,Clothing Unfrms Laundry       ,DC01,Laundry                                 ,526.96,24/05/2014,REV,SUNLIGHT SERVICE GROUP LTD    
4486,CS -Oth Operating Inc & Expend,T/A Vehicle Maintenance etc,Vehicle Workshops,J01378,Transport Related Expenditure ,Direct Transport Costs        ,CA72,Vehicle Parts                           ,512,31/05/2014,REV,VISION TECHNIQUES             
4544,CS -Oth Operating Inc & Expend,T/A Vehicle Maintenance etc,Vehicle Workshops,J01378,Transport Related Expenditure ,Direct Transport Costs        ,CA56,Specialist Maint. (On Site)             ,625,26/05/2014,REV,R.J.H.WELDING                 
4545,CS -Oth Operating Inc & Expend,T/A Vehicle Maintenance etc,Vehicle Workshops,J01378,Transport Related Expenditure ,Direct Transport Costs        ,CA56,Specialist Maint. (On Site)             ,567.5,26/05/2014,REV,R.J.H.WELDING                 
4546,CS -Oth Operating Inc & Expend,T/A Vehicle Maintenance etc,Vehicle Workshops,J01378,Transport Related Expenditure ,Direct Transport Costs        ,CA56,Specialist Maint. (On Site)             ,653.75,26/05/2014,REV,R.J.H.WELDING                 
4547,CS -Oth Operating Inc & Expend,T/A Vehicle Maintenance etc,Vehicle Workshops,J01378,Transport Related Expenditure ,Direct Transport Costs        ,CA56,Specialist Maint. (On Site)             ,538.75,26/05/2014,REV,R.J.H.WELDING                 
4548,CS -Oth Operating Inc & Expend,T/A Vehicle Maintenance etc,Vehicle Workshops,J01378,Transport Related Expenditure ,Direct Transport Costs        ,CA56,Specialist Maint. (On Site)             ,599.14,26/05/2014,REV,R.J.H.WELDING                 
4549,CS -Oth Operating Inc & Expend,T/A Vehicle Maintenance etc,Vehicle Workshops,J01378,Transport Related Expenditure ,Direct Transport Costs        ,CA56,Specialist Maint. (On Site)             ,977.5,26/05/2014,REV,R.J.H.WELDING                 
4550,CS -Oth Operating Inc & Expend,T/A Vehicle Maintenance etc,Vehicle Workshops,J01378,Transport Related Expenditure ,Direct Transport Costs        ,CA56,Specialist Maint. (On Site)             ,538.75,26/05/2014,REV,R.J.H.WELDING                 
4551,CS -Oth Operating Inc & Expend,T/A Vehicle Maintenance etc,Vehicle Workshops,J01378,Transport Related Expenditure ,Direct Transport Costs        ,CA56,Specialist Maint. (On Site)             ,690,26/05/2014,REV,R.J.H.WELDING                 
2497,Cultural Env Reg&Plan Services,Mgt & Support (Env),Estates Mgt,J01420,Supplies & Services           ,Comms and Computing           ,DG07,Computer Software                       ,850,03/06/2014,REV,KEL COMPUTING LTD             
2498,Cultural Env Reg&Plan Services,Mgt & Support (Env),Estates Mgt,J01420,Supplies & Services           ,Comms and Computing           ,DG07,Computer Software                       ,"1,170.00",03/06/2014,REV,KEL COMPUTING LTD             
1471,CS -Oth Operating Inc & Expend,Extraordinary Items & PY Adj.,Housing Shops,J01533,Premises Related Expenditure  ,RepairsAlterations&MtceOfBldgs,BA05,DDM - ELECTRICAL                        ,"1,947.81",14/04/2014,REV,EUROPA NATIONWIDE TECH.SER.LTD
3357,CS -Oth Operating Inc & Expend,Extraordinary Items & PY Adj.,Durnsford Rd Budget,J01580,Premises Related Expenditure  ,RepairsAlterations&MtceOfBldgs,BA79,SECURITY OF PREMISES                    ,923,31/03/2014,REV,OM METROPOLITAN TOTAL SEC.LTD 
3358,CS -Oth Operating Inc & Expend,Extraordinary Items & PY Adj.,Durnsford Rd Budget,J01580,Premises Related Expenditure  ,RepairsAlterations&MtceOfBldgs,BA79,SECURITY OF PREMISES                    ,"1,053.00",01/06/2014,REV,OM METROPOLITAN TOTAL SEC.LTD 
3359,CS -Oth Operating Inc & Expend,Extraordinary Items & PY Adj.,Durnsford Rd Budget,J01580,Premises Related Expenditure  ,RepairsAlterations&MtceOfBldgs,BA79,SECURITY OF PREMISES                    ,"1,040.00",01/06/2014,REV,OM METROPOLITAN TOTAL SEC.LTD 
1472,CS -Oth Operating Inc & Expend,Extraordinary Items & PY Adj.,Pollards Hill Comm Cntre,J08074,Premises Related Expenditure  ,RepairsAlterations&MtceOfBldgs,BA03,DDM - Mechanical                        ,602.28,15/05/2014,REV,EUROPA NATIONWIDE TECH.SER.LTD
3422,Childrens & Education Services,Statutory & Regulatory Duties,Senior Mngt & Support Services,K01005,Supplies & Services           ,Services                      ,DF11,Counsel's Fees                          ,"2,134.50",16/05/2014,REV,REDACTED
3426,Childrens & Education Services,Statutory & Regulatory Duties,Senior Mngt & Support Services,K01005,Supplies & Services           ,Services                      ,DF11,Counsel's Fees                          ,520,17/04/2014,REV,REDACTED
61,Childrens & Education Services,Statutory & Regulatory Duties,Central Administration,K01008,Supplies & Services           ,Expenses                      ,DH02,Conferences                             ,780,26/05/2014,REV,ADCS                          
4314,Childrens & Education Services,Statutory & Regulatory Duties,Central Administration,K01008,Supplies & Services           ,Comms and Computing           ,DG04,Postage - General                       ,680,03/06/2014,REV,TRAVELCARE                    
3168,Childrens & Education Services,Support for Cult. & Related Ed,Merton Music Foundation,K01090,Supplies & Services           ,Grants and Subscriptions      ,DJ01,Grants                                  ,"46,000.00",01/04/2014,REV,MERTON MUSIC FOUNDATION       
220,Childrens & Education Services,Statutory & Regulatory Duties,Schools IT Support,K02008,Supplies & Services           ,Comms and Computing           ,DG50,Other IT Expenditure                    ,"3,181.00",14/05/2014,REV,ATOMWIDE LTD                  
221,Childrens & Education Services,Statutory & Regulatory Duties,Schools IT Support,K02008,Supplies & Services           ,Comms and Computing           ,DG50,Other IT Expenditure                    ,625,05/06/2014,REV,ATOMWIDE LTD                  
832,Childrens & Education Services,Statutory & Regulatory Duties,Schools IT Support,K02008,Supplies & Services           ,Comms and Computing           ,DG50,Other IT Expenditure                    ,795,16/06/2014,REV,CAPITA BUSINESS SERVICES LTD  
2741,Childrens & Education Services,Statutory & Regulatory Duties,Schools IT Support,K02008,Supplies & Services           ,Comms and Computing           ,DG50,Other IT Expenditure                    ,"1,250.00",02/06/2014,REV,LONDON GRID FOR LEARNING TRUST
2742,Childrens & Education Services,Statutory & Regulatory Duties,Schools IT Support,K02008,Supplies & Services           ,Comms and Computing           ,DG50,Other IT Expenditure                    ,"385,542.27",02/06/2014,REV,LONDON GRID FOR LEARNING TRUST
3294,Childrens & Education Services,Statutory & Regulatory Duties,Research and Statistics,K03016,Supplies & Services           ,Services                      ,DF03,Consultants                             ,"3,000.00",11/06/2014,REV,NUMBER 10 INTERIM LTD         
3436,Childrens & Education Services,Statutory & Regulatory Duties,Research and Statistics,K03016,Employees                     ,Indirect Employee Expenses    ,AB02,Recruitment Adverts                     ,"1,880.00",19/06/2014,REV,PENNA COMMUNICATIONS (NO 2 A/C
1933,Childrens & Education Services,Asset Management,PFI Unitary Charges,K03023,Premises Related Expenditure  ,RepairsAlterations&MtceOfBldgs,BA06,Repairs & Maintenance General           ,"2,250.00",03/06/2014,REV,FLYNN TREE CARE               
3256,Childrens & Education Services,Asset Management,PFI Unitary Charges,K03023,Third Party Payments          ,Private Contractors           ,EH02,Miscellaneous Hired Services            ,"15,327.99",14/05/2014,REV,NEWSCHOOLS (MERTON) LIMITED   
3257,Childrens & Education Services,Asset Management,PFI Unitary Charges,K03023,Third Party Payments          ,Private Contractors           ,EH02,Miscellaneous Hired Services            ,"77,528.86",14/05/2014,REV,NEWSCHOOLS (MERTON) LIMITED   
3258,Childrens & Education Services,Asset Management,PFI Unitary Charges,K03023,Third Party Payments          ,Private Contractors           ,EH02,Miscellaneous Hired Services            ,"6,243.25",09/05/2014,REV,NEWSCHOOLS (MERTON) LIMITED   
3259,Childrens & Education Services,Asset Management,PFI Unitary Charges,K03023,Third Party Payments          ,Private Contractors           ,EH10,Contract Payments                       ,"385,725.94",16/05/2014,REV,NEWSCHOOLS (MERTON) LIMITED   
3260,Childrens & Education Services,Asset Management,PFI Unitary Charges,K03023,Third Party Payments          ,Private Contractors           ,EH10,Contract Payments                       ,"1,175,059.67",06/06/2014,REV,NEWSCHOOLS (MERTON) LIMITED   
2422,Childrens & Education Services,Statutory & Regulatory Duties,Head of Special Educatn Needs,K04017,Supplies & Services           ,Expenses                      ,DH50,Special Projects                        ,"5,500.00",03/02/2014,REV,IN CONTROL                    
3378,Childrens & Education Services,Statutory & Regulatory Duties,Head of Special Educatn Needs,K04017,Supplies & Services           ,Services                      ,DF03,Consultants                             ,"3,000.00",12/06/2014,REV,OTFE CONSULTANCY LTD          
3379,Childrens & Education Services,Statutory & Regulatory Duties,Head of Special Educatn Needs,K04017,Supplies & Services           ,Services                      ,DF03,Consultants                             ,"6,500.00",29/05/2014,REV,OTFE CONSULTANCY LTD          
1905,Childrens & Education Services,Education Psychology Service,Education Psychology.,K04018,Employees                     ,Direct Employee Expenses      ,AA17,Agency Staff & Casual Paymts            ,937.5,14/03/2014,REV,REDACTED
1906,Childrens & Education Services,Education Psychology Service,Education Psychology.,K04018,Employees                     ,Direct Employee Expenses      ,AA17,Agency Staff & Casual Paymts            ,813,23/06/2014,REV,REDACTED
3437,Childrens & Education Services,Education Psychology Service,Education Psychology.,K04018,Employees                     ,Indirect Employee Expenses    ,AB02,Recruitment Adverts                     ,740,19/06/2014,REV,PENNA COMMUNICATIONS (NO 2 A/C
3787,Childrens & Education Services,Education Psychology Service,Education Psychology.,K04018,Employees                     ,Direct Employee Expenses      ,AA17,Agency Staff & Casual Paymts            ,"3,500.00",13/06/2014,REV,REDACTED
1873,Childrens & Education Services,Support for SEN Pupils,Statementing-Transport,K04023,Transport Related Expenditure ,Public Transport              ,CD50,Home Sch/Coll Trans(Trav Exps)          ,"1,360.00",25/05/2014,REV,REDACTED
2402,Childrens & Education Services,Support for SEN Pupils,Statementing-Transport,K04023,Transport Related Expenditure ,Public Transport              ,CD50,Home Sch/Coll Trans(Trav Exps)          ,571.32,23/05/2014,REV,REDACTED
811,Childrens & Education Services,Oth U5s Provn Not Prim or Spec,Provider Support,K05078,Supplies & Services           ,Comms and Computing           ,DG63,Software Licences - Data                ,"28,805.00",31/05/2014,REV,CACI LIMITED                  
3986,Childrens & Education Services,Pupil Referral Units,Expanded Pupil Referral Unit,K05099,Third Party Payments          ,Private Contractors           ,EH01,Miscellaneous Agency Services           ,"4,920.05",22/05/2014,REV,SW LONDON ST GEORGES NHS TRUST
3711,Childrens & Education Services,GENERATED ACCOUNT,Mitcham MAT,K05411,Premises Related Expenditure  ,Rents                         ,BC01,Miscellaneous Rents                     ,"3,950.00",31/05/2014,REV,ROOMS & STUDIOS MANAGEMENT    
357,Childrens & Education Services,GENERATED ACCOUNT,Mitcham MAT (Premises),K05412,Premises Related Expenditure  ,Cleaning and Domestic Supplies,BH03,Cleaning Services                       ,"1,208.78",01/06/2014,REV,BIRKIN CLEANING SERVICES LTD  
358,Childrens & Education Services,Nursery schools,Lavender CC Non Childcare,K05415,Premises Related Expenditure  ,Cleaning and Domestic Supplies,BH03,Cleaning Services                       ,"1,212.14",01/06/2014,REV,BIRKIN CLEANING SERVICES LTD  
359,Childrens & Education Services,Nursery schools,E.Years-Intergenerational Cntr,K05416,Premises Related Expenditure  ,Cleaning and Domestic Supplies,BH03,Cleaning Services                       ,811.96,01/06/2014,REV,BIRKIN CLEANING SERVICES LTD  
3828,Childrens & Education Services,Nursery schools,E.Years-Intergenerational Cntr,K05416,Premises Related Expenditure  ,Energy Costs                  ,BB02,Electricity                             ,787.53,06/06/2014,REV,SCOTTISHPOWER                 
1550,Childrens & Education Services,Nursery schools,EY-Support Separating Parents,K05417,Supplies & Services           ,Equip Furniture/Materials     ,DA09,Equip-Purchases                         ,535,12/06/2014,REV,COMMUNITY PRODUCTS (UK) LTD.  
4033,Childrens & Education Services,Nursery schools,EY-Support Separating Parents,K05417,Supplies & Services           ,Services                      ,DF30,Activities Programme                    ,820,25/04/2014,REV,ST MARKS FAMILY CENTRE        
4285,Childrens & Education Services,Nursery schools,EY-Support Separating Parents,K05417,Employees                     ,Direct Employee Expenses      ,AA74,Public Duties (AP)                      ,"4,617.76",19/06/2014,REV,REDACTED
4034,Childrens & Education Services,Vocational - Adult Education,AE-Familiy Learning,K06041,Supplies & Services           ,Services                      ,DF30,Activities Programme                    ,"1,010.00",16/12/2013,REV,ST MARKS FAMILY CENTRE        
4035,Childrens & Education Services,Vocational - Adult Education,AE-Familiy Learning,K06041,Supplies & Services           ,Services                      ,DF30,Activities Programme                    ,"1,131.25",25/04/2014,REV,ST MARKS FAMILY CENTRE        
4036,Childrens & Education Services,Vocational - Adult Education,AE-Familiy Learning,K06041,Supplies & Services           ,Services                      ,DF30,Activities Programme                    ,543.75,16/12/2013,REV,ST MARKS FAMILY CENTRE        
4037,Childrens & Education Services,Vocational - Adult Education,AE-Familiy Learning,K06041,Supplies & Services           ,Services                      ,DF30,Activities Programme                    ,680,16/12/2013,REV,ST MARKS FAMILY CENTRE        
206,Childrens & Education Services,Vocational - Adult Education,AE-Adult Education Main,K06049,Supplies & Services           ,Services                      ,DF27,Examination Fees                        ,716.4,18/02/2014,REV,ASSMNT & QUALIFICATIONS ALL.  
208,Childrens & Education Services,Vocational - Adult Education,AE-Adult Education Main,K06049,Supplies & Services           ,Services                      ,DF27,Examination Fees                        ,"2,000.00",30/05/2014,REV,ASSOCIATION OF BUSINESS EXEC. 
1477,Childrens & Education Services,Vocational - Adult Education,AE-Adult Education Main,K06049,Supplies & Services           ,Services                      ,DF27,Examination Fees                        ,744,22/05/2014,REV,CITY & GUILDS                 
1841,Childrens & Education Services,Vocational - Adult Education,AE-Adult Education Main,K06049,Supplies & Services           ,Services                      ,DF27,Examination Fees                        ,514.7,20/05/2014,REV,EDEXCEL                       
1842,Childrens & Education Services,Vocational - Adult Education,AE-Adult Education Main,K06049,Supplies & Services           ,Services                      ,DF27,Examination Fees                        ,887.25,03/12/2012,REV,EDEXCEL                       
2013,Childrens & Education Services,Vocational - Adult Education,AE-Adult Education Main,K06049,Premises Related Expenditure  ,Energy Costs                  ,BB03,Gas (incl. Butane)                      ,"1,149.92",03/06/2014,REV,GAZPROM MARKETING&TRADING LTD 
2460,Childrens & Education Services,Vocational - Adult Education,AE-Adult Education Main,K06049,Supplies & Services           ,Services                      ,DF27,Examination Fees                        ,700,30/05/2014,REV,ITEC                          
2461,Childrens & Education Services,Vocational - Adult Education,AE-Adult Education Main,K06049,Supplies & Services           ,Services                      ,DF27,Examination Fees                        ,500,23/05/2014,REV,ITEC                          
3048,Childrens & Education Services,Vocational - Adult Education,AE-Adult Education Main,K06049,Supplies & Services           ,Services                      ,DF07,Bought in Teaching Services             ,995,29/05/2014,REV,LONDON SCHOOL OF FIRST AID    
3255,Childrens & Education Services,Vocational - Adult Education,AE-Adult Education Main,K06049,Supplies & Services           ,Services                      ,DF02,Misc Advertising/Publicity              ,"9,195.00",02/05/2014,REV,STUDIO ELEVEN LTD             
3281,Childrens & Education Services,Vocational - Adult Education,AE-Adult Education Main,K06049,Supplies & Services           ,Equip Furniture/Materials     ,DA09,Equip-Purchases                         ,793.1,22/05/2014,REV,NISBETS                       
3769,Childrens & Education Services,Vocational - Adult Education,AE-Adult Education Main,K06049,Premises Related Expenditure  ,Cleaning and Domestic Supplies,BH03,Cleaning Services                       ,"3,229.90",31/05/2014,REV,JULIUS RUTHERFOORD & CO LTD   
3770,Childrens & Education Services,Vocational - Adult Education,AE-Adult Education Main,K06049,Premises Related Expenditure  ,Cleaning and Domestic Supplies,BH03,Cleaning Services                       ,"2,747.90",30/04/2014,REV,JULIUS RUTHERFOORD & CO LTD   
3829,Childrens & Education Services,Vocational - Adult Education,AE-Adult Education Main,K06049,Premises Related Expenditure  ,Energy Costs                  ,BB02,Electricity                             ,"1,072.49",02/06/2014,REV,SCOTTISHPOWER                 
3839,Childrens & Education Services,Vocational - Adult Education,AE-Adult Education Main,K06049,Supplies & Services           ,Equip Furniture/Materials     ,DA09,Equip-Purchases                         ,"1,753.00",20/05/2014,REV,SENSASIAN                     
4400,Childrens & Education Services,Vocational - Adult Education,AE-Adult Education Main,K06049,Supplies & Services           ,Services                      ,DF27,Examination Fees                        ,"4,479.50",12/06/2014,REV,UCLES                         
484,Childrens & Education Services,Vocational - Adult Education,AE-Learner Support Fund-Access,K06050,Supplies & Services           ,Services                      ,DF09,Miscellaneous Fees                      ,585,08/05/2014,REV,BUILDING BLOCKS               
2462,Childrens & Education Services,Vocational - Adult Education,AE-Learner Support Fund-Access,K06050,Supplies & Services           ,Services                      ,DF09,Miscellaneous Fees                      ,600,04/06/2014,REV,REDACTED
360,Childrens & Education Services,Youth Centres (Residential),Youth Service,K06053,Premises Related Expenditure  ,Cleaning and Domestic Supplies,BH03,Cleaning Services                       ,506.69,01/06/2014,REV,BIRKIN CLEANING SERVICES LTD  
3209,Childrens & Education Services,Youth Centres (Residential),Youth Service,K06053,Employees                     ,Indirect Employee Expenses    ,AB57,External Training Costs                 ,"1,000.00",13/06/2014,REV,NEED 2 SUCCEED                
3241,Childrens & Education Services,Youth Centres (Residential),Youth Service,K06053,Supplies & Services           ,Expenses                      ,DH50,Special Projects                        ,"4,000.00",20/03/2014,REV,MUSLIMAH                      
3830,Childrens & Education Services,Youth Centres (Residential),Youth Service,K06053,Premises Related Expenditure  ,Energy Costs                  ,BB02,Electricity                             ,"2,198.42",21/05/2014,REV,SCOTTISHPOWER                 
1430,Childrens & Education Services,Youth Centres (Residential),Youth Office Premises Cost,K06073,Premises Related Expenditure  ,RepairsAlterations&MtceOfBldgs,BA06,Repairs & Maintenance General           ,895,12/06/2014,REV,SYMES GARDEN SERVICES         
2058,Childrens & Education Services,Youth Centres (Residential),PAYP Moving Forward in Life,K06092,Premises Related Expenditure  ,Rents                         ,BC01,Miscellaneous Rent                      ,"6,750.00",09/06/2014,REV,GOLDPLAZA (MITCHAM) LIMITED   
3104,Childrens & Education Services,Youth Centres (Residential),PAYP Moving Forward in Life,K06092,Supplies & Services           ,Expenses                      ,DH12,Young Peoples Expenses                  ,648,30/06/2014,REV,MAOL CALL CENTRE              
4415,Childrens & Education Services,Youth Centres (Residential),PAYP Moving Forward in Life,K06092,Supplies & Services           ,Equip Furniture/Materials     ,DA09,Equip-Purchases                         ,"1,487.88",31/03/2014,REV,UNIQUE OFFICE SOLUTIONS LTD   
2117,Childrens & Education Services,Pupil Support,Careers Educ IAG Contracts,K06097,Supplies & Services           ,Grants and Subscriptions      ,DJ01,Grants                                  ,"25,000.00",22/05/2014,REV,GRENFELL HOUSING ASSOCIATION  
1449,Childrens & Education Services,Asset Management,S106 Bid,K08077,Premises Related Expenditure  ,RepairsAlterations&MtceOfBldgs,BA06,Repairs & Maintenance General           ,"74,250.00",03/06/2014,REV,EXTRASPACE (NI) LTD           
1840,Childrens & Education Services,Asset Management,S106 Bid,K08077,Supplies & Services           ,Prntng Stnry Gen Off Exp      ,DE52,Office Removal Expenses                 ,"1,985.00",19/06/2014,REV,EDE'S (U.K.) LTD              
3502,Childrens & Education Services,Asset Management,S106 Bid,K08077,Premises Related Expenditure  ,Rents                         ,BC03,Room/venue rental hire                  ,680.34,01/06/2014,REV,PORTAKABIN LIMITED            
207,Childrens & Education Services,Asset Management,Centre Commissioned Servs,K08078,Supplies & Services           ,Grants and Subscriptions      ,DJ01,Grants                                  ,"5,200.00",20/05/2014,REV,ASSOC. FOR THE POLISH FAMILY  
268,Childrens & Education Services,Asset Management,Centre Commissioned Servs,K08078,Supplies & Services           ,Grants and Subscriptions      ,DJ01,Grants                                  ,"9,737.50",26/06/2014,REV,BARNARDOS                     
2476,Childrens & Education Services,Asset Management,Centre Commissioned Servs,K08078,Supplies & Services           ,Grants and Subscriptions      ,DJ01,Grants                                  ,"6,101.00",27/05/2014,REV,JIGSAW4U                      
4062,Childrens & Education Services,Asset Management,Centre Commissioned Servs,K08078,Supplies & Services           ,Grants and Subscriptions      ,DJ01,Grants                                  ,"9,780.00",20/05/2014,REV,ST TERESA'S                   
4472,Childrens & Education Services,Asset Management,Centre Commissioned Servs,K08078,Supplies & Services           ,Grants and Subscriptions      ,DJ01,Grants                                  ,"12,927.75",12/06/2014,REV,UPTOWN UK                     
4473,Childrens & Education Services,Asset Management,Centre Commissioned Servs,K08078,Supplies & Services           ,Grants and Subscriptions      ,DJ01,Grants                                  ,"12,927.75",01/07/2014,REV,UPTOWN UK                     
4474,Childrens & Education Services,Asset Management,Centre Commissioned Servs,K08078,Supplies & Services           ,Grants and Subscriptions      ,DJ01,Grants                                  ,"4,360.00",12/06/2014,REV,UPTOWN UK                     
4475,Childrens & Education Services,Asset Management,Centre Commissioned Servs,K08078,Supplies & Services           ,Grants and Subscriptions      ,DJ01,Grants                                  ,"4,360.00",01/07/2014,REV,UPTOWN UK                     
833,Childrens & Education Services,Facilitating School Improvemnt,SSQ,K09077,Supplies & Services           ,Expenses                      ,DH02,Conferences                             ,798,10/06/2014,REV,CAPITA BUSINESS SERVICES LTD  
1921,Childrens & Education Services,Facilitating School Improvemnt,SSQ,K09077,Supplies & Services           ,Grants and Subscriptions      ,DJ04,Subscriptions                           ,"9,800.00",11/06/2014,REV,FISCHER EDUCATION PROJECT LTD 
2178,Childrens & Education Services,Facilitating School Improvemnt,SSQ,K09077,Supplies & Services           ,Services                      ,DF03,Consultants                             ,580,25/05/2014,REV,HAPSFORD ASSOCIATES           
2434,Childrens & Education Services,Facilitating School Improvemnt,SSQ,K09077,Supplies & Services           ,Services                      ,DF03,Consultants                             ,"2,000.00",13/06/2014,REV,INNERSTRENGTH CONSULTING      
3442,Childrens & Education Services,Facilitating School Improvemnt,SSQ,K09077,Supplies & Services           ,Services                      ,DF03,Consultants                             ,"1,435.00",07/06/2014,REV,PERMANENT FUTURES             
3443,Childrens & Education Services,Facilitating School Improvemnt,SSQ,K09077,Supplies & Services           ,Services                      ,DF03,Consultants                             ,"1,640.00",24/05/2014,REV,PERMANENT FUTURES             
4651,Childrens & Education Services,Facilitating School Improvemnt,SSQ,K09077,Supplies & Services           ,Services                      ,DF03,Consultants                             ,"4,500.00",27/05/2014,REV,WIDEHORIZONS OUTDOOR EDUC TRUS
1932,Childrens & Education Services,Asset Management,Stouthall,K09082,Premises Related Expenditure  ,Energy Costs                  ,BB03,Gas (incl. Butane)                      ,565.95,04/06/2014,REV,FLOGAS CO UK                  
2702,Childrens & Education Services,Asset Management,Stouthall,K09082,Premises Related Expenditure  ,Ground Maintenance Costs      ,BL03,Maintenance of Grounds                  ,600,31/05/2014,REV,A Y LANDSCAPES LTD            
2703,Childrens & Education Services,Asset Management,Stouthall,K09082,Premises Related Expenditure  ,Ground Maintenance Costs      ,BL03,Maintenance of Grounds                  ,"1,000.00",31/05/2014,REV,A Y LANDSCAPES LTD            
3226,Childrens & Education Services,Asset Management,Stouthall,K09082,Premises Related Expenditure  ,Rents                         ,BC01,Miscellaneous Rents                     ,"4,125.00",17/06/2014,REV,ROBERT MORGAN & SONS LTD      
3771,Childrens & Education Services,Statutory & Regulatory Duties,Profess Develop Cntre,K09084,Premises Related Expenditure  ,Cleaning and Domestic Supplies,BH03,Cleaning Services                       ,"2,329.26",31/05/2014,REV,JULIUS RUTHERFOORD & CO LTD   
4310,Childrens & Education Services,Admissions & Planning Sch Prov,Schools Admin & Pupil Benefits,K90001,Transport Related Expenditure ,Public Transport              ,CD50,Home Sch/Coll Trans(Trav Exps)          ,600.6,26/04/2014,REV,TRANSPORT TRADING LTD         
2443,Childrens & Education Services,Sch Meals & Milk-Not Delegated,Free School Meals,K90002,Supplies & Services           ,Grants and Subscriptions      ,DJ80,Free School Meals                       ,"12,284.08",08/04/2014,REV,ISS COLLECTIONS LTD           
2444,Childrens & Education Services,Sch Meals & Milk-Not Delegated,Free School Meals,K90002,Supplies & Services           ,Grants and Subscriptions      ,DJ80,Free School Meals                       ,"94,566.56",08/04/2014,REV,ISS COLLECTIONS LTD           
2445,Childrens & Education Services,Sch Meals & Milk-Not Delegated,Free School Meals,K90002,Supplies & Services           ,Grants and Subscriptions      ,DJ80,Free School Meals                       ,"113,996.52",23/03/2014,REV,ISS COLLECTIONS LTD           
2446,Childrens & Education Services,Sch Meals & Milk-Not Delegated,Free School Meals,K90002,Supplies & Services           ,Grants and Subscriptions      ,DJ80,Free School Meals                       ,"154,057.56",23/03/2014,REV,ISS COLLECTIONS LTD           
2447,Childrens & Education Services,Sch Meals & Milk-Not Delegated,Free School Meals,K90002,Supplies & Services           ,Grants and Subscriptions      ,DJ80,Free School Meals                       ,"-74,987.34",31/03/2014,REV,ISS COLLECTIONS LTD           
2448,Childrens & Education Services,Sch Meals & Milk-Not Delegated,Free School Meals,K90002,Supplies & Services           ,Grants and Subscriptions      ,DJ80,Free School Meals                       ,"-93,785.13",31/03/2014,REV,ISS COLLECTIONS LTD           
2449,Childrens & Education Services,Sch Meals & Milk-Not Delegated,Free School Meals,K90002,Supplies & Services           ,Grants and Subscriptions      ,DJ80,Free School Meals                       ,"3,054.84",08/04/2014,REV,ISS COLLECTIONS LTD           
2450,Childrens & Education Services,Sch Meals & Milk-Not Delegated,Free School Meals,K90002,Supplies & Services           ,Grants and Subscriptions      ,DJ80,Free School Meals                       ,"95,981.88",16/05/2014,REV,ISS COLLECTIONS LTD           
2451,Childrens & Education Services,Sch Meals & Milk-Not Delegated,Free School Meals,K90002,Supplies & Services           ,Grants and Subscriptions      ,DJ80,Free School Meals                       ,"-66,087.46",24/05/2014,REV,ISS COLLECTIONS LTD           
2452,Childrens & Education Services,Sch Meals & Milk-Not Delegated,Free School Meals,K90002,Supplies & Services           ,Grants and Subscriptions      ,DJ80,Free School Meals                       ,"-62,300.71",31/03/2014,REV,ISS COLLECTIONS LTD           
2453,Childrens & Education Services,Sch Meals & Milk-Not Delegated,Free School Meals,K90002,Supplies & Services           ,Grants and Subscriptions      ,DJ80,Free School Meals                       ,"13,817.44",16/05/2014,REV,ISS COLLECTIONS LTD           
2454,Childrens & Education Services,Sch Meals & Milk-Not Delegated,Free School Meals,K90002,Supplies & Services           ,Grants and Subscriptions      ,DJ80,Free School Meals                       ,"-35,936.79",31/03/2014,REV,ISS COLLECTIONS LTD           
2455,Childrens & Education Services,Sch Meals & Milk-Not Delegated,Free School Meals,K90002,Supplies & Services           ,Grants and Subscriptions      ,DJ80,Free School Meals                       ,"72,002.81",21/03/2014,REV,ISS COLLECTIONS LTD           
2456,Childrens & Education Services,Sch Meals & Milk-Not Delegated,Free School Meals,K90002,Supplies & Services           ,Grants and Subscriptions      ,DJ80,Free School Meals                       ,"132,716.25",21/03/2014,REV,ISS COLLECTIONS LTD           
2457,Childrens & Education Services,Sch Meals & Milk-Not Delegated,Free School Meals,K90002,Supplies & Services           ,Grants and Subscriptions      ,DJ80,Free School Meals                       ,"149,856.58",11/04/2014,REV,ISS COLLECTIONS LTD           
2458,Childrens & Education Services,Sch Meals & Milk-Not Delegated,Free School Meals,K90002,Supplies & Services           ,Grants and Subscriptions      ,DJ80,Free School Meals                       ,"92,147.15",21/03/2014,REV,ISS COLLECTIONS LTD           
2459,Childrens & Education Services,Sch Meals & Milk-Not Delegated,Free School Meals,K90002,Supplies & Services           ,Grants and Subscriptions      ,DJ80,Free School Meals                       ,"-65,678.58",08/04/2014,REV,ISS COLLECTIONS LTD           
1926,Childrens & Education Services,Facilitating School Improvemnt,Virtual Schools - Home Tutors,K90015,Employees                     ,Direct Employee Expenses      ,AA17,Agency Staff & Casual Paymts            ,900.9,31/05/2014,REV,REDACTED
2134,Childrens & Education Services,Facilitating School Improvemnt,Virtual Schools - Home Tutors,K90015,Employees                     ,Direct Employee Expenses      ,AA17,Agency Staff & Casual Paymts            ,580.5,04/06/2014,REV,HA TUTORS LTD                 
311,Childrens & Education Services,Facilitating School Improvemnt,Virtual Schools - PEA's,K90016,Supplies & Services           ,Grants and Subscriptions      ,DJ01,Grants                                  ,600,23/06/2014,REV,BELVEDERE JUNIOR SCHOOL       
972,Childrens & Education Services,Facilitating School Improvemnt,Virtual Schools - PEA's,K90016,Supplies & Services           ,Grants and Subscriptions      ,DJ01,Grants                                  ,600,23/06/2014,REV,CARSHALTON HIGH SCH FOR GIRLS 
973,Childrens & Education Services,Facilitating School Improvemnt,Virtual Schools - PEA's,K90016,Supplies & Services           ,Grants and Subscriptions      ,DJ01,Grants                                  ,600,23/06/2014,REV,CARSHALTON HIGH SCH FOR GIRLS 
974,Childrens & Education Services,Facilitating School Improvemnt,Virtual Schools - PEA's,K90016,Supplies & Services           ,Grants and Subscriptions      ,DJ01,Grants                                  ,600,23/06/2014,REV,CARSHALTON HIGH SCH FOR GIRLS 
975,Childrens & Education Services,Facilitating School Improvemnt,Virtual Schools - PEA's,K90016,Supplies & Services           ,Grants and Subscriptions      ,DJ01,Grants                                  ,600,23/06/2014,REV,CARSHALTON HIGH SCH FOR GIRLS 
1122,Childrens & Education Services,Facilitating School Improvemnt,Virtual Schools - PEA's,K90016,Supplies & Services           ,Grants and Subscriptions      ,DJ01,Grants                                  ,600,23/06/2014,REV,CATERHAM HIGH SCHOOL          
1488,Childrens & Education Services,Facilitating School Improvemnt,Virtual Schools - PEA's,K90016,Supplies & Services           ,Grants and Subscriptions      ,DJ01,Grants                                  ,600,23/06/2014,REV,CLIFTON HILL SCHOOL           
1489,Childrens & Education Services,Facilitating School Improvemnt,Virtual Schools - PEA's,K90016,Supplies & Services           ,Grants and Subscriptions      ,DJ01,Grants                                  ,600,23/06/2014,REV,CLIFTON HILL SCHOOL           
1692,Childrens & Education Services,Facilitating School Improvemnt,Virtual Schools - PEA's,K90016,Supplies & Services           ,Grants and Subscriptions      ,DJ01,Grants                                  ,600,23/06/2014,REV,CUDDINGTON COMMUNITY P. SCHOOL
